Body Name,Body,Service Label,Service Code,Service Division ,Service Division Code,Organisational Unit,Expenditure Category - SeRCOP,Expenditure Code - SeRCOP,Expenditure Category - ProClass,Expenditure Code - ProClass,SeRCOP Detailed Expenditure Type,SeRCOP Detailed Expenditure Code,Date,Transaction Number,Amount,Capital and Revenue,Supplier Name,Supplier ID
Fareham Borough Council,http://statistics.data.gov.uk/id/local-authority/24UE,PLANNING SERVICES,BV13,ECONOMIC DEVELOPMENT,BV13E,DEPT of STRATEGIC PLANNING and ENVIRONMENT,SUPPLIES & SERVICES,4,Local/Central Government,98,CONSULTANTS FEES,4401,31/10/2014,493724,8157.28 ,Revenue,PORTSMOUTH CITY COUNCIL,
Fareham Borough Council,http://statistics.data.gov.uk/id/local-authority/24UE,GENERAL FUND HOUSING,BV05,HOMELESSNESS,BV05F,DEPT of COMMUNITY and STREETSCENE,THIRD PARTY PAYMENTS,5,Financial Services,20,AUDIT CONTRACT,5601,17/10/2014,502463,1834.41 ,Revenue,DELOITTE,04585162
Fareham Borough Council,http://statistics.data.gov.uk/id/local-authority/24UE,CORPORATE & DEMOCRATIC CORE,BV07A,CORPORATE MANAGEMENT,BV07AB,DEPT of FINANCE and RESOURCES,THIRD PARTY PAYMENTS,5,Financial Services,20,AUDIT CONTRACT,5601,17/10/2014,502463,1834.41 ,Revenue,DELOITTE,04585162
Fareham Borough Council,http://statistics.data.gov.uk/id/local-authority/24UE,CORPORATE & DEMOCRATIC CORE,BV07A,CORPORATE MANAGEMENT,BV07AB,DEPT of FINANCE and RESOURCES,THIRD PARTY PAYMENTS,5,Financial Services,20,AUDIT CONTRACT,5601,17/10/2014,502463,1222.94 ,Revenue,DELOITTE,04585162
Fareham Borough Council,http://statistics.data.gov.uk/id/local-authority/24UE,CORPORATE & DEMOCRATIC CORE,BV07A,CORPORATE MANAGEMENT,BV07AB,DEPT of FINANCE and RESOURCES,THIRD PARTY PAYMENTS,5,Financial Services,20,AUDIT CONTRACT,5601,17/10/2014,502463,1834.41 ,Revenue,DELOITTE,04585162
Fareham Borough Council,http://statistics.data.gov.uk/id/local-authority/24UE,ENVIRONMENT AND REGULATORY SER,BV03,STREET CLEANSING,BV03F,DEPT STREETSCENE,THIRD PARTY PAYMENTS,5,Financial Services,20,AUDIT CONTRACT,5601,17/10/2014,502463,2140.14 ,Revenue,DELOITTE,04585162
Fareham Borough Council,http://statistics.data.gov.uk/id/local-authority/24UE,HIGHWAYS ROADS AND TRANSPORT,BV12,PARKING SERVICES,BV12D,DEPT STREETSCENE,THIRD PARTY PAYMENTS,5,Financial Services,20,AUDIT CONTRACT,5601,17/10/2014,502463,1834.41 ,Revenue,DELOITTE,04585162
Fareham Borough Council,http://statistics.data.gov.uk/id/local-authority/24UE,PLANNING SERVICES,BV13,DEVELOPMENT CONTROL,BV13B,DEPT of STRATEGIC PLANNING and ENVIRONMENT,THIRD PARTY PAYMENTS,5,Financial Services,20,AUDIT CONTRACT,5601,17/10/2014,502463,1834.41 ,Revenue,DELOITTE,04585162
Fareham Borough Council,http://statistics.data.gov.uk/id/local-authority/24UE,HOUSING REVENUE ACCOUNT,BV06,GENERAL ADMINISTRATION EXPENSE,5021,DEPT of COMMUNITY and STREETSCENE,THIRD PARTY PAYMENTS,5,Financial Services,20,AUDIT CONTRACT,5601,17/10/2014,502463,1834.41 ,Revenue,DELOITTE,04585162
Fareham Borough Council,http://statistics.data.gov.uk/id/local-authority/24UE,OTHER REVENUE ACCOUNTS,RV,NON WORK GROUP HOLDING ACCOUNT,RV18,DEPT of FINANCE and RESOURCES,THIRD PARTY PAYMENTS,5,Financial Services,20,AUDIT CONTRACT,5601,17/10/2014,502463,611.47 ,Revenue,DELOITTE,04585162
Fareham Borough Council,http://statistics.data.gov.uk/id/local-authority/24UE,OTHER REVENUE ACCOUNTS,RV,NON WORK GROUP HOLDING ACCOUNT,RV18,DEPT of FINANCE and RESOURCES,THIRD PARTY PAYMENTS,5,Financial Services,20,AUDIT CONTRACT,5601,17/10/2014,502463,3057.35 ,Revenue,DELOITTE,04585162
Fareham Borough Council,http://statistics.data.gov.uk/id/local-authority/24UE,OTHER REVENUE ACCOUNTS,RV,NON WORK GROUP HOLDING ACCOUNT,RV18,DEPT of FINANCE and RESOURCES,THIRD PARTY PAYMENTS,5,Financial Services,20,AUDIT CONTRACT,5601,17/10/2014,502463,2615.73 ,Revenue,DELOITTE,04585162
Fareham Borough Council,http://statistics.data.gov.uk/id/local-authority/24UE,OTHER REVENUE ACCOUNTS,RV,NON WORK GROUP HOLDING ACCOUNT,RV18,DEPT of FINANCE and RESOURCES,THIRD PARTY PAYMENTS,5,Financial Services,20,AUDIT CONTRACT,5601,17/10/2014,502463,2140.14 ,Revenue,DELOITTE,04585162
Fareham Borough Council,http://statistics.data.gov.uk/id/local-authority/24UE,OTHER REVENUE ACCOUNTS,RV,NON WORK GROUP HOLDING ACCOUNT,RV18,DEPT of FINANCE and RESOURCES,THIRD PARTY PAYMENTS,5,Financial Services,20,AUDIT CONTRACT,5601,17/10/2014,502463,2751.61 ,Revenue,DELOITTE,04585162
Fareham Borough Council,http://statistics.data.gov.uk/id/local-authority/24UE,OTHER REVENUE ACCOUNTS,RV,NON WORK GROUP HOLDING ACCOUNT,RV18,DEPT of FINANCE and RESOURCES,THIRD PARTY PAYMENTS,5,Financial Services,20,AUDIT CONTRACT,5601,17/10/2014,502463,2139.24 ,Revenue,DELOITTE,04585162
Fareham Borough Council,http://statistics.data.gov.uk/id/local-authority/24UE,OTHER REVENUE ACCOUNTS,RV,NON WORK GROUP HOLDING ACCOUNT,RV18,DEPT of FINANCE and RESOURCES,THIRD PARTY PAYMENTS,5,Financial Services,20,AUDIT CONTRACT,5601,17/10/2014,502463,3487.64 ,Revenue,DELOITTE,04585162
Fareham Borough Council,http://statistics.data.gov.uk/id/local-authority/24UE,OTHER REVENUE ACCOUNTS,RV,NON WORK GROUP HOLDING ACCOUNT,RV18,DEPT of FINANCE and RESOURCES,THIRD PARTY PAYMENTS,5,Financial Services,20,AUDIT CONTRACT,5601,17/10/2014,502463,2140.14 ,Revenue,DELOITTE,04585162
Fareham Borough Council,http://statistics.data.gov.uk/id/local-authority/24UE,OTHER REVENUE ACCOUNTS,RV,NON WORK GROUP HOLDING ACCOUNT,RV18,DEPT of FINANCE and RESOURCES,THIRD PARTY PAYMENTS,5,Financial Services,20,AUDIT CONTRACT,5601,17/10/2014,502463,2709.15 ,Revenue,DELOITTE,04585162
Fareham Borough Council,http://statistics.data.gov.uk/id/local-authority/24UE,OTHER REVENUE ACCOUNTS,RV,NON WORK GROUP HOLDING ACCOUNT,RV18,DEPT of FINANCE and RESOURCES,THIRD PARTY PAYMENTS,5,Financial Services,20,AUDIT CONTRACT,5601,17/10/2014,502463,1834.41 ,Revenue,DELOITTE,04585162
Fareham Borough Council,http://statistics.data.gov.uk/id/local-authority/24UE,CAPITAL PROGRAMME - HOUSING SERVICES,CP,RENOVATION OF L.A. DWELLINGS,CP10,CAPITAL - IMPROVEMENTS WORK/MODERNIS'N,PREMISES RELATED EXPENDITURE,2,Building Construction Materials,10,R & M OF BUILDINGS,2000,01/10/2014,502528,5000.00 ,Capital,INSTAGROUP (CREST SURVEYING LTD),01500228
Fareham Borough Council,http://statistics.data.gov.uk/id/local-authority/24UE,HOUSING REVENUE ACCOUNT,BV06,RESPONSIVE & VOID MAINTENANCE,5901,DEPT STREETSCENE,PREMISES RELATED EXPENDITURE,2,Building Construction Materials,10,GENERAL REPAIRS,2018,01/10/2014,502984,2000.00 ,Revenue,INSTAGROUP (CREST SURVEYING LTD),01500228
Fareham Borough Council,http://statistics.data.gov.uk/id/local-authority/24UE,HOUSING REVENUE ACCOUNT,BV06,RESPONSIVE & VOID MAINTENANCE,5901,DEPT STREETSCENE,PREMISES RELATED EXPENDITURE,2,Building Construction Materials,10,GENERAL REPAIRS,2018,01/10/2014,502985,2000.00 ,Revenue,INSTAGROUP (CREST SURVEYING LTD),01500228
Fareham Borough Council,http://statistics.data.gov.uk/id/local-authority/24UE,CULTURAL AND RELATED SERVICES,BV09,RECREATION AND SPORT,BV09B,DEPT of COMMUNITY and STREETSCENE,SUPPLIES & SERVICES,4,Clothing,14,PROTECTIVE CLOTHING & UNIFORMS,4200,10/10/2014,503471,31.25 ,Revenue,ARCO LIMITED,00133804
Fareham Borough Council,http://statistics.data.gov.uk/id/local-authority/24UE,CULTURAL AND RELATED SERVICES,BV09,RECREATION AND SPORT,BV09B,DEPT of COMMUNITY and STREETSCENE,SUPPLIES & SERVICES,4,Clothing,14,PROTECTIVE CLOTHING & UNIFORMS,4200,10/10/2014,503471,21.12 ,Revenue,ARCO LIMITED,00133804
Fareham Borough Council,http://statistics.data.gov.uk/id/local-authority/24UE,CULTURAL AND RELATED SERVICES,BV09,RECREATION AND SPORT,BV09B,DEPT of COMMUNITY and STREETSCENE,SUPPLIES & SERVICES,4,Clothing,14,PROTECTIVE CLOTHING & UNIFORMS,4200,10/10/2014,503471,29.92 ,Revenue,ARCO LIMITED,00133804
Fareham Borough Council,http://statistics.data.gov.uk/id/local-authority/24UE,CULTURAL AND RELATED SERVICES,BV09,RECREATION AND SPORT,BV09B,DEPT of COMMUNITY and STREETSCENE,SUPPLIES & SERVICES,4,Clothing,14,PROTECTIVE CLOTHING & UNIFORMS,4200,10/10/2014,503471,10.86 ,Revenue,ARCO LIMITED,00133804
Fareham Borough Council,http://statistics.data.gov.uk/id/local-authority/24UE,CULTURAL AND RELATED SERVICES,BV09,RECREATION AND SPORT,BV09B,DEPT of COMMUNITY and STREETSCENE,SUPPLIES & SERVICES,4,Clothing,14,PROTECTIVE CLOTHING & UNIFORMS,4200,10/10/2014,503471,31.25 ,Revenue,ARCO LIMITED,00133804
Fareham Borough Council,http://statistics.data.gov.uk/id/local-authority/24UE,CULTURAL AND RELATED SERVICES,BV09,RECREATION AND SPORT,BV09B,DEPT of COMMUNITY and STREETSCENE,SUPPLIES & SERVICES,4,Clothing,14,PROTECTIVE CLOTHING & UNIFORMS,4200,10/10/2014,503471,86.15 ,Revenue,ARCO LIMITED,00133804
Fareham Borough Council,http://statistics.data.gov.uk/id/local-authority/24UE,CULTURAL AND RELATED SERVICES,BV09,RECREATION AND SPORT,BV09B,DEPT of COMMUNITY and STREETSCENE,SUPPLIES & SERVICES,4,Clothing,14,PROTECTIVE CLOTHING & UNIFORMS,4200,10/10/2014,503471,86.15 ,Revenue,ARCO LIMITED,00133804
Fareham Borough Council,http://statistics.data.gov.uk/id/local-authority/24UE,CULTURAL AND RELATED SERVICES,BV09,RECREATION AND SPORT,BV09B,DEPT of COMMUNITY and STREETSCENE,SUPPLIES & SERVICES,4,Clothing,14,PROTECTIVE CLOTHING & UNIFORMS,4200,10/10/2014,503471,12.00 ,Revenue,ARCO LIMITED,00133804
Fareham Borough Council,http://statistics.data.gov.uk/id/local-authority/24UE,CULTURAL AND RELATED SERVICES,BV09,RECREATION AND SPORT,BV09B,DEPT of COMMUNITY and STREETSCENE,SUPPLIES & SERVICES,4,Clothing,14,PROTECTIVE CLOTHING & UNIFORMS,4200,10/10/2014,503471,4.47 ,Revenue,ARCO LIMITED,00133804
Fareham Borough Council,http://statistics.data.gov.uk/id/local-authority/24UE,CULTURAL AND RELATED SERVICES,BV09,RECREATION AND SPORT,BV09B,DEPT of COMMUNITY and STREETSCENE,SUPPLIES & SERVICES,4,Clothing,14,PROTECTIVE CLOTHING & UNIFORMS,4200,10/10/2014,503471,11.80 ,Revenue,ARCO LIMITED,00133804
Fareham Borough Council,http://statistics.data.gov.uk/id/local-authority/24UE,ENVIRONMENT AND REGULATORY SER,BV03,STREET CLEANSING,BV03F,DEPT STREETSCENE,SUPPLIES & SERVICES,4,Clothing,14,PROTECTIVE CLOTHING & UNIFORMS,4200,10/10/2014,503471,15.36 ,Revenue,ARCO LIMITED,00133804
Fareham Borough Council,http://statistics.data.gov.uk/id/local-authority/24UE,ENVIRONMENT AND REGULATORY SER,BV03,STREET CLEANSING,BV03F,DEPT STREETSCENE,SUPPLIES & SERVICES,4,Clothing,14,PROTECTIVE CLOTHING & UNIFORMS,4200,10/10/2014,503471,15.36 ,Revenue,ARCO LIMITED,00133804
Fareham Borough Council,http://statistics.data.gov.uk/id/local-authority/24UE,ENVIRONMENT AND REGULATORY SER,BV03,STREET CLEANSING,BV03F,DEPT STREETSCENE,SUPPLIES & SERVICES,4,Clothing,14,PROTECTIVE CLOTHING & UNIFORMS,4200,10/10/2014,503471,47.52 ,Revenue,ARCO LIMITED,00133804
Fareham Borough Council,http://statistics.data.gov.uk/id/local-authority/24UE,ENVIRONMENT AND REGULATORY SER,BV03,STREET CLEANSING,BV03F,DEPT STREETSCENE,SUPPLIES & SERVICES,4,Clothing,14,PROTECTIVE CLOTHING & UNIFORMS,4200,10/10/2014,503471,31.56 ,Revenue,ARCO LIMITED,00133804
Fareham Borough Council,http://statistics.data.gov.uk/id/local-authority/24UE,ENVIRONMENT AND REGULATORY SER,BV03,STREET CLEANSING,BV03F,DEPT STREETSCENE,SUPPLIES & SERVICES,4,Clothing,14,PROTECTIVE CLOTHING & UNIFORMS,4200,10/10/2014,503471,31.56 ,Revenue,ARCO LIMITED,00133804
Fareham Borough Council,http://statistics.data.gov.uk/id/local-authority/24UE,ENVIRONMENT AND REGULATORY SER,BV03,WASTE COLLECTION,BV03G,DEPT STREETSCENE,SUPPLIES & SERVICES,4,Clothing,14,PROTECTIVE CLOTHING & UNIFORMS,4200,10/10/2014,503471,75.60 ,Revenue,ARCO LIMITED,00133804
Fareham Borough Council,http://statistics.data.gov.uk/id/local-authority/24UE,ENVIRONMENT AND REGULATORY SER,BV03,WASTE COLLECTION,BV03G,DEPT STREETSCENE,SUPPLIES & SERVICES,4,Clothing,14,PROTECTIVE CLOTHING & UNIFORMS,4200,10/10/2014,503471,180.00 ,Revenue,ARCO LIMITED,00133804
Fareham Borough Council,http://statistics.data.gov.uk/id/local-authority/24UE,ENVIRONMENT AND REGULATORY SER,BV03,WASTE COLLECTION,BV03G,DEPT STREETSCENE,SUPPLIES & SERVICES,4,Clothing,14,PROTECTIVE CLOTHING & UNIFORMS,4200,10/10/2014,503471,35.52 ,Revenue,ARCO LIMITED,00133804
Fareham Borough Council,http://statistics.data.gov.uk/id/local-authority/24UE,ENVIRONMENT AND REGULATORY SER,BV03,WASTE COLLECTION,BV03G,DEPT STREETSCENE,SUPPLIES & SERVICES,4,Clothing,14,PROTECTIVE CLOTHING & UNIFORMS,4200,10/10/2014,503471,20.25 ,Revenue,ARCO LIMITED,00133804
Fareham Borough Council,http://statistics.data.gov.uk/id/local-authority/24UE,OTHER REVENUE ACCOUNTS,RV,CONTRACT SERVICES D.S.O.,RV14,DEPT STREETSCENE,SUPPLIES & SERVICES,4,Clothing,14,PROTECTIVE CLOTHING & UNIFORMS,4200,10/10/2014,503471,15.36 ,Revenue,ARCO LIMITED,00133804
Fareham Borough Council,http://statistics.data.gov.uk/id/local-authority/24UE,OTHER REVENUE ACCOUNTS,RV,CONTRACT SERVICES D.S.O.,RV14,DEPT STREETSCENE,SUPPLIES & SERVICES,4,Clothing,14,PROTECTIVE CLOTHING & UNIFORMS,4200,10/10/2014,503471,15.36 ,Revenue,ARCO LIMITED,00133804
Fareham Borough Council,http://statistics.data.gov.uk/id/local-authority/24UE,OTHER REVENUE ACCOUNTS,RV,CONTRACT SERVICES D.S.O.,RV14,DEPT STREETSCENE,SUPPLIES & SERVICES,4,Clothing,14,PROTECTIVE CLOTHING & UNIFORMS,4200,10/10/2014,503471,15.36 ,Revenue,ARCO LIMITED,00133804
Fareham Borough Council,http://statistics.data.gov.uk/id/local-authority/24UE,OTHER REVENUE ACCOUNTS,RV,CONTRACT SERVICES D.S.O.,RV14,DEPT STREETSCENE,SUPPLIES & SERVICES,4,Clothing,14,PROTECTIVE CLOTHING & UNIFORMS,4200,10/10/2014,503471,58.80 ,Revenue,ARCO LIMITED,00133804
Fareham Borough Council,http://statistics.data.gov.uk/id/local-authority/24UE,OTHER REVENUE ACCOUNTS,RV,CONTRACT SERVICES D.S.O.,RV14,DEPT STREETSCENE,SUPPLIES & SERVICES,4,Clothing,14,PROTECTIVE CLOTHING & UNIFORMS,4200,10/10/2014,503471,23.76 ,Revenue,ARCO LIMITED,00133804
Fareham Borough Council,http://statistics.data.gov.uk/id/local-authority/24UE,OTHER REVENUE ACCOUNTS,RV,CONTRACT SERVICES D.S.O.,RV14,DEPT STREETSCENE,SUPPLIES & SERVICES,4,Clothing,14,PROTECTIVE CLOTHING & UNIFORMS,4200,10/10/2014,503471,90.00 ,Revenue,ARCO LIMITED,00133804
Fareham Borough Council,http://statistics.data.gov.uk/id/local-authority/24UE,OTHER REVENUE ACCOUNTS,RV,CONTRACT SERVICES D.S.O.,RV14,DEPT STREETSCENE,SUPPLIES & SERVICES,4,Clothing,14,TOOLS & EQUIPMENT,4002,10/10/2014,503471,359.99 ,Revenue,ARCO LIMITED,00133804
Fareham Borough Council,http://statistics.data.gov.uk/id/local-authority/24UE,OTHER REVENUE ACCOUNTS,RV,CONTRACT SERVICES D.S.O.,RV14,DEPT STREETSCENE,SUPPLIES & SERVICES,4,Clothing,14,PROTECTIVE CLOTHING & UNIFORMS,4200,10/10/2014,503471,47.52 ,Revenue,ARCO LIMITED,00133804
Fareham Borough Council,http://statistics.data.gov.uk/id/local-authority/24UE,OTHER REVENUE ACCOUNTS,RV,CONTRACT SERVICES D.S.O.,RV14,DEPT STREETSCENE,SUPPLIES & SERVICES,4,Clothing,14,PROTECTIVE CLOTHING & UNIFORMS,4200,10/10/2014,503471,27.08 ,Revenue,ARCO LIMITED,00133804
Fareham Borough Council,http://statistics.data.gov.uk/id/local-authority/24UE,OTHER REVENUE ACCOUNTS,RV,CONTRACT SERVICES D.S.O.,RV14,DEPT of STRATEGIC PLANNING and ENVIRONMENT,SUPPLIES & SERVICES,4,Clothing,14,PROTECTIVE CLOTHING & UNIFORMS,4200,10/10/2014,503471,29.37 ,Revenue,ARCO LIMITED,00133804
Fareham Borough Council,http://statistics.data.gov.uk/id/local-authority/24UE,OTHER REVENUE ACCOUNTS,RV,CONTRACT SERVICES D.S.O.,RV14,DEPT of STRATEGIC PLANNING and ENVIRONMENT,SUPPLIES & SERVICES,4,Clothing,14,PROTECTIVE CLOTHING & UNIFORMS,4200,10/10/2014,503471,31.47 ,Revenue,ARCO LIMITED,00133804
Fareham Borough Council,http://statistics.data.gov.uk/id/local-authority/24UE,OTHER REVENUE ACCOUNTS,RV,CONTRACT SERVICES D.S.O.,RV14,DEPT of STRATEGIC PLANNING and ENVIRONMENT,SUPPLIES & SERVICES,4,Clothing,14,PROTECTIVE CLOTHING & UNIFORMS,4200,10/10/2014,503471,29.37 ,Revenue,ARCO LIMITED,00133804
Fareham Borough Council,http://statistics.data.gov.uk/id/local-authority/24UE,CULTURAL AND RELATED SERVICES,BV09,RECREATION AND SPORT,BV09B,DEPT of COMMUNITY and STREETSCENE,PREMISES RELATED EXPENDITURE,2,Highway Equipment & Materials?,23,R & M OF BUILDINGS,2000,10/10/2014,503475,194.40 ,Revenue,ALLSPEED SIGNS & GRAPHICS LTD,02998509
Fareham Borough Council,http://statistics.data.gov.uk/id/local-authority/24UE,CULTURAL AND RELATED SERVICES,BV09,RECREATION AND SPORT,BV09B,DEPT of COMMUNITY and STREETSCENE,PREMISES RELATED EXPENDITURE,2,Highway Equipment & Materials?,23,R & M OF BUILDINGS,2000,10/10/2014,503475,195.60 ,Revenue,ALLSPEED SIGNS & GRAPHICS LTD,02998509
Fareham Borough Council,http://statistics.data.gov.uk/id/local-authority/24UE,CULTURAL AND RELATED SERVICES,BV09,RECREATION AND SPORT,BV09B,DEPT of COMMUNITY and STREETSCENE,PREMISES RELATED EXPENDITURE,2,Highway Equipment & Materials?,23,R & M OF BUILDINGS,2000,10/10/2014,503475,15.84 ,Revenue,ALLSPEED SIGNS & GRAPHICS LTD,02998509
Fareham Borough Council,http://statistics.data.gov.uk/id/local-authority/24UE,CULTURAL AND RELATED SERVICES,BV09,RECREATION AND SPORT,BV09B,DEPT of COMMUNITY and STREETSCENE,PREMISES RELATED EXPENDITURE,2,Highway Equipment & Materials?,23,R & M OF BUILDINGS,2000,10/10/2014,503475,360.00 ,Revenue,ALLSPEED SIGNS & GRAPHICS LTD,02998509
Fareham Borough Council,http://statistics.data.gov.uk/id/local-authority/24UE,CULTURAL AND RELATED SERVICES,BV09,RECREATION AND SPORT,BV09B,DEPT of COMMUNITY and STREETSCENE,SUPPLIES & SERVICES,4,Highway Equipment & Materials?,23,FURNITURE & EQUIPT. PURCHASES,4000,17/10/2014,503476,863.76 ,Revenue,ALLSPEED SIGNS & GRAPHICS LTD,02998509
Fareham Borough Council,http://statistics.data.gov.uk/id/local-authority/24UE,OTHER REVENUE ACCOUNTS,RV,CONTRACT SERVICES D.S.O.,RV14,DEPT STREETSCENE,SUPPLIES & SERVICES,4,Horticultural,24,SUB-CONTRACTORS CHARGES,4432,03/10/2014,504178,925.00 ,Revenue,redacted personal data,
Fareham Borough Council,http://statistics.data.gov.uk/id/local-authority/24UE,ENVIRONMENT AND REGULATORY SER,BV03,WASTE COLLECTION,BV03G,DEPT STREETSCENE,EMPLOYEES RELATED EXPENDITURE,1,Human Resources,26,AGENCY WORKERS,1050,10/10/2014,504235,7557.20 ,Revenue,BUZZ PEOPLE RECRUITMENT LTD,07908887
Fareham Borough Council,http://statistics.data.gov.uk/id/local-authority/24UE,ENVIRONMENT AND REGULATORY SER,BV03,WASTE COLLECTION,BV03G,DEPT STREETSCENE,EMPLOYEES RELATED EXPENDITURE,1,Human Resources,26,AGENCY WORKERS,1050,10/10/2014,504235,1261.34 ,Revenue,BUZZ PEOPLE RECRUITMENT LTD,07908887
Fareham Borough Council,http://statistics.data.gov.uk/id/local-authority/24UE,ENVIRONMENT AND REGULATORY SER,BV03,WASTE COLLECTION,BV03G,DEPT STREETSCENE,EMPLOYEES RELATED EXPENDITURE,1,Human Resources,26,AGENCY WORKERS,1050,10/10/2014,504235,5773.49 ,Revenue,BUZZ PEOPLE RECRUITMENT LTD,07908887
Fareham Borough Council,http://statistics.data.gov.uk/id/local-authority/24UE,ENVIRONMENT AND REGULATORY SER,BV03,WASTE COLLECTION,BV03G,DEPT STREETSCENE,EMPLOYEES RELATED EXPENDITURE,1,Human Resources,26,AGENCY WORKERS,1050,10/10/2014,504235,4196.94 ,Revenue,BUZZ PEOPLE RECRUITMENT LTD,07908887
Fareham Borough Council,http://statistics.data.gov.uk/id/local-authority/24UE,ENVIRONMENT AND REGULATORY SER,BV03,STREET CLEANSING,BV03F,DEPT STREETSCENE,SUPPLIES & SERVICES,4,Human Resources,26,POP DEFAULT ACCOUNT,4XXX,24/10/2014,504236,1293.52 ,Revenue,BUZZ PEOPLE RECRUITMENT LTD,07908887
Fareham Borough Council,http://statistics.data.gov.uk/id/local-authority/24UE,OTHER REVENUE ACCOUNTS,RV,CONTRACT SERVICES D.S.O.,RV14,DEPT STREETSCENE,SUPPLIES & SERVICES,4,Human Resources,26,POP DEFAULT ACCOUNT,4XXX,24/10/2014,504236,131.10 ,Revenue,BUZZ PEOPLE RECRUITMENT LTD,07908887
Fareham Borough Council,http://statistics.data.gov.uk/id/local-authority/24UE,OTHER REVENUE ACCOUNTS,RV,CONTRACT SERVICES D.S.O.,RV14,DEPT STREETSCENE,EMPLOYEES RELATED EXPENDITURE,1,Human Resources,26,AGENCY WORKERS,1050,24/10/2014,504236,4531.69 ,Revenue,BUZZ PEOPLE RECRUITMENT LTD,07908887
Fareham Borough Council,http://statistics.data.gov.uk/id/local-authority/24UE,FINANCING & INVESTMENT I&E,BVB02,INVESTMENT PROPERTIES,BVB170,DEPT of FINANCE and RESOURCES,EMPLOYEES RELATED EXPENDITURE,1,Human Resources,26,AGENCY WORKERS,1050,03/10/2014,504237,94.50 ,Revenue,BUZZ PEOPLE RECRUITMENT LTD,07908887
Fareham Borough Council,http://statistics.data.gov.uk/id/local-authority/24UE,CULTURAL AND RELATED SERVICES,BV09,RECREATION AND SPORT,BV09B,DEPT of COMMUNITY and STREETSCENE,EMPLOYEES RELATED EXPENDITURE,1,Human Resources,26,AGENCY WORKERS,1050,03/10/2014,504237,67.50 ,Revenue,BUZZ PEOPLE RECRUITMENT LTD,07908887
Fareham Borough Council,http://statistics.data.gov.uk/id/local-authority/24UE,CULTURAL AND RELATED SERVICES,BV09,RECREATION AND SPORT,BV09B,DEPT of COMMUNITY and STREETSCENE,EMPLOYEES RELATED EXPENDITURE,1,Human Resources,26,AGENCY WORKERS,1050,03/10/2014,504237,67.50 ,Revenue,BUZZ PEOPLE RECRUITMENT LTD,07908887
Fareham Borough Council,http://statistics.data.gov.uk/id/local-authority/24UE,ENVIRONMENT AND REGULATORY SER,BV03,ENVIRONMENTAL HEALTH,BV03C,DEPT STREETSCENE,EMPLOYEES RELATED EXPENDITURE,1,Human Resources,26,AGENCY WORKERS,1050,03/10/2014,504237,67.50 ,Revenue,BUZZ PEOPLE RECRUITMENT LTD,07908887
Fareham Borough Council,http://statistics.data.gov.uk/id/local-authority/24UE,HOUSING REVENUE ACCOUNT,BV06,GENERAL ADMINISTRATION EXPENSE,5021,DEPT of COMMUNITY and STREETSCENE,EMPLOYEES RELATED EXPENDITURE,1,Human Resources,26,AGENCY WORKERS,1050,03/10/2014,504237,850.50 ,Revenue,BUZZ PEOPLE RECRUITMENT LTD,07908887
Fareham Borough Council,http://statistics.data.gov.uk/id/local-authority/24UE,OTHER REVENUE ACCOUNTS,RV,NON WORK GROUP HOLDING ACCOUNT,RV18,DEPT of FINANCE and RESOURCES,EMPLOYEES RELATED EXPENDITURE,1,Human Resources,26,AGENCY WORKERS,1050,03/10/2014,504237,148.50 ,Revenue,BUZZ PEOPLE RECRUITMENT LTD,07908887
Fareham Borough Council,http://statistics.data.gov.uk/id/local-authority/24UE,OTHER REVENUE ACCOUNTS,RV,NON WORK GROUP HOLDING ACCOUNT,RV18,DEPT of FINANCE and RESOURCES,EMPLOYEES RELATED EXPENDITURE,1,Human Resources,26,AGENCY WORKERS,1050,03/10/2014,504237,54.00 ,Revenue,BUZZ PEOPLE RECRUITMENT LTD,07908887
Fareham Borough Council,http://statistics.data.gov.uk/id/local-authority/24UE,OTHER REVENUE ACCOUNTS,RV,CONTRACT SERVICES D.S.O.,RV14,DEPT STREETSCENE,EMPLOYEES RELATED EXPENDITURE,1,Human Resources,26,AGENCY WORKERS,1050,24/10/2014,504240,2161.81 ,Revenue,BUZZ PEOPLE RECRUITMENT LTD,07908887
Fareham Borough Council,http://statistics.data.gov.uk/id/local-authority/24UE,CORPORATE & DEMOCRATIC CORE,BV07A,CORPORATE MANAGEMENT,BV07AB,DEPT of FINANCE and RESOURCES,SUPPLIES & SERVICES,4,Consultancy,15,CONSULTANTS FEES,4401,03/10/2014,504690,-1705.60 ,Revenue,KPMG LLP,
Fareham Borough Council,http://statistics.data.gov.uk/id/local-authority/24UE,CORPORATE & DEMOCRATIC CORE,BV07A,CORPORATE MANAGEMENT,BV07AB,DEPT of FINANCE and RESOURCES,SUPPLIES & SERVICES,4,Consultancy,15,CONSULTANTS FEES,4401,03/10/2014,504691,1705.60 ,Revenue,KPMG LLP,
Fareham Borough Council,http://statistics.data.gov.uk/id/local-authority/24UE,CORPORATE & DEMOCRATIC CORE,BV07A,CORPORATE MANAGEMENT,BV07AB,DEPT of FINANCE and RESOURCES,SUPPLIES & SERVICES,4,Consultancy,15,CONSULTANTS FEES,4401,03/10/2014,504692,1648.31 ,Revenue,KPMG LLP,
Fareham Borough Council,http://statistics.data.gov.uk/id/local-authority/24UE,ENVIRONMENT AND REGULATORY SER,BV03,CEMETERIES CREM & MORTUARY,BV03A,DEPT STREETSCENE,PREMISES RELATED EXPENDITURE,2,Building Construction Materials,10,R & M OF BUILDINGS,2000,03/10/2014,504875,25.57 ,Revenue,TSG BUILDING SERVICES,03908728
Fareham Borough Council,http://statistics.data.gov.uk/id/local-authority/24UE,CULTURAL AND RELATED SERVICES,BV09,RECREATION AND SPORT,BV09B,DEPT of COMMUNITY and STREETSCENE,PREMISES RELATED EXPENDITURE,2,Building Construction Materials,10,R & M OF BUILDINGS,2000,03/10/2014,504875,95.21 ,Revenue,TSG BUILDING SERVICES,03908728
Fareham Borough Council,http://statistics.data.gov.uk/id/local-authority/24UE,CULTURAL AND RELATED SERVICES,BV09,RECREATION AND SPORT,BV09B,DEPT of COMMUNITY and STREETSCENE,PREMISES RELATED EXPENDITURE,2,Building Construction Materials,10,R & M OF BUILDINGS,2000,03/10/2014,504875,95.21 ,Revenue,TSG BUILDING SERVICES,03908728
Fareham Borough Council,http://statistics.data.gov.uk/id/local-authority/24UE,HOUSING REVENUE ACCOUNT,BV06,CYCLICAL REPAIRS/MAINTENANCE,5903,DEPT STREETSCENE,PREMISES RELATED EXPENDITURE,2,Building Construction Materials,10,GAS SERVICING & ASSOC REPAIRS,2029,03/10/2014,504875,19653.15 ,Revenue,TSG BUILDING SERVICES,03908728
Fareham Borough Council,http://statistics.data.gov.uk/id/local-authority/24UE,OTHER REVENUE ACCOUNTS,RV,CONTRACT SERVICES D.S.O.,RV14,DEPT of COMMUNITY and STREETSCENE,PREMISES RELATED EXPENDITURE,2,Building Construction Materials,10,R & M OF BUILDINGS,2000,03/10/2014,504875,92.57 ,Revenue,TSG BUILDING SERVICES,03908728
Fareham Borough Council,http://statistics.data.gov.uk/id/local-authority/24UE,OTHER REVENUE ACCOUNTS,RV,NON WORK GROUP HOLDING ACCOUNT,RV18,DEPT of FINANCE and RESOURCES,PREMISES RELATED EXPENDITURE,2,Building Construction Materials,10,R & M OF FIXED PLANT,2040,03/10/2014,504875,70.53 ,Revenue,TSG BUILDING SERVICES,03908728
Fareham Borough Council,http://statistics.data.gov.uk/id/local-authority/24UE,OTHER REVENUE ACCOUNTS,RV,NON WORK GROUP HOLDING ACCOUNT,RV18,DEPT of FINANCE and RESOURCES,PREMISES RELATED EXPENDITURE,2,Building Construction Materials,10,R & M OF FIXED PLANT,2040,03/10/2014,504875,91.69 ,Revenue,TSG BUILDING SERVICES,03908728
Fareham Borough Council,http://statistics.data.gov.uk/id/local-authority/24UE,CULTURAL AND RELATED SERVICES,BV09,RECREATION AND SPORT,BV09B,DEPT STREETSCENE,PREMISES RELATED EXPENDITURE,2,Horticultural,24,R&M OF TREE PRESERVATION,2063,10/10/2014,504913,171.14 ,Revenue,CEDAR TREE SURGEONS,
Fareham Borough Council,http://statistics.data.gov.uk/id/local-authority/24UE,CULTURAL AND RELATED SERVICES,BV09,RECREATION AND SPORT,BV09B,DEPT STREETSCENE,PREMISES RELATED EXPENDITURE,2,Horticultural,24,R&M OF TREE PRESERVATION,2063,10/10/2014,504913,712.50 ,Revenue,CEDAR TREE SURGEONS,
Fareham Borough Council,http://statistics.data.gov.uk/id/local-authority/24UE,CULTURAL AND RELATED SERVICES,BV09,RECREATION AND SPORT,BV09B,DEPT STREETSCENE,PREMISES RELATED EXPENDITURE,2,Horticultural,24,R&M OF TREE PRESERVATION,2063,10/10/2014,504913,680.80 ,Revenue,CEDAR TREE SURGEONS,
Fareham Borough Council,http://statistics.data.gov.uk/id/local-authority/24UE,CULTURAL AND RELATED SERVICES,BV09,RECREATION AND SPORT,BV09B,DEPT STREETSCENE,PREMISES RELATED EXPENDITURE,2,Horticultural,24,R&M OF TREE PRESERVATION,2063,10/10/2014,504913,431.66 ,Revenue,CEDAR TREE SURGEONS,
Fareham Borough Council,http://statistics.data.gov.uk/id/local-authority/24UE,CULTURAL AND RELATED SERVICES,BV09,RECREATION AND SPORT,BV09B,DEPT STREETSCENE,PREMISES RELATED EXPENDITURE,2,Horticultural,24,R&M OF TREE PRESERVATION,2063,10/10/2014,504913,187.50 ,Revenue,CEDAR TREE SURGEONS,
Fareham Borough Council,http://statistics.data.gov.uk/id/local-authority/24UE,CULTURAL AND RELATED SERVICES,BV09,RECREATION AND SPORT,BV09B,DEPT STREETSCENE,PREMISES RELATED EXPENDITURE,2,Horticultural,24,R&M OF TREE PRESERVATION,2063,10/10/2014,504913,187.50 ,Revenue,CEDAR TREE SURGEONS,
Fareham Borough Council,http://statistics.data.gov.uk/id/local-authority/24UE,CULTURAL AND RELATED SERVICES,BV09,RECREATION AND SPORT,BV09B,DEPT STREETSCENE,PREMISES RELATED EXPENDITURE,2,Horticultural,24,R&M OF TREE PRESERVATION,2063,10/10/2014,504913,81.66 ,Revenue,CEDAR TREE SURGEONS,
Fareham Borough Council,http://statistics.data.gov.uk/id/local-authority/24UE,CULTURAL AND RELATED SERVICES,BV09,RECREATION AND SPORT,BV09B,DEPT STREETSCENE,PREMISES RELATED EXPENDITURE,2,Horticultural,24,R&M OF TREE PRESERVATION,2063,10/10/2014,504913,154.63 ,Revenue,CEDAR TREE SURGEONS,
Fareham Borough Council,http://statistics.data.gov.uk/id/local-authority/24UE,CULTURAL AND RELATED SERVICES,BV09,RECREATION AND SPORT,BV09B,DEPT STREETSCENE,PREMISES RELATED EXPENDITURE,2,Horticultural,24,R&M OF TREE PRESERVATION,2063,10/10/2014,504913,81.66 ,Revenue,CEDAR TREE SURGEONS,
Fareham Borough Council,http://statistics.data.gov.uk/id/local-authority/24UE,CULTURAL AND RELATED SERVICES,BV09,RECREATION AND SPORT,BV09B,DEPT STREETSCENE,PREMISES RELATED EXPENDITURE,2,Horticultural,24,R&M OF TREE PRESERVATION,2063,10/10/2014,504913,789.89 ,Revenue,CEDAR TREE SURGEONS,
Fareham Borough Council,http://statistics.data.gov.uk/id/local-authority/24UE,CULTURAL AND RELATED SERVICES,BV09,RECREATION AND SPORT,BV09B,DEPT STREETSCENE,PREMISES RELATED EXPENDITURE,2,Horticultural,24,R&M OF TREE PRESERVATION,2063,10/10/2014,504913,1235.49 ,Revenue,CEDAR TREE SURGEONS,
Fareham Borough Council,http://statistics.data.gov.uk/id/local-authority/24UE,CULTURAL AND RELATED SERVICES,BV09,RECREATION AND SPORT,BV09B,DEPT of COMMUNITY and STREETSCENE,PREMISES RELATED EXPENDITURE,2,Horticultural,24,R&M OF TREE PRESERVATION,2063,10/10/2014,504913,433.50 ,Revenue,CEDAR TREE SURGEONS,
Fareham Borough Council,http://statistics.data.gov.uk/id/local-authority/24UE,HOUSING REVENUE ACCOUNT,BV06,MAINT OF LAWNS VERGES ETC,5030,DEPT of COMMUNITY and STREETSCENE,PREMISES RELATED EXPENDITURE,2,Horticultural,24,R&M OF TREE PRESERVATION,2063,10/10/2014,504913,238.04 ,Revenue,CEDAR TREE SURGEONS,
Fareham Borough Council,http://statistics.data.gov.uk/id/local-authority/24UE,ENVIRONMENT AND REGULATORY SER,BV03,STREET CLEANSING,BV03F,DEPT STREETSCENE,SUPPLIES & SERVICES,4,Cleaning & Janitorial,13,TOOLS & EQUIPMENT,4002,03/10/2014,504914,3378.82 ,Revenue,POLYSTAR PLASTICS LTD,2690339
Fareham Borough Council,http://statistics.data.gov.uk/id/local-authority/24UE,ENVIRONMENT AND REGULATORY SER,BV03,STREET CLEANSING,BV03F,DEPT STREETSCENE,SUPPLIES & SERVICES,4,Cleaning & Janitorial,13,TOOLS & EQUIPMENT,4002,03/10/2014,504917,1635.77 ,Revenue,POLYSTAR PLASTICS LTD,2690339
Fareham Borough Council,http://statistics.data.gov.uk/id/local-authority/24UE,ENVIRONMENT AND REGULATORY SER,BV03,STREET CLEANSING,BV03F,DEPT STREETSCENE,SUPPLIES & SERVICES,4,Cleaning & Janitorial,13,TOOLS & EQUIPMENT,4002,03/10/2014,504917,53.64 ,Revenue,POLYSTAR PLASTICS LTD,2690339
Fareham Borough Council,http://statistics.data.gov.uk/id/local-authority/24UE,ENVIRONMENT AND REGULATORY SER,BV03,STREET CLEANSING,BV03F,DEPT STREETSCENE,SUPPLIES & SERVICES,4,Cleaning & Janitorial,13,TOOLS & EQUIPMENT,4002,03/10/2014,504918,1689.41 ,Revenue,POLYSTAR PLASTICS LTD,2690339
Fareham Borough Council,http://statistics.data.gov.uk/id/local-authority/24UE,ENVIRONMENT AND REGULATORY SER,BV03,STREET CLEANSING,BV03F,DEPT STREETSCENE,TRANSPORT RELATED EXPENDITURE,3,Vehicle Management,38,SERVICING,3027,03/10/2014,504950,515.00 ,Revenue,TENNANT GREEN MACHINE,SC042491
Fareham Borough Council,http://statistics.data.gov.uk/id/local-authority/24UE,OTHER REVENUE ACCOUNTS,RV,CONTRACT SERVICES D.S.O.,RV14,DEPT STREETSCENE,SUPPLIES & SERVICES,4,Sports & Playground Equipment & Maintenance,33,SUB-CONTRACTORS CHARGES,4432,17/10/2014,504955,920.00 ,Revenue,G.B. SPORT & LEISURE,07524601
Fareham Borough Council,http://statistics.data.gov.uk/id/local-authority/24UE,ENVIRONMENT AND REGULATORY SER,BV03,WASTE COLLECTION,BV03G,DEPT STREETSCENE,SUPPLIES & SERVICES,4,Environmental Services,18,FURNITURE & EQUIPT. PURCHASES,4000,10/10/2014,504986,7757.40 ,Revenue,ENVIRONMENTAL SOLUTIONS EUROPE (ESE),02327763
Fareham Borough Council,http://statistics.data.gov.uk/id/local-authority/24UE,ENVIRONMENT AND REGULATORY SER,BV03,STREET CLEANSING,BV03F,DEPT STREETSCENE,SUPPLIES & SERVICES,4,Cleaning & Janitorial,13,TOOLS & EQUIPMENT,4002,03/10/2014,505082,509.50 ,Revenue,POLYSTAR PLASTICS LTD,2690339
Fareham Borough Council,http://statistics.data.gov.uk/id/local-authority/24UE,BALANCE SHEET,BS,BAL. SHEET - D.S.O.,BS1,BAL. SHEET - D.S.O.,TOTAL ASSETS LESS LIABILITIES,BS100,Vehicle Management,38,MATERIALS SUSPENSE ACCOUNT (VE,A016,03/10/2014,505083,18093.10 ,Balance Sheet,WESSEX PETROLEUM LTD,01024472
Fareham Borough Council,http://statistics.data.gov.uk/id/local-authority/24UE,OTHER REVENUE ACCOUNTS,RV,CONTRACT SERVICES D.S.O.,RV14,DEPT STREETSCENE,SUPPLIES & SERVICES,4,Building Construction Materials,10,MATERIALS (OPERATIONAL),4007,03/10/2014,505118,20.15 ,Revenue,MULTI TRADE SUPPLIES LIMITED,06806741
Fareham Borough Council,http://statistics.data.gov.uk/id/local-authority/24UE,OTHER REVENUE ACCOUNTS,RV,CONTRACT SERVICES D.S.O.,RV14,DEPT STREETSCENE,SUPPLIES & SERVICES,4,Building Construction Materials,10,MATERIALS (OPERATIONAL),4007,03/10/2014,505118,9.62 ,Revenue,MULTI TRADE SUPPLIES LIMITED,06806741
Fareham Borough Council,http://statistics.data.gov.uk/id/local-authority/24UE,OTHER REVENUE ACCOUNTS,RV,CONTRACT SERVICES D.S.O.,RV14,DEPT STREETSCENE,SUPPLIES & SERVICES,4,Building Construction Materials,10,MATERIALS (OPERATIONAL),4007,03/10/2014,505118,1.46 ,Revenue,MULTI TRADE SUPPLIES LIMITED,06806741
Fareham Borough Council,http://statistics.data.gov.uk/id/local-authority/24UE,OTHER REVENUE ACCOUNTS,RV,CONTRACT SERVICES D.S.O.,RV14,DEPT STREETSCENE,SUPPLIES & SERVICES,4,Building Construction Materials,10,MATERIALS (OPERATIONAL),4007,03/10/2014,505118,1.95 ,Revenue,MULTI TRADE SUPPLIES LIMITED,06806741
Fareham Borough Council,http://statistics.data.gov.uk/id/local-authority/24UE,OTHER REVENUE ACCOUNTS,RV,CONTRACT SERVICES D.S.O.,RV14,DEPT STREETSCENE,SUPPLIES & SERVICES,4,Building Construction Materials,10,MATERIALS (OPERATIONAL),4007,03/10/2014,505118,2.02 ,Revenue,MULTI TRADE SUPPLIES LIMITED,06806741
Fareham Borough Council,http://statistics.data.gov.uk/id/local-authority/24UE,OTHER REVENUE ACCOUNTS,RV,CONTRACT SERVICES D.S.O.,RV14,DEPT STREETSCENE,SUPPLIES & SERVICES,4,Building Construction Materials,10,MATERIALS (OPERATIONAL),4007,03/10/2014,505118,0.75 ,Revenue,MULTI TRADE SUPPLIES LIMITED,06806741
Fareham Borough Council,http://statistics.data.gov.uk/id/local-authority/24UE,OTHER REVENUE ACCOUNTS,RV,CONTRACT SERVICES D.S.O.,RV14,DEPT STREETSCENE,SUPPLIES & SERVICES,4,Building Construction Materials,10,MATERIALS (OPERATIONAL),4007,03/10/2014,505118,1.43 ,Revenue,MULTI TRADE SUPPLIES LIMITED,06806741
Fareham Borough Council,http://statistics.data.gov.uk/id/local-authority/24UE,OTHER REVENUE ACCOUNTS,RV,CONTRACT SERVICES D.S.O.,RV14,DEPT STREETSCENE,SUPPLIES & SERVICES,4,Building Construction Materials,10,MATERIALS (OPERATIONAL),4007,03/10/2014,505118,4.16 ,Revenue,MULTI TRADE SUPPLIES LIMITED,06806741
Fareham Borough Council,http://statistics.data.gov.uk/id/local-authority/24UE,OTHER REVENUE ACCOUNTS,RV,CONTRACT SERVICES D.S.O.,RV14,DEPT STREETSCENE,SUPPLIES & SERVICES,4,Building Construction Materials,10,MATERIALS (OPERATIONAL),4007,03/10/2014,505118,43.15 ,Revenue,MULTI TRADE SUPPLIES LIMITED,06806741
Fareham Borough Council,http://statistics.data.gov.uk/id/local-authority/24UE,OTHER REVENUE ACCOUNTS,RV,CONTRACT SERVICES D.S.O.,RV14,DEPT STREETSCENE,SUPPLIES & SERVICES,4,Building Construction Materials,10,MATERIALS (OPERATIONAL),4007,03/10/2014,505118,3.80 ,Revenue,MULTI TRADE SUPPLIES LIMITED,06806741
Fareham Borough Council,http://statistics.data.gov.uk/id/local-authority/24UE,OTHER REVENUE ACCOUNTS,RV,CONTRACT SERVICES D.S.O.,RV14,DEPT STREETSCENE,SUPPLIES & SERVICES,4,Building Construction Materials,10,MATERIALS (OPERATIONAL),4007,03/10/2014,505118,6.30 ,Revenue,MULTI TRADE SUPPLIES LIMITED,06806741
Fareham Borough Council,http://statistics.data.gov.uk/id/local-authority/24UE,OTHER REVENUE ACCOUNTS,RV,CONTRACT SERVICES D.S.O.,RV14,DEPT STREETSCENE,SUPPLIES & SERVICES,4,Building Construction Materials,10,MATERIALS (OPERATIONAL),4007,03/10/2014,505118,2.86 ,Revenue,MULTI TRADE SUPPLIES LIMITED,06806741
Fareham Borough Council,http://statistics.data.gov.uk/id/local-authority/24UE,OTHER REVENUE ACCOUNTS,RV,CONTRACT SERVICES D.S.O.,RV14,DEPT STREETSCENE,SUPPLIES & SERVICES,4,Building Construction Materials,10,MATERIALS (OPERATIONAL),4007,03/10/2014,505118,42.38 ,Revenue,MULTI TRADE SUPPLIES LIMITED,06806741
Fareham Borough Council,http://statistics.data.gov.uk/id/local-authority/24UE,OTHER REVENUE ACCOUNTS,RV,CONTRACT SERVICES D.S.O.,RV14,DEPT STREETSCENE,SUPPLIES & SERVICES,4,Building Construction Materials,10,MATERIALS (OPERATIONAL),4007,03/10/2014,505118,89.10 ,Revenue,MULTI TRADE SUPPLIES LIMITED,06806741
Fareham Borough Council,http://statistics.data.gov.uk/id/local-authority/24UE,OTHER REVENUE ACCOUNTS,RV,CONTRACT SERVICES D.S.O.,RV14,DEPT STREETSCENE,SUPPLIES & SERVICES,4,Building Construction Materials,10,MATERIALS (OPERATIONAL),4007,03/10/2014,505118,538.15 ,Revenue,MULTI TRADE SUPPLIES LIMITED,06806741
Fareham Borough Council,http://statistics.data.gov.uk/id/local-authority/24UE,OTHER REVENUE ACCOUNTS,RV,CONTRACT SERVICES D.S.O.,RV14,DEPT STREETSCENE,SUPPLIES & SERVICES,4,Building Construction Materials,10,MATERIALS (OPERATIONAL),4007,03/10/2014,505118,321.61 ,Revenue,MULTI TRADE SUPPLIES LIMITED,06806741
Fareham Borough Council,http://statistics.data.gov.uk/id/local-authority/24UE,OTHER REVENUE ACCOUNTS,RV,CONTRACT SERVICES D.S.O.,RV14,DEPT STREETSCENE,SUPPLIES & SERVICES,4,Building Construction Materials,10,MATERIALS (OPERATIONAL),4007,03/10/2014,505118,3.04 ,Revenue,MULTI TRADE SUPPLIES LIMITED,06806741
Fareham Borough Council,http://statistics.data.gov.uk/id/local-authority/24UE,OTHER REVENUE ACCOUNTS,RV,CONTRACT SERVICES D.S.O.,RV14,DEPT STREETSCENE,SUPPLIES & SERVICES,4,Building Construction Materials,10,MATERIALS (OPERATIONAL),4007,03/10/2014,505118,12.58 ,Revenue,MULTI TRADE SUPPLIES LIMITED,06806741
Fareham Borough Council,http://statistics.data.gov.uk/id/local-authority/24UE,OTHER REVENUE ACCOUNTS,RV,CONTRACT SERVICES D.S.O.,RV14,DEPT STREETSCENE,SUPPLIES & SERVICES,4,Building Construction Materials,10,MATERIALS (OPERATIONAL),4007,03/10/2014,505118,19.32 ,Revenue,MULTI TRADE SUPPLIES LIMITED,06806741
Fareham Borough Council,http://statistics.data.gov.uk/id/local-authority/24UE,OTHER REVENUE ACCOUNTS,RV,CONTRACT SERVICES D.S.O.,RV14,DEPT STREETSCENE,SUPPLIES & SERVICES,4,Building Construction Materials,10,MATERIALS (OPERATIONAL),4007,03/10/2014,505118,1.70 ,Revenue,MULTI TRADE SUPPLIES LIMITED,06806741
Fareham Borough Council,http://statistics.data.gov.uk/id/local-authority/24UE,OTHER REVENUE ACCOUNTS,RV,CONTRACT SERVICES D.S.O.,RV14,DEPT STREETSCENE,SUPPLIES & SERVICES,4,Building Construction Materials,10,MATERIALS (OPERATIONAL),4007,03/10/2014,505118,44.85 ,Revenue,MULTI TRADE SUPPLIES LIMITED,06806741
Fareham Borough Council,http://statistics.data.gov.uk/id/local-authority/24UE,OTHER REVENUE ACCOUNTS,RV,CONTRACT SERVICES D.S.O.,RV14,DEPT STREETSCENE,SUPPLIES & SERVICES,4,Building Construction Materials,10,MATERIALS (OPERATIONAL),4007,03/10/2014,505118,4.28 ,Revenue,MULTI TRADE SUPPLIES LIMITED,06806741
Fareham Borough Council,http://statistics.data.gov.uk/id/local-authority/24UE,OTHER REVENUE ACCOUNTS,RV,CONTRACT SERVICES D.S.O.,RV14,DEPT STREETSCENE,SUPPLIES & SERVICES,4,Building Construction Materials,10,MATERIALS (OPERATIONAL),4007,03/10/2014,505118,8.53 ,Revenue,MULTI TRADE SUPPLIES LIMITED,06806741
Fareham Borough Council,http://statistics.data.gov.uk/id/local-authority/24UE,OTHER REVENUE ACCOUNTS,RV,CONTRACT SERVICES D.S.O.,RV14,DEPT STREETSCENE,SUPPLIES & SERVICES,4,Building Construction Materials,10,MATERIALS (OPERATIONAL),4007,03/10/2014,505118,4.19 ,Revenue,MULTI TRADE SUPPLIES LIMITED,06806741
Fareham Borough Council,http://statistics.data.gov.uk/id/local-authority/24UE,OTHER REVENUE ACCOUNTS,RV,CONTRACT SERVICES D.S.O.,RV14,DEPT STREETSCENE,SUPPLIES & SERVICES,4,Building Construction Materials,10,MATERIALS (OPERATIONAL),4007,03/10/2014,505118,49.50 ,Revenue,MULTI TRADE SUPPLIES LIMITED,06806741
Fareham Borough Council,http://statistics.data.gov.uk/id/local-authority/24UE,OTHER REVENUE ACCOUNTS,RV,CONTRACT SERVICES D.S.O.,RV14,DEPT STREETSCENE,SUPPLIES & SERVICES,4,Building Construction Materials,10,MATERIALS (OPERATIONAL),4007,03/10/2014,505118,10.92 ,Revenue,MULTI TRADE SUPPLIES LIMITED,06806741
Fareham Borough Council,http://statistics.data.gov.uk/id/local-authority/24UE,OTHER REVENUE ACCOUNTS,RV,CONTRACT SERVICES D.S.O.,RV14,DEPT STREETSCENE,SUPPLIES & SERVICES,4,Building Construction Materials,10,MATERIALS (OPERATIONAL),4007,03/10/2014,505118,4.68 ,Revenue,MULTI TRADE SUPPLIES LIMITED,06806741
Fareham Borough Council,http://statistics.data.gov.uk/id/local-authority/24UE,OTHER REVENUE ACCOUNTS,RV,CONTRACT SERVICES D.S.O.,RV14,DEPT STREETSCENE,SUPPLIES & SERVICES,4,Building Construction Materials,10,MATERIALS (OPERATIONAL),4007,03/10/2014,505118,2.34 ,Revenue,MULTI TRADE SUPPLIES LIMITED,06806741
Fareham Borough Council,http://statistics.data.gov.uk/id/local-authority/24UE,OTHER REVENUE ACCOUNTS,RV,CONTRACT SERVICES D.S.O.,RV14,DEPT STREETSCENE,SUPPLIES & SERVICES,4,Building Construction Materials,10,MATERIALS (OPERATIONAL),4007,03/10/2014,505118,2.02 ,Revenue,MULTI TRADE SUPPLIES LIMITED,06806741
Fareham Borough Council,http://statistics.data.gov.uk/id/local-authority/24UE,OTHER REVENUE ACCOUNTS,RV,CONTRACT SERVICES D.S.O.,RV14,DEPT STREETSCENE,SUPPLIES & SERVICES,4,Building Construction Materials,10,MATERIALS (OPERATIONAL),4007,03/10/2014,505118,1.51 ,Revenue,MULTI TRADE SUPPLIES LIMITED,06806741
Fareham Borough Council,http://statistics.data.gov.uk/id/local-authority/24UE,OTHER REVENUE ACCOUNTS,RV,CONTRACT SERVICES D.S.O.,RV14,DEPT STREETSCENE,SUPPLIES & SERVICES,4,Building Construction Materials,10,MATERIALS (OPERATIONAL),4007,03/10/2014,505118,0.83 ,Revenue,MULTI TRADE SUPPLIES LIMITED,06806741
Fareham Borough Council,http://statistics.data.gov.uk/id/local-authority/24UE,OTHER REVENUE ACCOUNTS,RV,CONTRACT SERVICES D.S.O.,RV14,DEPT STREETSCENE,SUPPLIES & SERVICES,4,Building Construction Materials,10,MATERIALS (OPERATIONAL),4007,03/10/2014,505118,10.92 ,Revenue,MULTI TRADE SUPPLIES LIMITED,06806741
Fareham Borough Council,http://statistics.data.gov.uk/id/local-authority/24UE,OTHER REVENUE ACCOUNTS,RV,CONTRACT SERVICES D.S.O.,RV14,DEPT STREETSCENE,SUPPLIES & SERVICES,4,Building Construction Materials,10,MATERIALS (OPERATIONAL),4007,03/10/2014,505118,2.34 ,Revenue,MULTI TRADE SUPPLIES LIMITED,06806741
Fareham Borough Council,http://statistics.data.gov.uk/id/local-authority/24UE,OTHER REVENUE ACCOUNTS,RV,CONTRACT SERVICES D.S.O.,RV14,DEPT STREETSCENE,SUPPLIES & SERVICES,4,Building Construction Materials,10,MATERIALS (OPERATIONAL),4007,03/10/2014,505118,74.36 ,Revenue,MULTI TRADE SUPPLIES LIMITED,06806741
Fareham Borough Council,http://statistics.data.gov.uk/id/local-authority/24UE,OTHER REVENUE ACCOUNTS,RV,CONTRACT SERVICES D.S.O.,RV14,DEPT STREETSCENE,SUPPLIES & SERVICES,4,Building Construction Materials,10,MATERIALS (OPERATIONAL),4007,03/10/2014,505118,4.68 ,Revenue,MULTI TRADE SUPPLIES LIMITED,06806741
Fareham Borough Council,http://statistics.data.gov.uk/id/local-authority/24UE,OTHER REVENUE ACCOUNTS,RV,CONTRACT SERVICES D.S.O.,RV14,DEPT STREETSCENE,SUPPLIES & SERVICES,4,Building Construction Materials,10,MATERIALS (OPERATIONAL),4007,03/10/2014,505118,37.18 ,Revenue,MULTI TRADE SUPPLIES LIMITED,06806741
Fareham Borough Council,http://statistics.data.gov.uk/id/local-authority/24UE,OTHER REVENUE ACCOUNTS,RV,CONTRACT SERVICES D.S.O.,RV14,DEPT STREETSCENE,SUPPLIES & SERVICES,4,Building Construction Materials,10,MATERIALS (OPERATIONAL),4007,03/10/2014,505118,4.68 ,Revenue,MULTI TRADE SUPPLIES LIMITED,06806741
Fareham Borough Council,http://statistics.data.gov.uk/id/local-authority/24UE,CAPITAL PROGRAMME - HOUSING SERVICES,CP,RENOVATION OF L.A. DWELLINGS,CP10,CAPITAL - ENERGY CONSERVATION,PREMISES RELATED EXPENDITURE,2,Consultancy,15,R & M OF BUILDINGS,2000,03/10/2014,505535,38.00 ,Capital,GAS CONTRACT SERVICES LIMITED,3400365
Fareham Borough Council,http://statistics.data.gov.uk/id/local-authority/24UE,CAPITAL PROGRAMME - HOUSING SERVICES,CP,RENOVATION OF L.A. DWELLINGS,CP10,CAPITAL - ENERGY CONSERVATION,PREMISES RELATED EXPENDITURE,2,Consultancy,15,R & M OF BUILDINGS,2000,03/10/2014,505535,38.00 ,Capital,GAS CONTRACT SERVICES LIMITED,3400365
Fareham Borough Council,http://statistics.data.gov.uk/id/local-authority/24UE,CAPITAL PROGRAMME - HOUSING SERVICES,CP,RENOVATION OF L.A. DWELLINGS,CP10,CAPITAL - ENERGY CONSERVATION,PREMISES RELATED EXPENDITURE,2,Consultancy,15,R & M OF BUILDINGS,2000,03/10/2014,505535,38.00 ,Capital,GAS CONTRACT SERVICES LIMITED,3400365
Fareham Borough Council,http://statistics.data.gov.uk/id/local-authority/24UE,CAPITAL PROGRAMME - HOUSING SERVICES,CP,RENOVATION OF L.A. DWELLINGS,CP10,CAPITAL - ENERGY CONSERVATION,PREMISES RELATED EXPENDITURE,2,Consultancy,15,R & M OF BUILDINGS,2000,03/10/2014,505535,38.00 ,Capital,GAS CONTRACT SERVICES LIMITED,3400365
Fareham Borough Council,http://statistics.data.gov.uk/id/local-authority/24UE,CAPITAL PROGRAMME - HOUSING SERVICES,CP,RENOVATION OF L.A. DWELLINGS,CP10,CAPITAL - ENERGY CONSERVATION,PREMISES RELATED EXPENDITURE,2,Consultancy,15,R & M OF BUILDINGS,2000,03/10/2014,505535,38.00 ,Capital,GAS CONTRACT SERVICES LIMITED,3400365
Fareham Borough Council,http://statistics.data.gov.uk/id/local-authority/24UE,CAPITAL PROGRAMME - HOUSING SERVICES,CP,RENOVATION OF L.A. DWELLINGS,CP10,CAPITAL - ENERGY CONSERVATION,PREMISES RELATED EXPENDITURE,2,Consultancy,15,R & M OF BUILDINGS,2000,03/10/2014,505535,38.00 ,Capital,GAS CONTRACT SERVICES LIMITED,3400365
Fareham Borough Council,http://statistics.data.gov.uk/id/local-authority/24UE,CAPITAL PROGRAMME - HOUSING SERVICES,CP,RENOVATION OF L.A. DWELLINGS,CP10,CAPITAL - ENERGY CONSERVATION,PREMISES RELATED EXPENDITURE,2,Consultancy,15,R & M OF BUILDINGS,2000,03/10/2014,505535,38.00 ,Capital,GAS CONTRACT SERVICES LIMITED,3400365
Fareham Borough Council,http://statistics.data.gov.uk/id/local-authority/24UE,CAPITAL PROGRAMME - HOUSING SERVICES,CP,RENOVATION OF L.A. DWELLINGS,CP10,CAPITAL - ENERGY CONSERVATION,PREMISES RELATED EXPENDITURE,2,Consultancy,15,R & M OF BUILDINGS,2000,03/10/2014,505535,38.00 ,Capital,GAS CONTRACT SERVICES LIMITED,3400365
Fareham Borough Council,http://statistics.data.gov.uk/id/local-authority/24UE,CAPITAL PROGRAMME - HOUSING SERVICES,CP,RENOVATION OF L.A. DWELLINGS,CP10,CAPITAL - ENERGY CONSERVATION,PREMISES RELATED EXPENDITURE,2,Consultancy,15,R & M OF BUILDINGS,2000,03/10/2014,505535,38.00 ,Capital,GAS CONTRACT SERVICES LIMITED,3400365
Fareham Borough Council,http://statistics.data.gov.uk/id/local-authority/24UE,CAPITAL PROGRAMME - HOUSING SERVICES,CP,RENOVATION OF L.A. DWELLINGS,CP10,CAPITAL - ENERGY CONSERVATION,PREMISES RELATED EXPENDITURE,2,Consultancy,15,R & M OF BUILDINGS,2000,03/10/2014,505535,38.00 ,Capital,GAS CONTRACT SERVICES LIMITED,3400365
Fareham Borough Council,http://statistics.data.gov.uk/id/local-authority/24UE,CAPITAL PROGRAMME - HOUSING SERVICES,CP,RENOVATION OF L.A. DWELLINGS,CP10,CAPITAL - ENERGY CONSERVATION,PREMISES RELATED EXPENDITURE,2,Consultancy,15,R & M OF BUILDINGS,2000,03/10/2014,505535,38.00 ,Capital,GAS CONTRACT SERVICES LIMITED,3400365
Fareham Borough Council,http://statistics.data.gov.uk/id/local-authority/24UE,CAPITAL PROGRAMME - HOUSING SERVICES,CP,RENOVATION OF L.A. DWELLINGS,CP10,CAPITAL - ENERGY CONSERVATION,PREMISES RELATED EXPENDITURE,2,Consultancy,15,R & M OF BUILDINGS,2000,03/10/2014,505535,38.00 ,Capital,GAS CONTRACT SERVICES LIMITED,3400365
Fareham Borough Council,http://statistics.data.gov.uk/id/local-authority/24UE,CAPITAL PROGRAMME - HOUSING SERVICES,CP,RENOVATION OF L.A. DWELLINGS,CP10,CAPITAL - ENERGY CONSERVATION,PREMISES RELATED EXPENDITURE,2,Consultancy,15,R & M OF BUILDINGS,2000,03/10/2014,505535,38.00 ,Capital,GAS CONTRACT SERVICES LIMITED,3400365
Fareham Borough Council,http://statistics.data.gov.uk/id/local-authority/24UE,CAPITAL PROGRAMME - HOUSING SERVICES,CP,RENOVATION OF L.A. DWELLINGS,CP10,CAPITAL - ENERGY CONSERVATION,PREMISES RELATED EXPENDITURE,2,Consultancy,15,R & M OF BUILDINGS,2000,03/10/2014,505535,38.00 ,Capital,GAS CONTRACT SERVICES LIMITED,3400365
Fareham Borough Council,http://statistics.data.gov.uk/id/local-authority/24UE,CAPITAL PROGRAMME - HOUSING SERVICES,CP,RENOVATION OF L.A. DWELLINGS,CP10,CAPITAL - ENERGY CONSERVATION,PREMISES RELATED EXPENDITURE,2,Consultancy,15,R & M OF BUILDINGS,2000,03/10/2014,505535,38.00 ,Capital,GAS CONTRACT SERVICES LIMITED,3400365
Fareham Borough Council,http://statistics.data.gov.uk/id/local-authority/24UE,CAPITAL PROGRAMME - HOUSING SERVICES,CP,RENOVATION OF L.A. DWELLINGS,CP10,CAPITAL - ENERGY CONSERVATION,PREMISES RELATED EXPENDITURE,2,Consultancy,15,R & M OF BUILDINGS,2000,03/10/2014,505535,38.00 ,Capital,GAS CONTRACT SERVICES LIMITED,3400365
Fareham Borough Council,http://statistics.data.gov.uk/id/local-authority/24UE,CAPITAL PROGRAMME - HOUSING SERVICES,CP,RENOVATION OF L.A. DWELLINGS,CP10,CAPITAL - ENERGY CONSERVATION,PREMISES RELATED EXPENDITURE,2,Consultancy,15,R & M OF BUILDINGS,2000,03/10/2014,505535,38.00 ,Capital,GAS CONTRACT SERVICES LIMITED,3400365
Fareham Borough Council,http://statistics.data.gov.uk/id/local-authority/24UE,CAPITAL PROGRAMME - HOUSING SERVICES,CP,RENOVATION OF L.A. DWELLINGS,CP10,CAPITAL - ENERGY CONSERVATION,PREMISES RELATED EXPENDITURE,2,Consultancy,15,R & M OF BUILDINGS,2000,03/10/2014,505535,38.00 ,Capital,GAS CONTRACT SERVICES LIMITED,3400365
Fareham Borough Council,http://statistics.data.gov.uk/id/local-authority/24UE,CAPITAL PROGRAMME - HOUSING SERVICES,CP,RENOVATION OF L.A. DWELLINGS,CP10,CAPITAL - ENERGY CONSERVATION,PREMISES RELATED EXPENDITURE,2,Consultancy,15,R & M OF BUILDINGS,2000,03/10/2014,505535,38.00 ,Capital,GAS CONTRACT SERVICES LIMITED,3400365
Fareham Borough Council,http://statistics.data.gov.uk/id/local-authority/24UE,CAPITAL PROGRAMME - HOUSING SERVICES,CP,RENOVATION OF L.A. DWELLINGS,CP10,CAPITAL - ENERGY CONSERVATION,PREMISES RELATED EXPENDITURE,2,Consultancy,15,R & M OF BUILDINGS,2000,03/10/2014,505535,38.00 ,Capital,GAS CONTRACT SERVICES LIMITED,3400365
Fareham Borough Council,http://statistics.data.gov.uk/id/local-authority/24UE,CAPITAL PROGRAMME - HOUSING SERVICES,CP,RENOVATION OF L.A. DWELLINGS,CP10,CAPITAL - ENERGY CONSERVATION,PREMISES RELATED EXPENDITURE,2,Consultancy,15,R & M OF BUILDINGS,2000,17/10/2014,505536,38.00 ,Capital,GAS CONTRACT SERVICES LIMITED,3400365
Fareham Borough Council,http://statistics.data.gov.uk/id/local-authority/24UE,CAPITAL PROGRAMME - HOUSING SERVICES,CP,RENOVATION OF L.A. DWELLINGS,CP10,CAPITAL - ENERGY CONSERVATION,PREMISES RELATED EXPENDITURE,2,Consultancy,15,R & M OF BUILDINGS,2000,17/10/2014,505536,38.00 ,Capital,GAS CONTRACT SERVICES LIMITED,3400365
Fareham Borough Council,http://statistics.data.gov.uk/id/local-authority/24UE,CAPITAL PROGRAMME - HOUSING SERVICES,CP,RENOVATION OF L.A. DWELLINGS,CP10,CAPITAL - ENERGY CONSERVATION,PREMISES RELATED EXPENDITURE,2,Consultancy,15,R & M OF BUILDINGS,2000,17/10/2014,505536,38.00 ,Capital,GAS CONTRACT SERVICES LIMITED,3400365
Fareham Borough Council,http://statistics.data.gov.uk/id/local-authority/24UE,CAPITAL PROGRAMME - HOUSING SERVICES,CP,RENOVATION OF L.A. DWELLINGS,CP10,CAPITAL - ENERGY CONSERVATION,PREMISES RELATED EXPENDITURE,2,Consultancy,15,R & M OF BUILDINGS,2000,17/10/2014,505536,38.00 ,Capital,GAS CONTRACT SERVICES LIMITED,3400365
Fareham Borough Council,http://statistics.data.gov.uk/id/local-authority/24UE,CAPITAL PROGRAMME - HOUSING SERVICES,CP,RENOVATION OF L.A. DWELLINGS,CP10,CAPITAL - ENERGY CONSERVATION,PREMISES RELATED EXPENDITURE,2,Consultancy,15,R & M OF BUILDINGS,2000,17/10/2014,505536,38.00 ,Capital,GAS CONTRACT SERVICES LIMITED,3400365
Fareham Borough Council,http://statistics.data.gov.uk/id/local-authority/24UE,CAPITAL PROGRAMME - HOUSING SERVICES,CP,RENOVATION OF L.A. DWELLINGS,CP10,CAPITAL - ENERGY CONSERVATION,PREMISES RELATED EXPENDITURE,2,Consultancy,15,R & M OF BUILDINGS,2000,17/10/2014,505536,38.00 ,Capital,GAS CONTRACT SERVICES LIMITED,3400365
Fareham Borough Council,http://statistics.data.gov.uk/id/local-authority/24UE,CAPITAL PROGRAMME - HOUSING SERVICES,CP,RENOVATION OF L.A. DWELLINGS,CP10,CAPITAL - ENERGY CONSERVATION,PREMISES RELATED EXPENDITURE,2,Consultancy,15,R & M OF BUILDINGS,2000,17/10/2014,505536,38.00 ,Capital,GAS CONTRACT SERVICES LIMITED,3400365
Fareham Borough Council,http://statistics.data.gov.uk/id/local-authority/24UE,CAPITAL PROGRAMME - HOUSING SERVICES,CP,RENOVATION OF L.A. DWELLINGS,CP10,CAPITAL - ENERGY CONSERVATION,PREMISES RELATED EXPENDITURE,2,Consultancy,15,R & M OF BUILDINGS,2000,17/10/2014,505536,38.00 ,Capital,GAS CONTRACT SERVICES LIMITED,3400365
Fareham Borough Council,http://statistics.data.gov.uk/id/local-authority/24UE,CAPITAL PROGRAMME - HOUSING SERVICES,CP,RENOVATION OF L.A. DWELLINGS,CP10,CAPITAL - ENERGY CONSERVATION,PREMISES RELATED EXPENDITURE,2,Consultancy,15,R & M OF BUILDINGS,2000,17/10/2014,505536,38.00 ,Capital,GAS CONTRACT SERVICES LIMITED,3400365
Fareham Borough Council,http://statistics.data.gov.uk/id/local-authority/24UE,CAPITAL PROGRAMME - HOUSING SERVICES,CP,RENOVATION OF L.A. DWELLINGS,CP10,CAPITAL - ENERGY CONSERVATION,PREMISES RELATED EXPENDITURE,2,Consultancy,15,R & M OF BUILDINGS,2000,17/10/2014,505536,38.00 ,Capital,GAS CONTRACT SERVICES LIMITED,3400365
Fareham Borough Council,http://statistics.data.gov.uk/id/local-authority/24UE,CAPITAL PROGRAMME - HOUSING SERVICES,CP,RENOVATION OF L.A. DWELLINGS,CP10,CAPITAL - ENERGY CONSERVATION,PREMISES RELATED EXPENDITURE,2,Consultancy,15,R & M OF BUILDINGS,2000,17/10/2014,505536,38.00 ,Capital,GAS CONTRACT SERVICES LIMITED,3400365
Fareham Borough Council,http://statistics.data.gov.uk/id/local-authority/24UE,CAPITAL PROGRAMME - HOUSING SERVICES,CP,RENOVATION OF L.A. DWELLINGS,CP10,CAPITAL - ENERGY CONSERVATION,PREMISES RELATED EXPENDITURE,2,Consultancy,15,R & M OF BUILDINGS,2000,17/10/2014,505536,38.00 ,Capital,GAS CONTRACT SERVICES LIMITED,3400365
Fareham Borough Council,http://statistics.data.gov.uk/id/local-authority/24UE,CAPITAL PROGRAMME - HOUSING SERVICES,CP,RENOVATION OF L.A. DWELLINGS,CP10,CAPITAL - ENERGY CONSERVATION,PREMISES RELATED EXPENDITURE,2,Consultancy,15,R & M OF BUILDINGS,2000,17/10/2014,505536,38.00 ,Capital,GAS CONTRACT SERVICES LIMITED,3400365
Fareham Borough Council,http://statistics.data.gov.uk/id/local-authority/24UE,CAPITAL PROGRAMME - HOUSING SERVICES,CP,RENOVATION OF L.A. DWELLINGS,CP10,CAPITAL - ENERGY CONSERVATION,PREMISES RELATED EXPENDITURE,2,Consultancy,15,R & M OF BUILDINGS,2000,17/10/2014,505536,38.00 ,Capital,GAS CONTRACT SERVICES LIMITED,3400365
Fareham Borough Council,http://statistics.data.gov.uk/id/local-authority/24UE,CAPITAL PROGRAMME - HOUSING SERVICES,CP,RENOVATION OF L.A. DWELLINGS,CP10,CAPITAL - ENERGY CONSERVATION,PREMISES RELATED EXPENDITURE,2,Consultancy,15,R & M OF BUILDINGS,2000,17/10/2014,505536,38.00 ,Capital,GAS CONTRACT SERVICES LIMITED,3400365
Fareham Borough Council,http://statistics.data.gov.uk/id/local-authority/24UE,CAPITAL PROGRAMME - HOUSING SERVICES,CP,RENOVATION OF L.A. DWELLINGS,CP10,CAPITAL - ENERGY CONSERVATION,PREMISES RELATED EXPENDITURE,2,Consultancy,15,R & M OF BUILDINGS,2000,17/10/2014,505536,38.00 ,Capital,GAS CONTRACT SERVICES LIMITED,3400365
Fareham Borough Council,http://statistics.data.gov.uk/id/local-authority/24UE,CAPITAL PROGRAMME - HOUSING SERVICES,CP,RENOVATION OF L.A. DWELLINGS,CP10,CAPITAL - ENERGY CONSERVATION,PREMISES RELATED EXPENDITURE,2,Consultancy,15,R & M OF BUILDINGS,2000,17/10/2014,505536,38.00 ,Capital,GAS CONTRACT SERVICES LIMITED,3400365
Fareham Borough Council,http://statistics.data.gov.uk/id/local-authority/24UE,CAPITAL PROGRAMME - HOUSING SERVICES,CP,RENOVATION OF L.A. DWELLINGS,CP10,CAPITAL - ENERGY CONSERVATION,PREMISES RELATED EXPENDITURE,2,Consultancy,15,R & M OF BUILDINGS,2000,17/10/2014,505536,38.00 ,Capital,GAS CONTRACT SERVICES LIMITED,3400365
Fareham Borough Council,http://statistics.data.gov.uk/id/local-authority/24UE,CAPITAL PROGRAMME - HOUSING SERVICES,CP,RENOVATION OF L.A. DWELLINGS,CP10,CAPITAL - ENERGY CONSERVATION,PREMISES RELATED EXPENDITURE,2,Consultancy,15,R & M OF BUILDINGS,2000,17/10/2014,505536,38.00 ,Capital,GAS CONTRACT SERVICES LIMITED,3400365
Fareham Borough Council,http://statistics.data.gov.uk/id/local-authority/24UE,CAPITAL PROGRAMME - HOUSING SERVICES,CP,RENOVATION OF L.A. DWELLINGS,CP10,CAPITAL - ENERGY CONSERVATION,PREMISES RELATED EXPENDITURE,2,Consultancy,15,R & M OF BUILDINGS,2000,17/10/2014,505536,38.00 ,Capital,GAS CONTRACT SERVICES LIMITED,3400365
Fareham Borough Council,http://statistics.data.gov.uk/id/local-authority/24UE,CAPITAL PROGRAMME - HOUSING SERVICES,CP,RENOVATION OF L.A. DWELLINGS,CP10,CAPITAL - ENERGY CONSERVATION,PREMISES RELATED EXPENDITURE,2,Consultancy,15,R & M OF BUILDINGS,2000,17/10/2014,505536,38.00 ,Capital,GAS CONTRACT SERVICES LIMITED,3400365
Fareham Borough Council,http://statistics.data.gov.uk/id/local-authority/24UE,CAPITAL PROGRAMME - HOUSING SERVICES,CP,RENOVATION OF L.A. DWELLINGS,CP10,CAPITAL - ENERGY CONSERVATION,PREMISES RELATED EXPENDITURE,2,Consultancy,15,R & M OF BUILDINGS,2000,17/10/2014,505536,38.00 ,Capital,GAS CONTRACT SERVICES LIMITED,3400365
Fareham Borough Council,http://statistics.data.gov.uk/id/local-authority/24UE,ENVIRONMENT AND REGULATORY SER,BV03,WASTE COLLECTION,BV03G,DEPT STREETSCENE,SUPPLIES & SERVICES,4,Environmental Services,18,FURNITURE & EQUIPT. PURCHASES,4000,03/10/2014,505618,1992.00 ,Revenue,STRAIGHT PLC,02923140
Fareham Borough Council,http://statistics.data.gov.uk/id/local-authority/24UE,PLANNING SERVICES,BV13,ECONOMIC DEVELOPMENT,BV13E,DEPT of STRATEGIC PLANNING and ENVIRONMENT,SUPPLIES & SERVICES,4,Facilities & Management Services,19,EXTERNAL PRINTING,4310,17/10/2014,505624,860.00 ,Revenue,ADVENT COLOUR LIMITED,03579374
Fareham Borough Council,http://statistics.data.gov.uk/id/local-authority/24UE,PLANNING SERVICES,BV13,DEVELOPMENT CONTROL,BV13B,DEPT of STRATEGIC PLANNING and ENVIRONMENT,SUPPLIES & SERVICES,4,Information Communication Technology,27,COMPUTER SOFTWARE,4531,10/10/2014,505627,2500.00 ,Revenue,OCELLA,02837294
Fareham Borough Council,http://statistics.data.gov.uk/id/local-authority/24UE,OTHER REVENUE ACCOUNTS,RV,CONTRACT SERVICES D.S.O.,RV14,DEPT of STRATEGIC PLANNING and ENVIRONMENT,SUPPLIES & SERVICES,4,Information Communication Technology,27,STRUCTURAL ENGINEERS FEES,4405,10/10/2014,505627,2500.00 ,Revenue,OCELLA,02837294
Fareham Borough Council,http://statistics.data.gov.uk/id/local-authority/24UE,CORPORATE & DEMOCRATIC CORE,BV07A,CORPORATE MANAGEMENT,BV07AB,DEPT of FINANCE and RESOURCES,SUPPLIES & SERVICES,4,Facilities & Management Services,19,GRANTS AND SUBSCRIPTIONS,4700,17/10/2014,505723,593.00 ,Revenue,NLA MEDIA ACCESS LIMITED,3003569
Fareham Borough Council,http://statistics.data.gov.uk/id/local-authority/24UE,CAPITAL PROGRAMME - OTHER SERVICES,CP,APPROVED PROGRAMME,CP24,CAPITAL - APPROVED PROGRAMME,SUPPLIES & SERVICES,4,"Works - Construction, Repair & Maintenance",39,MISCELLANEOUS EXPENDITURE,4970,17/10/2014,505726,877.97 ,Capital,NETWORK RAIL,2904587
Fareham Borough Council,http://statistics.data.gov.uk/id/local-authority/24UE,CULTURAL AND RELATED SERVICES,BV09,RECREATION AND SPORT,BV09B,DEPT STREETSCENE,PREMISES RELATED EXPENDITURE,2,Horticultural,24,R&M OF GROUNDS,2060,03/10/2014,505727,337.10 ,Revenue,PICTORIAL MEADOWS LTD,4036626
Fareham Borough Council,http://statistics.data.gov.uk/id/local-authority/24UE,CULTURAL AND RELATED SERVICES,BV09,RECREATION AND SPORT,BV09B,DEPT STREETSCENE,PREMISES RELATED EXPENDITURE,2,Horticultural,24,R&M OF GROUNDS,2060,03/10/2014,505727,174.46 ,Revenue,PICTORIAL MEADOWS LTD,4036626
Fareham Borough Council,http://statistics.data.gov.uk/id/local-authority/24UE,CULTURAL AND RELATED SERVICES,BV09,RECREATION AND SPORT,BV09B,DEPT STREETSCENE,PREMISES RELATED EXPENDITURE,2,Horticultural,24,R&M OF GROUNDS,2060,03/10/2014,505727,401.20 ,Revenue,PICTORIAL MEADOWS LTD,4036626
Fareham Borough Council,http://statistics.data.gov.uk/id/local-authority/24UE,CULTURAL AND RELATED SERVICES,BV09,RECREATION AND SPORT,BV09B,DEPT STREETSCENE,PREMISES RELATED EXPENDITURE,2,Horticultural,24,R&M OF GROUNDS,2060,03/10/2014,505727,137.35 ,Revenue,PICTORIAL MEADOWS LTD,4036626
Fareham Borough Council,http://statistics.data.gov.uk/id/local-authority/24UE,CULTURAL AND RELATED SERVICES,BV09,RECREATION AND SPORT,BV09B,DEPT STREETSCENE,PREMISES RELATED EXPENDITURE,2,Horticultural,24,R&M OF GROUNDS,2060,03/10/2014,505727,427.10 ,Revenue,PICTORIAL MEADOWS LTD,4036626
Fareham Borough Council,http://statistics.data.gov.uk/id/local-authority/24UE,CULTURAL AND RELATED SERVICES,BV09,RECREATION AND SPORT,BV09B,DEPT of COMMUNITY and STREETSCENE,PREMISES RELATED EXPENDITURE,2,"Works - Construction, Repair & Maintenance",39,R & M OF BUILDINGS,2000,03/10/2014,505752,784.76 ,Revenue,BALFOUR BEATTY CIVIL ENGINEERING LTD,04482405
Fareham Borough Council,http://statistics.data.gov.uk/id/local-authority/24UE,CULTURAL AND RELATED SERVICES,BV09,RECREATION AND SPORT,BV09B,DEPT STREETSCENE,PREMISES RELATED EXPENDITURE,2,"Works - Construction, Repair & Maintenance",39,R&M OF GROUNDS,2060,03/10/2014,505752,148.64 ,Revenue,BALFOUR BEATTY CIVIL ENGINEERING LTD,04482405
Fareham Borough Council,http://statistics.data.gov.uk/id/local-authority/24UE,CAPITAL PROGRAMME - OTHER SERVICES,CP,APPROVED PROGRAMME,CP24,CAPITAL - APPROVED PROGRAMME,PREMISES RELATED EXPENDITURE,2,"Works - Construction, Repair & Maintenance",39,R & M OF BUILDINGS,2000,03/10/2014,505752,110447.30 ,Capital,BALFOUR BEATTY CIVIL ENGINEERING LTD,04482405
Fareham Borough Council,http://statistics.data.gov.uk/id/local-authority/24UE,HOUSING REVENUE ACCOUNT,BV06,RESPONSIVE & VOID MAINTENANCE,5901,DEPT STREETSCENE,SUPPLIES & SERVICES,4,Consultancy,15,ASBESTOS SURVEY,4984,03/10/2014,506373,2378.50 ,Revenue,PERRY ANALYTICAL LTD,04353955
Fareham Borough Council,http://statistics.data.gov.uk/id/local-authority/24UE,HOUSING REVENUE ACCOUNT,BV06,CATCH UP REPAIRS,5902,DEPT STREETSCENE,PREMISES RELATED EXPENDITURE,2,"Works - Construction, Repair & Maintenance",39,R & M OF BUILDINGS,2000,03/10/2014,506376,2058.75 ,Revenue,TOPMARX LTD,03207600
Fareham Borough Council,http://statistics.data.gov.uk/id/local-authority/24UE,OTHER REVENUE ACCOUNTS,RV,CONTRACT SERVICES D.S.O.,RV14,DEPT STREETSCENE,SUPPLIES & SERVICES,4,Building Construction Materials,10,MATERIALS (OPERATIONAL),4007,17/10/2014,506378,7.60 ,Revenue,MULTI TRADE SUPPLIES LIMITED,06806741
Fareham Borough Council,http://statistics.data.gov.uk/id/local-authority/24UE,OTHER REVENUE ACCOUNTS,RV,CONTRACT SERVICES D.S.O.,RV14,DEPT STREETSCENE,SUPPLIES & SERVICES,4,Building Construction Materials,10,MATERIALS (OPERATIONAL),4007,17/10/2014,506378,6.12 ,Revenue,MULTI TRADE SUPPLIES LIMITED,06806741
Fareham Borough Council,http://statistics.data.gov.uk/id/local-authority/24UE,OTHER REVENUE ACCOUNTS,RV,CONTRACT SERVICES D.S.O.,RV14,DEPT STREETSCENE,SUPPLIES & SERVICES,4,Building Construction Materials,10,MATERIALS (OPERATIONAL),4007,17/10/2014,506378,8.38 ,Revenue,MULTI TRADE SUPPLIES LIMITED,06806741
Fareham Borough Council,http://statistics.data.gov.uk/id/local-authority/24UE,OTHER REVENUE ACCOUNTS,RV,CONTRACT SERVICES D.S.O.,RV14,DEPT STREETSCENE,SUPPLIES & SERVICES,4,Building Construction Materials,10,MATERIALS (OPERATIONAL),4007,17/10/2014,506378,13.72 ,Revenue,MULTI TRADE SUPPLIES LIMITED,06806741
Fareham Borough Council,http://statistics.data.gov.uk/id/local-authority/24UE,OTHER REVENUE ACCOUNTS,RV,CONTRACT SERVICES D.S.O.,RV14,DEPT STREETSCENE,SUPPLIES & SERVICES,4,Building Construction Materials,10,MATERIALS (OPERATIONAL),4007,17/10/2014,506378,2.02 ,Revenue,MULTI TRADE SUPPLIES LIMITED,06806741
Fareham Borough Council,http://statistics.data.gov.uk/id/local-authority/24UE,OTHER REVENUE ACCOUNTS,RV,CONTRACT SERVICES D.S.O.,RV14,DEPT STREETSCENE,SUPPLIES & SERVICES,4,Building Construction Materials,10,MATERIALS (OPERATIONAL),4007,17/10/2014,506378,2.15 ,Revenue,MULTI TRADE SUPPLIES LIMITED,06806741
Fareham Borough Council,http://statistics.data.gov.uk/id/local-authority/24UE,OTHER REVENUE ACCOUNTS,RV,CONTRACT SERVICES D.S.O.,RV14,DEPT STREETSCENE,SUPPLIES & SERVICES,4,Building Construction Materials,10,MATERIALS (OPERATIONAL),4007,17/10/2014,506378,0.75 ,Revenue,MULTI TRADE SUPPLIES LIMITED,06806741
Fareham Borough Council,http://statistics.data.gov.uk/id/local-authority/24UE,OTHER REVENUE ACCOUNTS,RV,CONTRACT SERVICES D.S.O.,RV14,DEPT STREETSCENE,SUPPLIES & SERVICES,4,Building Construction Materials,10,MATERIALS (OPERATIONAL),4007,17/10/2014,506378,2.41 ,Revenue,MULTI TRADE SUPPLIES LIMITED,06806741
Fareham Borough Council,http://statistics.data.gov.uk/id/local-authority/24UE,OTHER REVENUE ACCOUNTS,RV,CONTRACT SERVICES D.S.O.,RV14,DEPT STREETSCENE,SUPPLIES & SERVICES,4,Building Construction Materials,10,MATERIALS (OPERATIONAL),4007,17/10/2014,506378,9.22 ,Revenue,MULTI TRADE SUPPLIES LIMITED,06806741
Fareham Borough Council,http://statistics.data.gov.uk/id/local-authority/24UE,OTHER REVENUE ACCOUNTS,RV,CONTRACT SERVICES D.S.O.,RV14,DEPT STREETSCENE,SUPPLIES & SERVICES,4,Building Construction Materials,10,MATERIALS (OPERATIONAL),4007,17/10/2014,506378,18.46 ,Revenue,MULTI TRADE SUPPLIES LIMITED,06806741
Fareham Borough Council,http://statistics.data.gov.uk/id/local-authority/24UE,OTHER REVENUE ACCOUNTS,RV,CONTRACT SERVICES D.S.O.,RV14,DEPT STREETSCENE,SUPPLIES & SERVICES,4,Building Construction Materials,10,MATERIALS (OPERATIONAL),4007,17/10/2014,506378,1.95 ,Revenue,MULTI TRADE SUPPLIES LIMITED,06806741
Fareham Borough Council,http://statistics.data.gov.uk/id/local-authority/24UE,OTHER REVENUE ACCOUNTS,RV,CONTRACT SERVICES D.S.O.,RV14,DEPT STREETSCENE,SUPPLIES & SERVICES,4,Building Construction Materials,10,MATERIALS (OPERATIONAL),4007,17/10/2014,506378,5.72 ,Revenue,MULTI TRADE SUPPLIES LIMITED,06806741
Fareham Borough Council,http://statistics.data.gov.uk/id/local-authority/24UE,OTHER REVENUE ACCOUNTS,RV,CONTRACT SERVICES D.S.O.,RV14,DEPT STREETSCENE,SUPPLIES & SERVICES,4,Building Construction Materials,10,MATERIALS (OPERATIONAL),4007,17/10/2014,506378,25.02 ,Revenue,MULTI TRADE SUPPLIES LIMITED,06806741
Fareham Borough Council,http://statistics.data.gov.uk/id/local-authority/24UE,OTHER REVENUE ACCOUNTS,RV,CONTRACT SERVICES D.S.O.,RV14,DEPT STREETSCENE,SUPPLIES & SERVICES,4,Building Construction Materials,10,MATERIALS (OPERATIONAL),4007,17/10/2014,506378,3.90 ,Revenue,MULTI TRADE SUPPLIES LIMITED,06806741
Fareham Borough Council,http://statistics.data.gov.uk/id/local-authority/24UE,OTHER REVENUE ACCOUNTS,RV,CONTRACT SERVICES D.S.O.,RV14,DEPT STREETSCENE,SUPPLIES & SERVICES,4,Building Construction Materials,10,MATERIALS (OPERATIONAL),4007,17/10/2014,506378,2.02 ,Revenue,MULTI TRADE SUPPLIES LIMITED,06806741
Fareham Borough Council,http://statistics.data.gov.uk/id/local-authority/24UE,OTHER REVENUE ACCOUNTS,RV,CONTRACT SERVICES D.S.O.,RV14,DEPT STREETSCENE,SUPPLIES & SERVICES,4,Building Construction Materials,10,MATERIALS (OPERATIONAL),4007,17/10/2014,506378,53.92 ,Revenue,MULTI TRADE SUPPLIES LIMITED,06806741
Fareham Borough Council,http://statistics.data.gov.uk/id/local-authority/24UE,OTHER REVENUE ACCOUNTS,RV,CONTRACT SERVICES D.S.O.,RV14,DEPT STREETSCENE,SUPPLIES & SERVICES,4,Building Construction Materials,10,MATERIALS (OPERATIONAL),4007,17/10/2014,506378,5.10 ,Revenue,MULTI TRADE SUPPLIES LIMITED,06806741
Fareham Borough Council,http://statistics.data.gov.uk/id/local-authority/24UE,OTHER REVENUE ACCOUNTS,RV,CONTRACT SERVICES D.S.O.,RV14,DEPT STREETSCENE,SUPPLIES & SERVICES,4,Building Construction Materials,10,MATERIALS (OPERATIONAL),4007,17/10/2014,506378,6.19 ,Revenue,MULTI TRADE SUPPLIES LIMITED,06806741
Fareham Borough Council,http://statistics.data.gov.uk/id/local-authority/24UE,OTHER REVENUE ACCOUNTS,RV,CONTRACT SERVICES D.S.O.,RV14,DEPT STREETSCENE,SUPPLIES & SERVICES,4,Building Construction Materials,10,MATERIALS (OPERATIONAL),4007,17/10/2014,506378,7.17 ,Revenue,MULTI TRADE SUPPLIES LIMITED,06806741
Fareham Borough Council,http://statistics.data.gov.uk/id/local-authority/24UE,OTHER REVENUE ACCOUNTS,RV,CONTRACT SERVICES D.S.O.,RV14,DEPT STREETSCENE,SUPPLIES & SERVICES,4,Building Construction Materials,10,MATERIALS (OPERATIONAL),4007,17/10/2014,506378,0.83 ,Revenue,MULTI TRADE SUPPLIES LIMITED,06806741
Fareham Borough Council,http://statistics.data.gov.uk/id/local-authority/24UE,OTHER REVENUE ACCOUNTS,RV,CONTRACT SERVICES D.S.O.,RV14,DEPT STREETSCENE,SUPPLIES & SERVICES,4,Building Construction Materials,10,MATERIALS (OPERATIONAL),4007,17/10/2014,506378,3.10 ,Revenue,MULTI TRADE SUPPLIES LIMITED,06806741
Fareham Borough Council,http://statistics.data.gov.uk/id/local-authority/24UE,OTHER REVENUE ACCOUNTS,RV,CONTRACT SERVICES D.S.O.,RV14,DEPT STREETSCENE,SUPPLIES & SERVICES,4,Building Construction Materials,10,MATERIALS (OPERATIONAL),4007,17/10/2014,506378,5.40 ,Revenue,MULTI TRADE SUPPLIES LIMITED,06806741
Fareham Borough Council,http://statistics.data.gov.uk/id/local-authority/24UE,OTHER REVENUE ACCOUNTS,RV,CONTRACT SERVICES D.S.O.,RV14,DEPT STREETSCENE,SUPPLIES & SERVICES,4,Building Construction Materials,10,MATERIALS (OPERATIONAL),4007,17/10/2014,506378,6.48 ,Revenue,MULTI TRADE SUPPLIES LIMITED,06806741
Fareham Borough Council,http://statistics.data.gov.uk/id/local-authority/24UE,OTHER REVENUE ACCOUNTS,RV,CONTRACT SERVICES D.S.O.,RV14,DEPT STREETSCENE,SUPPLIES & SERVICES,4,Building Construction Materials,10,MATERIALS (OPERATIONAL),4007,17/10/2014,506378,6.04 ,Revenue,MULTI TRADE SUPPLIES LIMITED,06806741
Fareham Borough Council,http://statistics.data.gov.uk/id/local-authority/24UE,OTHER REVENUE ACCOUNTS,RV,CONTRACT SERVICES D.S.O.,RV14,DEPT STREETSCENE,SUPPLIES & SERVICES,4,Building Construction Materials,10,MATERIALS (OPERATIONAL),4007,17/10/2014,506378,10.41 ,Revenue,MULTI TRADE SUPPLIES LIMITED,06806741
Fareham Borough Council,http://statistics.data.gov.uk/id/local-authority/24UE,OTHER REVENUE ACCOUNTS,RV,CONTRACT SERVICES D.S.O.,RV14,DEPT STREETSCENE,SUPPLIES & SERVICES,4,Building Construction Materials,10,MATERIALS (OPERATIONAL),4007,17/10/2014,506378,30.52 ,Revenue,MULTI TRADE SUPPLIES LIMITED,06806741
Fareham Borough Council,http://statistics.data.gov.uk/id/local-authority/24UE,OTHER REVENUE ACCOUNTS,RV,CONTRACT SERVICES D.S.O.,RV14,DEPT STREETSCENE,SUPPLIES & SERVICES,4,Building Construction Materials,10,MATERIALS (OPERATIONAL),4007,17/10/2014,506378,14.21 ,Revenue,MULTI TRADE SUPPLIES LIMITED,06806741
Fareham Borough Council,http://statistics.data.gov.uk/id/local-authority/24UE,OTHER REVENUE ACCOUNTS,RV,CONTRACT SERVICES D.S.O.,RV14,DEPT STREETSCENE,SUPPLIES & SERVICES,4,Building Construction Materials,10,MATERIALS (OPERATIONAL),4007,17/10/2014,506378,9.00 ,Revenue,MULTI TRADE SUPPLIES LIMITED,06806741
Fareham Borough Council,http://statistics.data.gov.uk/id/local-authority/24UE,OTHER REVENUE ACCOUNTS,RV,CONTRACT SERVICES D.S.O.,RV14,DEPT STREETSCENE,SUPPLIES & SERVICES,4,Building Construction Materials,10,MATERIALS (OPERATIONAL),4007,17/10/2014,506378,4.89 ,Revenue,MULTI TRADE SUPPLIES LIMITED,06806741
Fareham Borough Council,http://statistics.data.gov.uk/id/local-authority/24UE,OTHER REVENUE ACCOUNTS,RV,CONTRACT SERVICES D.S.O.,RV14,DEPT STREETSCENE,SUPPLIES & SERVICES,4,Building Construction Materials,10,MATERIALS (OPERATIONAL),4007,17/10/2014,506378,2.22 ,Revenue,MULTI TRADE SUPPLIES LIMITED,06806741
Fareham Borough Council,http://statistics.data.gov.uk/id/local-authority/24UE,OTHER REVENUE ACCOUNTS,RV,CONTRACT SERVICES D.S.O.,RV14,DEPT STREETSCENE,SUPPLIES & SERVICES,4,Building Construction Materials,10,MATERIALS (OPERATIONAL),4007,17/10/2014,506378,24.05 ,Revenue,MULTI TRADE SUPPLIES LIMITED,06806741
Fareham Borough Council,http://statistics.data.gov.uk/id/local-authority/24UE,OTHER REVENUE ACCOUNTS,RV,CONTRACT SERVICES D.S.O.,RV14,DEPT STREETSCENE,SUPPLIES & SERVICES,4,Building Construction Materials,10,MATERIALS (OPERATIONAL),4007,17/10/2014,506378,58.49 ,Revenue,MULTI TRADE SUPPLIES LIMITED,06806741
Fareham Borough Council,http://statistics.data.gov.uk/id/local-authority/24UE,OTHER REVENUE ACCOUNTS,RV,CONTRACT SERVICES D.S.O.,RV14,DEPT STREETSCENE,SUPPLIES & SERVICES,4,Building Construction Materials,10,MATERIALS (OPERATIONAL),4007,17/10/2014,506378,20.74 ,Revenue,MULTI TRADE SUPPLIES LIMITED,06806741
Fareham Borough Council,http://statistics.data.gov.uk/id/local-authority/24UE,OTHER REVENUE ACCOUNTS,RV,CONTRACT SERVICES D.S.O.,RV14,DEPT STREETSCENE,SUPPLIES & SERVICES,4,Building Construction Materials,10,MATERIALS (OPERATIONAL),4007,17/10/2014,506378,0.62 ,Revenue,MULTI TRADE SUPPLIES LIMITED,06806741
Fareham Borough Council,http://statistics.data.gov.uk/id/local-authority/24UE,OTHER REVENUE ACCOUNTS,RV,CONTRACT SERVICES D.S.O.,RV14,DEPT STREETSCENE,SUPPLIES & SERVICES,4,Building Construction Materials,10,MATERIALS (OPERATIONAL),4007,17/10/2014,506378,0.62 ,Revenue,MULTI TRADE SUPPLIES LIMITED,06806741
Fareham Borough Council,http://statistics.data.gov.uk/id/local-authority/24UE,OTHER REVENUE ACCOUNTS,RV,CONTRACT SERVICES D.S.O.,RV14,DEPT STREETSCENE,SUPPLIES & SERVICES,4,Building Construction Materials,10,MATERIALS (OPERATIONAL),4007,17/10/2014,506378,1.24 ,Revenue,MULTI TRADE SUPPLIES LIMITED,06806741
Fareham Borough Council,http://statistics.data.gov.uk/id/local-authority/24UE,OTHER REVENUE ACCOUNTS,RV,CONTRACT SERVICES D.S.O.,RV14,DEPT STREETSCENE,SUPPLIES & SERVICES,4,Building Construction Materials,10,MATERIALS (OPERATIONAL),4007,17/10/2014,506378,44.14 ,Revenue,MULTI TRADE SUPPLIES LIMITED,06806741
Fareham Borough Council,http://statistics.data.gov.uk/id/local-authority/24UE,OTHER REVENUE ACCOUNTS,RV,CONTRACT SERVICES D.S.O.,RV14,DEPT STREETSCENE,SUPPLIES & SERVICES,4,Building Construction Materials,10,MATERIALS (OPERATIONAL),4007,17/10/2014,506378,60.04 ,Revenue,MULTI TRADE SUPPLIES LIMITED,06806741
Fareham Borough Council,http://statistics.data.gov.uk/id/local-authority/24UE,OTHER REVENUE ACCOUNTS,RV,CONTRACT SERVICES D.S.O.,RV14,DEPT STREETSCENE,SUPPLIES & SERVICES,4,Building Construction Materials,10,MATERIALS (OPERATIONAL),4007,17/10/2014,506378,42.38 ,Revenue,MULTI TRADE SUPPLIES LIMITED,06806741
Fareham Borough Council,http://statistics.data.gov.uk/id/local-authority/24UE,OTHER REVENUE ACCOUNTS,RV,CONTRACT SERVICES D.S.O.,RV14,DEPT STREETSCENE,SUPPLIES & SERVICES,4,Building Construction Materials,10,MATERIALS (OPERATIONAL),4007,17/10/2014,506378,53.92 ,Revenue,MULTI TRADE SUPPLIES LIMITED,06806741
Fareham Borough Council,http://statistics.data.gov.uk/id/local-authority/24UE,OTHER REVENUE ACCOUNTS,RV,CONTRACT SERVICES D.S.O.,RV14,DEPT STREETSCENE,SUPPLIES & SERVICES,4,Building Construction Materials,10,MATERIALS (OPERATIONAL),4007,17/10/2014,506378,8.43 ,Revenue,MULTI TRADE SUPPLIES LIMITED,06806741
Fareham Borough Council,http://statistics.data.gov.uk/id/local-authority/24UE,OTHER REVENUE ACCOUNTS,RV,CONTRACT SERVICES D.S.O.,RV14,DEPT STREETSCENE,SUPPLIES & SERVICES,4,Building Construction Materials,10,MATERIALS (OPERATIONAL),4007,17/10/2014,506378,0.86 ,Revenue,MULTI TRADE SUPPLIES LIMITED,06806741
Fareham Borough Council,http://statistics.data.gov.uk/id/local-authority/24UE,OTHER REVENUE ACCOUNTS,RV,CONTRACT SERVICES D.S.O.,RV14,DEPT STREETSCENE,SUPPLIES & SERVICES,4,Building Construction Materials,10,MATERIALS (OPERATIONAL),4007,17/10/2014,506378,2.15 ,Revenue,MULTI TRADE SUPPLIES LIMITED,06806741
Fareham Borough Council,http://statistics.data.gov.uk/id/local-authority/24UE,OTHER REVENUE ACCOUNTS,RV,CONTRACT SERVICES D.S.O.,RV14,DEPT STREETSCENE,SUPPLIES & SERVICES,4,Building Construction Materials,10,MATERIALS (OPERATIONAL),4007,17/10/2014,506378,2.40 ,Revenue,MULTI TRADE SUPPLIES LIMITED,06806741
Fareham Borough Council,http://statistics.data.gov.uk/id/local-authority/24UE,OTHER REVENUE ACCOUNTS,RV,CONTRACT SERVICES D.S.O.,RV14,DEPT STREETSCENE,SUPPLIES & SERVICES,4,Building Construction Materials,10,MATERIALS (OPERATIONAL),4007,17/10/2014,506378,1.98 ,Revenue,MULTI TRADE SUPPLIES LIMITED,06806741
Fareham Borough Council,http://statistics.data.gov.uk/id/local-authority/24UE,OTHER REVENUE ACCOUNTS,RV,CONTRACT SERVICES D.S.O.,RV14,DEPT STREETSCENE,SUPPLIES & SERVICES,4,Building Construction Materials,10,MATERIALS (OPERATIONAL),4007,17/10/2014,506378,0.75 ,Revenue,MULTI TRADE SUPPLIES LIMITED,06806741
Fareham Borough Council,http://statistics.data.gov.uk/id/local-authority/24UE,OTHER REVENUE ACCOUNTS,RV,CONTRACT SERVICES D.S.O.,RV14,DEPT STREETSCENE,SUPPLIES & SERVICES,4,Building Construction Materials,10,MATERIALS (OPERATIONAL),4007,17/10/2014,506378,7.96 ,Revenue,MULTI TRADE SUPPLIES LIMITED,06806741
Fareham Borough Council,http://statistics.data.gov.uk/id/local-authority/24UE,OTHER REVENUE ACCOUNTS,RV,CONTRACT SERVICES D.S.O.,RV14,DEPT STREETSCENE,SUPPLIES & SERVICES,4,Building Construction Materials,10,MATERIALS (OPERATIONAL),4007,17/10/2014,506378,2.41 ,Revenue,MULTI TRADE SUPPLIES LIMITED,06806741
Fareham Borough Council,http://statistics.data.gov.uk/id/local-authority/24UE,OTHER REVENUE ACCOUNTS,RV,CONTRACT SERVICES D.S.O.,RV14,DEPT STREETSCENE,SUPPLIES & SERVICES,4,Building Construction Materials,10,MATERIALS (OPERATIONAL),4007,17/10/2014,506378,1.46 ,Revenue,MULTI TRADE SUPPLIES LIMITED,06806741
Fareham Borough Council,http://statistics.data.gov.uk/id/local-authority/24UE,OTHER REVENUE ACCOUNTS,RV,CONTRACT SERVICES D.S.O.,RV14,DEPT STREETSCENE,SUPPLIES & SERVICES,4,Building Construction Materials,10,MATERIALS (OPERATIONAL),4007,17/10/2014,506378,6.12 ,Revenue,MULTI TRADE SUPPLIES LIMITED,06806741
Fareham Borough Council,http://statistics.data.gov.uk/id/local-authority/24UE,OTHER REVENUE ACCOUNTS,RV,CONTRACT SERVICES D.S.O.,RV14,DEPT STREETSCENE,SUPPLIES & SERVICES,4,Building Construction Materials,10,MATERIALS (OPERATIONAL),4007,17/10/2014,506378,8.44 ,Revenue,MULTI TRADE SUPPLIES LIMITED,06806741
Fareham Borough Council,http://statistics.data.gov.uk/id/local-authority/24UE,OTHER REVENUE ACCOUNTS,RV,CONTRACT SERVICES D.S.O.,RV14,DEPT STREETSCENE,SUPPLIES & SERVICES,4,Building Construction Materials,10,MATERIALS (OPERATIONAL),4007,17/10/2014,506378,1.66 ,Revenue,MULTI TRADE SUPPLIES LIMITED,06806741
Fareham Borough Council,http://statistics.data.gov.uk/id/local-authority/24UE,OTHER REVENUE ACCOUNTS,RV,CONTRACT SERVICES D.S.O.,RV14,DEPT STREETSCENE,SUPPLIES & SERVICES,4,Building Construction Materials,10,MATERIALS (OPERATIONAL),4007,17/10/2014,506378,3.90 ,Revenue,MULTI TRADE SUPPLIES LIMITED,06806741
Fareham Borough Council,http://statistics.data.gov.uk/id/local-authority/24UE,OTHER REVENUE ACCOUNTS,RV,CONTRACT SERVICES D.S.O.,RV14,DEPT STREETSCENE,SUPPLIES & SERVICES,4,Building Construction Materials,10,MATERIALS (OPERATIONAL),4007,17/10/2014,506378,4.30 ,Revenue,MULTI TRADE SUPPLIES LIMITED,06806741
Fareham Borough Council,http://statistics.data.gov.uk/id/local-authority/24UE,OTHER REVENUE ACCOUNTS,RV,CONTRACT SERVICES D.S.O.,RV14,DEPT STREETSCENE,SUPPLIES & SERVICES,4,Building Construction Materials,10,MATERIALS (OPERATIONAL),4007,17/10/2014,506378,9.04 ,Revenue,MULTI TRADE SUPPLIES LIMITED,06806741
Fareham Borough Council,http://statistics.data.gov.uk/id/local-authority/24UE,OTHER REVENUE ACCOUNTS,RV,CONTRACT SERVICES D.S.O.,RV14,DEPT STREETSCENE,SUPPLIES & SERVICES,4,Building Construction Materials,10,MATERIALS (OPERATIONAL),4007,17/10/2014,506378,9.04 ,Revenue,MULTI TRADE SUPPLIES LIMITED,06806741
Fareham Borough Council,http://statistics.data.gov.uk/id/local-authority/24UE,OTHER REVENUE ACCOUNTS,RV,CONTRACT SERVICES D.S.O.,RV14,DEPT STREETSCENE,SUPPLIES & SERVICES,4,Building Construction Materials,10,MATERIALS (OPERATIONAL),4007,17/10/2014,506378,4.50 ,Revenue,MULTI TRADE SUPPLIES LIMITED,06806741
Fareham Borough Council,http://statistics.data.gov.uk/id/local-authority/24UE,OTHER REVENUE ACCOUNTS,RV,CONTRACT SERVICES D.S.O.,RV14,DEPT STREETSCENE,SUPPLIES & SERVICES,4,Building Construction Materials,10,MATERIALS (OPERATIONAL),4007,17/10/2014,506378,3.38 ,Revenue,MULTI TRADE SUPPLIES LIMITED,06806741
Fareham Borough Council,http://statistics.data.gov.uk/id/local-authority/24UE,OTHER REVENUE ACCOUNTS,RV,CONTRACT SERVICES D.S.O.,RV14,DEPT STREETSCENE,SUPPLIES & SERVICES,4,Building Construction Materials,10,MATERIALS (OPERATIONAL),4007,17/10/2014,506378,20.62 ,Revenue,MULTI TRADE SUPPLIES LIMITED,06806741
Fareham Borough Council,http://statistics.data.gov.uk/id/local-authority/24UE,ENVIRONMENT AND REGULATORY SER,BV03,WASTE COLLECTION,BV03G,DEPT STREETSCENE,TRANSPORT RELATED EXPENDITURE,3,Vehicle Management,38,ROUTINE REPAIRS VEHICLES/PLANT,3010,03/10/2014,506383,86.16 ,Revenue,DENNIS EAGLE LIMITED,03794455
Fareham Borough Council,http://statistics.data.gov.uk/id/local-authority/24UE,ENVIRONMENT AND REGULATORY SER,BV03,WASTE COLLECTION,BV03G,DEPT STREETSCENE,TRANSPORT RELATED EXPENDITURE,3,Vehicle Management,38,ROUTINE REPAIRS VEHICLES/PLANT,3010,03/10/2014,506383,264.32 ,Revenue,DENNIS EAGLE LIMITED,03794455
Fareham Borough Council,http://statistics.data.gov.uk/id/local-authority/24UE,ENVIRONMENT AND REGULATORY SER,BV03,WASTE COLLECTION,BV03G,DEPT STREETSCENE,TRANSPORT RELATED EXPENDITURE,3,Vehicle Management,38,ROUTINE REPAIRS VEHICLES/PLANT,3010,03/10/2014,506383,304.09 ,Revenue,DENNIS EAGLE LIMITED,03794455
Fareham Borough Council,http://statistics.data.gov.uk/id/local-authority/24UE,ENVIRONMENT AND REGULATORY SER,BV03,WASTE COLLECTION,BV03G,DEPT STREETSCENE,TRANSPORT RELATED EXPENDITURE,3,Vehicle Management,38,ROUTINE REPAIRS VEHICLES/PLANT,3010,03/10/2014,506383,16.10 ,Revenue,DENNIS EAGLE LIMITED,03794455
Fareham Borough Council,http://statistics.data.gov.uk/id/local-authority/24UE,ENVIRONMENT AND REGULATORY SER,BV03,WASTE COLLECTION,BV03G,DEPT STREETSCENE,TRANSPORT RELATED EXPENDITURE,3,Vehicle Management,38,ROUTINE REPAIRS VEHICLES/PLANT,3010,03/10/2014,506383,16.10 ,Revenue,DENNIS EAGLE LIMITED,03794455
Fareham Borough Council,http://statistics.data.gov.uk/id/local-authority/24UE,ENVIRONMENT AND REGULATORY SER,BV03,WASTE COLLECTION,BV03G,DEPT STREETSCENE,TRANSPORT RELATED EXPENDITURE,3,Vehicle Management,38,ROUTINE REPAIRS VEHICLES/PLANT,3010,03/10/2014,506383,9.42 ,Revenue,DENNIS EAGLE LIMITED,03794455
Fareham Borough Council,http://statistics.data.gov.uk/id/local-authority/24UE,ENVIRONMENT AND REGULATORY SER,BV03,WASTE COLLECTION,BV03G,DEPT STREETSCENE,TRANSPORT RELATED EXPENDITURE,3,Vehicle Management,38,ROUTINE REPAIRS VEHICLES/PLANT,3010,03/10/2014,506383,206.82 ,Revenue,DENNIS EAGLE LIMITED,03794455
Fareham Borough Council,http://statistics.data.gov.uk/id/local-authority/24UE,ENVIRONMENT AND REGULATORY SER,BV03,WASTE COLLECTION,BV03G,DEPT STREETSCENE,TRANSPORT RELATED EXPENDITURE,3,Vehicle Management,38,ROUTINE REPAIRS VEHICLES/PLANT,3010,03/10/2014,506383,59.83 ,Revenue,DENNIS EAGLE LIMITED,03794455
Fareham Borough Council,http://statistics.data.gov.uk/id/local-authority/24UE,ENVIRONMENT AND REGULATORY SER,BV03,WASTE COLLECTION,BV03G,DEPT STREETSCENE,TRANSPORT RELATED EXPENDITURE,3,Vehicle Management,38,ROUTINE REPAIRS VEHICLES/PLANT,3010,03/10/2014,506383,140.16 ,Revenue,DENNIS EAGLE LIMITED,03794455
Fareham Borough Council,http://statistics.data.gov.uk/id/local-authority/24UE,ENVIRONMENT AND REGULATORY SER,BV03,WASTE COLLECTION,BV03G,DEPT STREETSCENE,TRANSPORT RELATED EXPENDITURE,3,Vehicle Management,38,ROUTINE REPAIRS VEHICLES/PLANT,3010,03/10/2014,506383,72.24 ,Revenue,DENNIS EAGLE LIMITED,03794455
Fareham Borough Council,http://statistics.data.gov.uk/id/local-authority/24UE,ENVIRONMENT AND REGULATORY SER,BV03,WASTE COLLECTION,BV03G,DEPT STREETSCENE,TRANSPORT RELATED EXPENDITURE,3,Vehicle Management,38,ROUTINE REPAIRS VEHICLES/PLANT,3010,03/10/2014,506383,81.00 ,Revenue,DENNIS EAGLE LIMITED,03794455
Fareham Borough Council,http://statistics.data.gov.uk/id/local-authority/24UE,ENVIRONMENT AND REGULATORY SER,BV03,WASTE COLLECTION,BV03G,DEPT STREETSCENE,TRANSPORT RELATED EXPENDITURE,3,Vehicle Management,38,ROUTINE REPAIRS VEHICLES/PLANT,3010,03/10/2014,506383,133.36 ,Revenue,DENNIS EAGLE LIMITED,03794455
Fareham Borough Council,http://statistics.data.gov.uk/id/local-authority/24UE,ENVIRONMENT AND REGULATORY SER,BV03,WASTE COLLECTION,BV03G,DEPT STREETSCENE,TRANSPORT RELATED EXPENDITURE,3,Vehicle Management,38,ROUTINE REPAIRS VEHICLES/PLANT,3010,03/10/2014,506383,114.94 ,Revenue,DENNIS EAGLE LIMITED,03794455
Fareham Borough Council,http://statistics.data.gov.uk/id/local-authority/24UE,ENVIRONMENT AND REGULATORY SER,BV03,WASTE COLLECTION,BV03G,DEPT STREETSCENE,TRANSPORT RELATED EXPENDITURE,3,Vehicle Management,38,ROUTINE REPAIRS VEHICLES/PLANT,3010,03/10/2014,506383,47.64 ,Revenue,DENNIS EAGLE LIMITED,03794455
Fareham Borough Council,http://statistics.data.gov.uk/id/local-authority/24UE,ENVIRONMENT AND REGULATORY SER,BV03,WASTE COLLECTION,BV03G,DEPT STREETSCENE,TRANSPORT RELATED EXPENDITURE,3,Vehicle Management,38,ROUTINE REPAIRS VEHICLES/PLANT,3010,03/10/2014,506383,264.32 ,Revenue,DENNIS EAGLE LIMITED,03794455
Fareham Borough Council,http://statistics.data.gov.uk/id/local-authority/24UE,ENVIRONMENT AND REGULATORY SER,BV03,WASTE COLLECTION,BV03G,DEPT STREETSCENE,TRANSPORT RELATED EXPENDITURE,3,Vehicle Management,38,ROUTINE REPAIRS VEHICLES/PLANT,3010,03/10/2014,506383,9.42 ,Revenue,DENNIS EAGLE LIMITED,03794455
Fareham Borough Council,http://statistics.data.gov.uk/id/local-authority/24UE,CAPITAL PROGRAMME - HOUSING SERVICES,CP,HOUSE RENOVATION GRANTS,CP11,CAPITAL - HOUSE RENOVATION GRANTS,SUPPLIES & SERVICES,4,Social Community Care Supplies & Services,32,GRANTS AND SUBSCRIPTIONS,4700,03/10/2014,506401,1260.00 ,Capital,LIFTECH SYSTEMS (SE) LTD,04834054
Fareham Borough Council,http://statistics.data.gov.uk/id/local-authority/24UE,CAPITAL PROGRAMME - HOUSING SERVICES,CP,HOUSE RENOVATION GRANTS,CP11,CAPITAL - HOUSE RENOVATION GRANTS,SUPPLIES & SERVICES,4,Building Construction Materials,10,GRANTS AND SUBSCRIPTIONS,4700,03/10/2014,506404,4360.00 ,Capital,G RIXON LTD,03828526
Fareham Borough Council,http://statistics.data.gov.uk/id/local-authority/24UE,CAPITAL PROGRAMME - HOUSING SERVICES,CP,RENOVATION OF L.A. DWELLINGS,CP10,CAPITAL - IMPROVEMENTS WORK/MODERNIS'N,PREMISES RELATED EXPENDITURE,2,Consultancy,15,R & M OF BUILDINGS,2000,03/10/2014,506407,4310.00 ,Capital,EDP LIMITED,02972200
Fareham Borough Council,http://statistics.data.gov.uk/id/local-authority/24UE,CAPITAL PROGRAMME - HOUSING SERVICES,CP,HOUSE RENOVATION GRANTS,CP11,CAPITAL - HOUSE RENOVATION GRANTS,SUPPLIES & SERVICES,4,Unclassified,,GRANTS AND SUBSCRIPTIONS,4700,03/10/2014,506411,880.00 ,Capital,VAC-XTRACT,
Fareham Borough Council,http://statistics.data.gov.uk/id/local-authority/24UE,CAPITAL PROGRAMME - HOUSING SERVICES,CP,HOUSE RENOVATION GRANTS,CP11,CAPITAL - HOUSE RENOVATION GRANTS,SUPPLIES & SERVICES,4,Unclassified,,GRANTS AND SUBSCRIPTIONS,4700,03/10/2014,506412,845.00 ,Capital,H. MONFARED (BUILDERS) LTD,
Fareham Borough Council,http://statistics.data.gov.uk/id/local-authority/24UE,OTHER REVENUE ACCOUNTS,RV,CONTRACT SERVICES D.S.O.,RV14,DEPT of STRATEGIC PLANNING and ENVIRONMENT,SUPPLIES & SERVICES,4,Local/Central Government,98,SUB-CONTRACTORS CHARGES,4432,03/10/2014,506417,501.39 ,Revenue,RUSHMOOR BOROUGH COUNCIL,
Fareham Borough Council,http://statistics.data.gov.uk/id/local-authority/24UE,CAPITAL PROGRAMME - OTHER SERVICES,CP,APPROVED PROGRAMME,CP24,CAPITAL - APPROVED PROGRAMME,SUPPLIES & SERVICES,4,Sports & Playground Equipment & Maintenance,33,FURNITURE & EQUIPT. PURCHASES,4000,17/10/2014,506433,15000.00 ,Capital,WICKSTEED LEISURE LTD,00603152
Fareham Borough Council,http://statistics.data.gov.uk/id/local-authority/24UE,CAPITAL PROGRAMME - OTHER SERVICES,CP,APPROVED PROGRAMME,CP24,CAPITAL - APPROVED PROGRAMME,SUPPLIES & SERVICES,4,Sports & Playground Equipment & Maintenance,33,FURNITURE & EQUIPT. PURCHASES,4000,17/10/2014,506433,1889.35 ,Capital,WICKSTEED LEISURE LTD,00603152
Fareham Borough Council,http://statistics.data.gov.uk/id/local-authority/24UE,ENVIRONMENT AND REGULATORY SER,BV03,WASTE COLLECTION,BV03G,DEPT STREETSCENE,TRANSPORT RELATED EXPENDITURE,3,Vehicle Management,38,ROUTINE REPAIRS VEHICLES/PLANT,3010,17/10/2014,506434,230.19 ,Revenue,DENNIS EAGLE LIMITED,03794455
Fareham Borough Council,http://statistics.data.gov.uk/id/local-authority/24UE,ENVIRONMENT AND REGULATORY SER,BV03,WASTE COLLECTION,BV03G,DEPT STREETSCENE,TRANSPORT RELATED EXPENDITURE,3,Vehicle Management,38,ROUTINE REPAIRS VEHICLES/PLANT,3010,17/10/2014,506434,243.75 ,Revenue,DENNIS EAGLE LIMITED,03794455
Fareham Borough Council,http://statistics.data.gov.uk/id/local-authority/24UE,ENVIRONMENT AND REGULATORY SER,BV03,WASTE COLLECTION,BV03G,DEPT STREETSCENE,TRANSPORT RELATED EXPENDITURE,3,Vehicle Management,38,ROUTINE REPAIRS VEHICLES/PLANT,3010,17/10/2014,506434,62.20 ,Revenue,DENNIS EAGLE LIMITED,03794455
Fareham Borough Council,http://statistics.data.gov.uk/id/local-authority/24UE,ENVIRONMENT AND REGULATORY SER,BV03,WASTE COLLECTION,BV03G,DEPT STREETSCENE,TRANSPORT RELATED EXPENDITURE,3,Vehicle Management,38,ROUTINE REPAIRS VEHICLES/PLANT,3010,17/10/2014,506434,102.92 ,Revenue,DENNIS EAGLE LIMITED,03794455
Fareham Borough Council,http://statistics.data.gov.uk/id/local-authority/24UE,ENVIRONMENT AND REGULATORY SER,BV03,WASTE COLLECTION,BV03G,DEPT STREETSCENE,TRANSPORT RELATED EXPENDITURE,3,Vehicle Management,38,ROUTINE REPAIRS VEHICLES/PLANT,3010,17/10/2014,506434,102.92 ,Revenue,DENNIS EAGLE LIMITED,03794455
Fareham Borough Council,http://statistics.data.gov.uk/id/local-authority/24UE,OTHER REVENUE ACCOUNTS,RV,CONTRACT SERVICES D.S.O.,RV14,DEPT STREETSCENE,SUPPLIES & SERVICES,4,Horticultural,24,MATERIALS (OPERATIONAL),4007,17/10/2014,506435,1881.60 ,Revenue,SHERRIFF AMENITY SERVICES,03525529
Fareham Borough Council,http://statistics.data.gov.uk/id/local-authority/24UE,OTHER REVENUE ACCOUNTS,RV,CONTRACT SERVICES D.S.O.,RV14,DEPT STREETSCENE,SUPPLIES & SERVICES,4,Horticultural,24,MATERIALS (OPERATIONAL),4007,17/10/2014,506435,296.00 ,Revenue,SHERRIFF AMENITY SERVICES,03525529
Fareham Borough Council,http://statistics.data.gov.uk/id/local-authority/24UE,CORPORATE & DEMOCRATIC CORE,BV07A,CORPORATE MANAGEMENT,BV07AB,DEPT of FINANCE and RESOURCES,SUPPLIES & SERVICES,4,Information Communication Technology,27,FURNITURE & EQUIPT. PURCHASES,4000,17/10/2014,506437,902.88 ,Revenue,DELL COMPUTER CORPORATION LTD,2081369
Fareham Borough Council,http://statistics.data.gov.uk/id/local-authority/24UE,ENVIRONMENT AND REGULATORY SER,BV03,STREET CLEANSING,BV03F,DEPT STREETSCENE,TRANSPORT RELATED EXPENDITURE,3,Vehicle Management,38,ROUTINE REPAIRS VEHICLES/PLANT,3010,24/10/2014,506438,900.08 ,Revenue,JOHNSTON SWEEPERS LIMITED,00199841
Fareham Borough Council,http://statistics.data.gov.uk/id/local-authority/24UE,CAPITAL PROGRAMME - OTHER SERVICES,CP,APPROVED PROGRAMME,CP24,CAPITAL - APPROVED PROGRAMME,PREMISES RELATED EXPENDITURE,2,Sports & Playground Equipment & Maintenance,33,R&M OF GROUNDS,2060,17/10/2014,506439,240.00 ,Capital,WICKSTEED LEISURE LTD,00603152
Fareham Borough Council,http://statistics.data.gov.uk/id/local-authority/24UE,CAPITAL PROGRAMME - OTHER SERVICES,CP,APPROVED PROGRAMME,CP24,CAPITAL - APPROVED PROGRAMME,PREMISES RELATED EXPENDITURE,2,Sports & Playground Equipment & Maintenance,33,R&M OF GROUNDS,2060,17/10/2014,506439,362.00 ,Capital,WICKSTEED LEISURE LTD,00603152
Fareham Borough Council,http://statistics.data.gov.uk/id/local-authority/24UE,CAPITAL PROGRAMME - OTHER SERVICES,CP,APPROVED PROGRAMME,CP24,CAPITAL - APPROVED PROGRAMME,PREMISES RELATED EXPENDITURE,2,Sports & Playground Equipment & Maintenance,33,R&M OF GROUNDS,2060,17/10/2014,506439,1966.00 ,Capital,WICKSTEED LEISURE LTD,00603152
Fareham Borough Council,http://statistics.data.gov.uk/id/local-authority/24UE,CAPITAL PROGRAMME - OTHER SERVICES,CP,APPROVED PROGRAMME,CP24,CAPITAL - APPROVED PROGRAMME,PREMISES RELATED EXPENDITURE,2,Sports & Playground Equipment & Maintenance,33,R&M OF GROUNDS,2060,17/10/2014,506439,98.30 ,Capital,WICKSTEED LEISURE LTD,00603152
Fareham Borough Council,http://statistics.data.gov.uk/id/local-authority/24UE,HOUSING REVENUE ACCOUNT,BV06,GENERAL ADMINISTRATION EXPENSE,5021,DEPT of COMMUNITY and STREETSCENE,SUPPLIES & SERVICES,4,Facilities & Management Services,19,EXTERNAL PRINTING,4310,03/10/2014,506441,1020.00 ,Revenue,ARTYZAN PRESS,
Fareham Borough Council,http://statistics.data.gov.uk/id/local-authority/24UE,CAPITAL PROGRAMME - HOUSING SERVICES,CP,NEW HOUSE BUILDING,CP10,CAPITAL - NEW HOUSE BUILDING,SUPPLIES & SERVICES,4,Consultancy,15,CONSULTANTS FEES,4401,17/10/2014,506447,2000.00 ,Capital,ATKINS LTD,1885586
Fareham Borough Council,http://statistics.data.gov.uk/id/local-authority/24UE,BALANCE SHEET,BS,BAL. SHEET - D.S.O.,BS1,BAL. SHEET - D.S.O.,TOTAL ASSETS LESS LIABILITIES,BS100,Vehicle Management,38,MATERIALS SUSPENSE ACCOUNT (VE,A016,17/10/2014,506450,3516.00 ,Balance Sheet,WESSEX PETROLEUM LTD,01024472
Fareham Borough Council,http://statistics.data.gov.uk/id/local-authority/24UE,CULTURAL AND RELATED SERVICES,BV09,CULTURE AND HERITAGE,BV09A,DEPT STREETSCENE,PREMISES RELATED EXPENDITURE,2,Cleaning & Janitorial,13,CONTRACT CLEANING - GENERAL,2700,17/10/2014,506451,2790.95 ,Revenue,FOUNTAINS ENVIRONMENTAL LIMITED,1581254
Fareham Borough Council,http://statistics.data.gov.uk/id/local-authority/24UE,PLANNING SERVICES,BV13,ECONOMIC DEVELOPMENT,BV13E,DEPT of STRATEGIC PLANNING and ENVIRONMENT,PREMISES RELATED EXPENDITURE,2,Cleaning & Janitorial,13,CONTRACT CLEANING - GENERAL,2700,17/10/2014,506451,2511.84 ,Revenue,FOUNTAINS ENVIRONMENTAL LIMITED,1581254
Fareham Borough Council,http://statistics.data.gov.uk/id/local-authority/24UE,CULTURAL AND RELATED SERVICES,BV09,RECREATION AND SPORT,BV09B,DEPT of COMMUNITY and STREETSCENE,PREMISES RELATED EXPENDITURE,2,Cleaning & Janitorial,13,CONTRACT CLEANING - GENERAL,2700,17/10/2014,506451,710.98 ,Revenue,FOUNTAINS ENVIRONMENTAL LIMITED,1581254
Fareham Borough Council,http://statistics.data.gov.uk/id/local-authority/24UE,CULTURAL AND RELATED SERVICES,BV09,RECREATION AND SPORT,BV09B,DEPT of COMMUNITY and STREETSCENE,PREMISES RELATED EXPENDITURE,2,Cleaning & Janitorial,13,CONTRACT CLEANING - GENERAL,2700,17/10/2014,506451,256.23 ,Revenue,FOUNTAINS ENVIRONMENTAL LIMITED,1581254
Fareham Borough Council,http://statistics.data.gov.uk/id/local-authority/24UE,HIGHWAYS ROADS AND TRANSPORT,BV12,PARKING SERVICES,BV12D,DEPT STREETSCENE,PREMISES RELATED EXPENDITURE,2,Cleaning & Janitorial,13,CONTRACT CLEANING - GENERAL,2700,17/10/2014,506451,631.78 ,Revenue,FOUNTAINS ENVIRONMENTAL LIMITED,1581254
Fareham Borough Council,http://statistics.data.gov.uk/id/local-authority/24UE,ENVIRONMENT AND REGULATORY SER,BV03,ENVIRONMENTAL HEALTH,BV03C,DEPT STREETSCENE,PREMISES RELATED EXPENDITURE,2,Cleaning & Janitorial,13,CONTRACT CLEANING - GENERAL,2700,17/10/2014,506451,5271.67 ,Revenue,FOUNTAINS ENVIRONMENTAL LIMITED,1581254
Fareham Borough Council,http://statistics.data.gov.uk/id/local-authority/24UE,HOUSING REVENUE ACCOUNT,BV06,COMMUNAL CARETAKING & CLEANING,5027,DEPT of COMMUNITY and STREETSCENE,PREMISES RELATED EXPENDITURE,2,Cleaning & Janitorial,13,CONTRACT CLEANING - GENERAL,2700,17/10/2014,506451,7554.98 ,Revenue,FOUNTAINS ENVIRONMENTAL LIMITED,1581254
Fareham Borough Council,http://statistics.data.gov.uk/id/local-authority/24UE,HOUSING REVENUE ACCOUNT,BV06,COMMUNAL CARETAKING & CLEANING,5027,DEPT of COMMUNITY and STREETSCENE,PREMISES RELATED EXPENDITURE,2,Cleaning & Janitorial,13,CONTRACT CLEANING - GENERAL,2700,17/10/2014,506451,45.07 ,Revenue,FOUNTAINS ENVIRONMENTAL LIMITED,1581254
Fareham Borough Council,http://statistics.data.gov.uk/id/local-authority/24UE,HOUSING REVENUE ACCOUNT,BV06,COMMUNAL CARETAKING & CLEANING,5027,DEPT of COMMUNITY and STREETSCENE,PREMISES RELATED EXPENDITURE,2,Cleaning & Janitorial,13,CONTRACT CLEANING - GENERAL,2700,17/10/2014,506451,90.14 ,Revenue,FOUNTAINS ENVIRONMENTAL LIMITED,1581254
Fareham Borough Council,http://statistics.data.gov.uk/id/local-authority/24UE,OTHER REVENUE ACCOUNTS,RV,CONTRACT SERVICES D.S.O.,RV14,DEPT STREETSCENE,PREMISES RELATED EXPENDITURE,2,Cleaning & Janitorial,13,CONTRACT CLEANING - GENERAL,2700,17/10/2014,506451,161.97 ,Revenue,FOUNTAINS ENVIRONMENTAL LIMITED,1581254
Fareham Borough Council,http://statistics.data.gov.uk/id/local-authority/24UE,OTHER REVENUE ACCOUNTS,RV,CONTRACT SERVICES D.S.O.,RV14,DEPT of STRATEGIC PLANNING and ENVIRONMENT,PREMISES RELATED EXPENDITURE,2,Cleaning & Janitorial,13,CONTRACT CLEANING - GENERAL,2700,17/10/2014,506451,112.31 ,Revenue,FOUNTAINS ENVIRONMENTAL LIMITED,1581254
Fareham Borough Council,http://statistics.data.gov.uk/id/local-authority/24UE,OTHER REVENUE ACCOUNTS,RV,CONTRACT SERVICES D.S.O.,RV14,DEPT of COMMUNITY and STREETSCENE,PREMISES RELATED EXPENDITURE,2,Cleaning & Janitorial,13,CONTRACT CLEANING - GENERAL,2700,17/10/2014,506451,830.70 ,Revenue,FOUNTAINS ENVIRONMENTAL LIMITED,1581254
Fareham Borough Council,http://statistics.data.gov.uk/id/local-authority/24UE,OTHER REVENUE ACCOUNTS,RV,CONTRACT SERVICES D.S.O.,RV14,DEPT of COMMUNITY and STREETSCENE,PREMISES RELATED EXPENDITURE,2,Cleaning & Janitorial,13,CONTRACT CLEANING - GENERAL,2700,17/10/2014,506451,379.60 ,Revenue,FOUNTAINS ENVIRONMENTAL LIMITED,1581254
Fareham Borough Council,http://statistics.data.gov.uk/id/local-authority/24UE,OTHER REVENUE ACCOUNTS,RV,NON WORK GROUP HOLDING ACCOUNT,RV18,DEPT of FINANCE and RESOURCES,PREMISES RELATED EXPENDITURE,2,Cleaning & Janitorial,13,WINDOW CLEANING,2760,17/10/2014,506451,55.47 ,Revenue,FOUNTAINS ENVIRONMENTAL LIMITED,1581254
Fareham Borough Council,http://statistics.data.gov.uk/id/local-authority/24UE,OTHER REVENUE ACCOUNTS,RV,NON WORK GROUP HOLDING ACCOUNT,RV18,DEPT of FINANCE and RESOURCES,PREMISES RELATED EXPENDITURE,2,Cleaning & Janitorial,13,CONTRACT CLEANING - GENERAL,2700,17/10/2014,506451,1301.61 ,Revenue,FOUNTAINS ENVIRONMENTAL LIMITED,1581254
Fareham Borough Council,http://statistics.data.gov.uk/id/local-authority/24UE,OTHER REVENUE ACCOUNTS,RV,NON WORK GROUP HOLDING ACCOUNT,RV18,DEPT of FINANCE and RESOURCES,PREMISES RELATED EXPENDITURE,2,Cleaning & Janitorial,13,CONTRACT CLEANING - GENERAL,2700,17/10/2014,506451,151.84 ,Revenue,FOUNTAINS ENVIRONMENTAL LIMITED,1581254
Fareham Borough Council,http://statistics.data.gov.uk/id/local-authority/24UE,OTHER REVENUE ACCOUNTS,RV,NON WORK GROUP HOLDING ACCOUNT,RV18,DEPT of FINANCE and RESOURCES,PREMISES RELATED EXPENDITURE,2,Cleaning & Janitorial,13,CONTRACT CLEANING - GENERAL,2700,17/10/2014,506451,536.87 ,Revenue,FOUNTAINS ENVIRONMENTAL LIMITED,1581254
Fareham Borough Council,http://statistics.data.gov.uk/id/local-authority/24UE,CORPORATE & DEMOCRATIC CORE,BV07A,CORPORATE MANAGEMENT,BV07AB,DEPT of FINANCE and RESOURCES,SUPPLIES & SERVICES,4,Financial Services,20,EXTERNAL AUDIT FEES,4419,17/10/2014,506456,2200.00 ,Revenue,AUDIT COMMISSION,
Fareham Borough Council,http://statistics.data.gov.uk/id/local-authority/24UE,CULTURAL AND RELATED SERVICES,BV09,RECREATION AND SPORT,BV09B,DEPT STREETSCENE,PREMISES RELATED EXPENDITURE,2,Horticultural,24,R&M OF TREE PRESERVATION,2063,10/10/2014,506458,3129.20 ,Revenue,SAPLING ARBORICULTURE LTD,5414238
Fareham Borough Council,http://statistics.data.gov.uk/id/local-authority/24UE,ENVIRONMENT AND REGULATORY SER,BV03,STREET CLEANSING,BV03F,DEPT STREETSCENE,TRANSPORT RELATED EXPENDITURE,3,Vehicle Management,38,ROUTINE REPAIRS VEHICLES/PLANT,3010,03/10/2014,506470,7.68 ,Revenue,HENDY GROUP LTD,00056988
Fareham Borough Council,http://statistics.data.gov.uk/id/local-authority/24UE,ENVIRONMENT AND REGULATORY SER,BV03,STREET CLEANSING,BV03F,DEPT STREETSCENE,TRANSPORT RELATED EXPENDITURE,3,Vehicle Management,38,ROUTINE REPAIRS VEHICLES/PLANT,3010,03/10/2014,506470,687.86 ,Revenue,HENDY GROUP LTD,00056988
Fareham Borough Council,http://statistics.data.gov.uk/id/local-authority/24UE,ENVIRONMENT AND REGULATORY SER,BV03,STREET CLEANSING,BV03F,DEPT STREETSCENE,TRANSPORT RELATED EXPENDITURE,3,Vehicle Management,38,ROUTINE REPAIRS VEHICLES/PLANT,3010,03/10/2014,506470,262.18 ,Revenue,HENDY GROUP LTD,00056988
Fareham Borough Council,http://statistics.data.gov.uk/id/local-authority/24UE,ENVIRONMENT AND REGULATORY SER,BV03,STREET CLEANSING,BV03F,DEPT STREETSCENE,TRANSPORT RELATED EXPENDITURE,3,Vehicle Management,38,ROUTINE REPAIRS VEHICLES/PLANT,3010,03/10/2014,506470,350.00 ,Revenue,HENDY GROUP LTD,00056988
Fareham Borough Council,http://statistics.data.gov.uk/id/local-authority/24UE,ENVIRONMENT AND REGULATORY SER,BV03,STREET CLEANSING,BV03F,DEPT STREETSCENE,TRANSPORT RELATED EXPENDITURE,3,Vehicle Management,38,ROUTINE REPAIRS VEHICLES/PLANT,3010,03/10/2014,506470,70.00 ,Revenue,HENDY GROUP LTD,00056988
Fareham Borough Council,http://statistics.data.gov.uk/id/local-authority/24UE,CAPITAL PROGRAMME - OTHER SERVICES,CP,SCHEMES FUNDED FROM BALANCES,CP20,CAPITAL - SCHEMES FUNDED FROM BALANCES,SUPPLIES & SERVICES,4,Consultancy,15,CONSULTANTS FEES,4401,17/10/2014,506483,3750.00 ,Capital,BAQUS GROUP PLC,6013357
Fareham Borough Council,http://statistics.data.gov.uk/id/local-authority/24UE,CAPITAL PROGRAMME - OTHER SERVICES,CP,COMPUTER APPROVED,CP23,CAPITAL - COMPUTER APPROVED,SUPPLIES & SERVICES,4,Consultancy,15,FURNITURE & EQUIPT. PURCHASES,4000,17/10/2014,506496,757.00 ,Capital,GENISYS,03163917
Fareham Borough Council,http://statistics.data.gov.uk/id/local-authority/24UE,OTHER REVENUE ACCOUNTS,RV,NON WORK GROUP HOLDING ACCOUNT,RV18,DEPT of FINANCE and RESOURCES,EMPLOYEES RELATED EXPENDITURE,1,Financial Services,20,AGENCY WORKERS,1050,03/10/2014,506497,2426.89 ,Revenue,COMPLETE CASH MANAGEMENT LIMITED,08067814
Fareham Borough Council,http://statistics.data.gov.uk/id/local-authority/24UE,HOUSING REVENUE ACCOUNT,BV06,RESPONSIVE & VOID MAINTENANCE,5901,DEPT STREETSCENE,PREMISES RELATED EXPENDITURE,2,Building Construction Materials,10,GENERAL REPAIRS,2018,01/10/2014,506498,-2000.00 ,Revenue,INSTAGROUP (CREST SURVEYING LTD),01500228
Fareham Borough Council,http://statistics.data.gov.uk/id/local-authority/24UE,HOUSING REVENUE ACCOUNT,BV06,RESPONSIVE & VOID MAINTENANCE,5901,DEPT STREETSCENE,PREMISES RELATED EXPENDITURE,2,Building Construction Materials,10,GENERAL REPAIRS,2018,01/10/2014,506499,-2000.00 ,Revenue,INSTAGROUP (CREST SURVEYING LTD),01500228
Fareham Borough Council,http://statistics.data.gov.uk/id/local-authority/24UE,CAPITAL PROGRAMME - HOUSING SERVICES,CP,RENOVATION OF L.A. DWELLINGS,CP10,CAPITAL - IMPROVEMENTS WORK/MODERNIS'N,PREMISES RELATED EXPENDITURE,2,Building Construction Materials,10,R & M OF BUILDINGS,2000,01/10/2014,506500,-5000.00 ,Capital,INSTAGROUP (CREST SURVEYING LTD),01500228
Fareham Borough Council,http://statistics.data.gov.uk/id/local-authority/24UE,CAPITAL PROGRAMME - HOUSING SERVICES,CP,RENOVATION OF L.A. DWELLINGS,CP10,CAPITAL - IMPROVEMENTS WORK/MODERNIS'N,PREMISES RELATED EXPENDITURE,2,Building Construction Materials,10,R & M OF BUILDINGS,2000,03/10/2014,506508,5000.00 ,Capital,INSTAGROUP (CREST SURVEYING LTD),01500228
Fareham Borough Council,http://statistics.data.gov.uk/id/local-authority/24UE,HOUSING REVENUE ACCOUNT,BV06,RESPONSIVE & VOID MAINTENANCE,5901,DEPT STREETSCENE,PREMISES RELATED EXPENDITURE,2,Building Construction Materials,10,GENERAL REPAIRS,2018,03/10/2014,506509,2000.00 ,Revenue,INSTAGROUP (CREST SURVEYING LTD),01500228
Fareham Borough Council,http://statistics.data.gov.uk/id/local-authority/24UE,HOUSING REVENUE ACCOUNT,BV06,RESPONSIVE & VOID MAINTENANCE,5901,DEPT STREETSCENE,PREMISES RELATED EXPENDITURE,2,Building Construction Materials,10,GENERAL REPAIRS,2018,03/10/2014,506510,2000.00 ,Revenue,INSTAGROUP (CREST SURVEYING LTD),01500228
Fareham Borough Council,http://statistics.data.gov.uk/id/local-authority/24UE,CAPITAL PROGRAMME - HOUSING SERVICES,CP,HOUSE RENOVATION GRANTS,CP11,CAPITAL - HOUSE RENOVATION GRANTS,SUPPLIES & SERVICES,4,Unclassified,,GRANTS AND SUBSCRIPTIONS,4700,03/10/2014,506525,5980.00 ,Capital,J WASSELL BUILDERS LIMITED,04487976
Fareham Borough Council,http://statistics.data.gov.uk/id/local-authority/24UE,CAPITAL PROGRAMME - HOUSING SERVICES,CP,NEW HOUSE BUILDING,CP10,CAPITAL - NEW HOUSE BUILDING,SUPPLIES & SERVICES,4,"Works - Construction, Repair & Maintenance",39,CONSULTANTS FEES,4401,03/10/2014,506530,5570.00 ,Capital,BRYMOR CONTRACTORS LTD,2099201
Fareham Borough Council,http://statistics.data.gov.uk/id/local-authority/24UE,OTHER REVENUE ACCOUNTS,RV,CONTRACT SERVICES D.S.O.,RV14,DEPT of STRATEGIC PLANNING and ENVIRONMENT,SUPPLIES & SERVICES,4,Local/Central Government,98,SUB-CONTRACTORS CHARGES,4432,03/10/2014,506535,522.60 ,Revenue,RUSHMOOR BOROUGH COUNCIL,
Fareham Borough Council,http://statistics.data.gov.uk/id/local-authority/24UE,CAPITAL PROGRAMME - OTHER SERVICES,CP,SCHEMES FUNDED FROM BALANCES,CP20,CAPITAL - SCHEMES FUNDED FROM BALANCES,PREMISES RELATED EXPENDITURE,2,Unclassified,,LAND/BUILDINGS ACQUISITIONS,2601,03/10/2014,506541,747855.00 ,Capital,DAVITT JONES BOULD,
Fareham Borough Council,http://statistics.data.gov.uk/id/local-authority/24UE,CULTURAL AND RELATED SERVICES,BV09,CULTURE AND HERITAGE,BV09A,DEPT of FINANCE and RESOURCES,PREMISES RELATED EXPENDITURE,2,Utilities,37,ELECTRICITY,2120,03/10/2014,506542,34.65 ,Revenue,EDF ENERGY,02366852
Fareham Borough Council,http://statistics.data.gov.uk/id/local-authority/24UE,ENVIRONMENT AND REGULATORY SER,BV03,ENVIRONMENTAL HEALTH,BV03C,DEPT STREETSCENE,PREMISES RELATED EXPENDITURE,2,Utilities,37,ELECTRICITY,2120,03/10/2014,506542,136.20 ,Revenue,EDF ENERGY,02366852
Fareham Borough Council,http://statistics.data.gov.uk/id/local-authority/24UE,HIGHWAYS ROADS AND TRANSPORT,BV12,PARKING SERVICES,BV12D,DEPT STREETSCENE,PREMISES RELATED EXPENDITURE,2,Utilities,37,ELECTRICITY,2120,03/10/2014,506542,55.08 ,Revenue,EDF ENERGY,02366852
Fareham Borough Council,http://statistics.data.gov.uk/id/local-authority/24UE,HOUSING REVENUE ACCOUNT,BV06,COMMUNAL LIGHTING,5026,DEPT of COMMUNITY and STREETSCENE,PREMISES RELATED EXPENDITURE,2,Utilities,37,ELECTRICITY,2120,03/10/2014,506542,388.80 ,Revenue,EDF ENERGY,02366852
Fareham Borough Council,http://statistics.data.gov.uk/id/local-authority/24UE,GENERAL FUND HOUSING,BV05,HOMELESSNESS,BV05F,DEPT of COMMUNITY and STREETSCENE,SUPPLIES & SERVICES,4,Unclassified,,OTHER EXPENDITURE,4940,03/10/2014,506551,625.00 ,Revenue,redacted personal data,
Fareham Borough Council,http://statistics.data.gov.uk/id/local-authority/24UE,CORPORATE & DEMOCRATIC CORE,BV07A,DEMOCRATIC REP.& MANAGEMENT,BV07AA,DEPT of FINANCE and RESOURCES,SUPPLIES & SERVICES,4,Horticultural,24,MATERIALS (TREE PLANTING),4008,03/10/2014,506625,600.00 ,Revenue,HILLIER NURSERIES,01260468
Fareham Borough Council,http://statistics.data.gov.uk/id/local-authority/24UE,ENVIRONMENT AND REGULATORY SER,BV03,WASTE COLLECTION,BV03G,DEPT STREETSCENE,EMPLOYEES RELATED EXPENDITURE,1,Human Resources,26,AGENCY WORKERS,1050,03/10/2014,506646,562.37 ,Revenue,DRIVERS DIRECT RECRUITMENT LTD,04297475
Fareham Borough Council,http://statistics.data.gov.uk/id/local-authority/24UE,ENVIRONMENT AND REGULATORY SER,BV03,WASTE COLLECTION,BV03G,DEPT STREETSCENE,EMPLOYEES RELATED EXPENDITURE,1,Human Resources,26,AGENCY WORKERS,1050,03/10/2014,506648,555.70 ,Revenue,DRIVERS DIRECT RECRUITMENT LTD,04297475
Fareham Borough Council,http://statistics.data.gov.uk/id/local-authority/24UE,ENVIRONMENT AND REGULATORY SER,BV03,WASTE COLLECTION,BV03G,DEPT STREETSCENE,EMPLOYEES RELATED EXPENDITURE,1,Human Resources,26,AGENCY WORKERS,1050,03/10/2014,506649,455.27 ,Revenue,DRIVERS DIRECT RECRUITMENT LTD,04297475
Fareham Borough Council,http://statistics.data.gov.uk/id/local-authority/24UE,ENVIRONMENT AND REGULATORY SER,BV03,WASTE COLLECTION,BV03G,DEPT STREETSCENE,EMPLOYEES RELATED EXPENDITURE,1,Human Resources,26,AGENCY WORKERS,1050,03/10/2014,506649,100.43 ,Revenue,DRIVERS DIRECT RECRUITMENT LTD,04297475
Fareham Borough Council,http://statistics.data.gov.uk/id/local-authority/24UE,CORPORATE & DEMOCRATIC CORE,BV07A,CORPORATE MANAGEMENT,BV07AB,DEPT of FINANCE and RESOURCES,SUPPLIES & SERVICES,4,Furniture,21,FURNITURE & EQUIPT. PURCHASES,4000,17/10/2014,506683,438.00 ,Revenue,PORTSDOWN OFFICE LIMITED,01779525
Fareham Borough Council,http://statistics.data.gov.uk/id/local-authority/24UE,CORPORATE & DEMOCRATIC CORE,BV07A,CORPORATE MANAGEMENT,BV07AB,DEPT of FINANCE and RESOURCES,SUPPLIES & SERVICES,4,Furniture,21,FURNITURE & EQUIPT. PURCHASES,4000,17/10/2014,506683,438.00 ,Revenue,PORTSDOWN OFFICE LIMITED,01779525
Fareham Borough Council,http://statistics.data.gov.uk/id/local-authority/24UE,OTHER REVENUE ACCOUNTS,RV,NON WORK GROUP HOLDING ACCOUNT,RV18,DEPT of FINANCE and RESOURCES,SUPPLIES & SERVICES,4,Stationery,34,STATIONERY,4320,03/10/2014,506685,541.00 ,Revenue,TRADE ENVELOPE PRINTING CO LTD,2193067
Fareham Borough Council,http://statistics.data.gov.uk/id/local-authority/24UE,OTHER REVENUE ACCOUNTS,RV,NON WORK GROUP HOLDING ACCOUNT,RV18,DEPT of FINANCE and RESOURCES,SUPPLIES & SERVICES,4,Information Communication Technology,27,FURNITURE & EQUIPT. MAINT.,4030,24/10/2014,506686,164.69 ,Revenue,Q ASSOCIATES,01913004
Fareham Borough Council,http://statistics.data.gov.uk/id/local-authority/24UE,OTHER REVENUE ACCOUNTS,RV,NON WORK GROUP HOLDING ACCOUNT,RV18,DEPT of FINANCE and RESOURCES,SUPPLIES & SERVICES,4,Information Communication Technology,27,FURNITURE & EQUIPT. MAINT.,4030,24/10/2014,506686,389.50 ,Revenue,Q ASSOCIATES,01913004
Fareham Borough Council,http://statistics.data.gov.uk/id/local-authority/24UE,CORPORATE & DEMOCRATIC CORE,BV07A,CORPORATE MANAGEMENT,BV07AB,DEPT of FINANCE and RESOURCES,SUPPLIES & SERVICES,4,Facilities & Management Services,19,PROVISION OF NOTICE BOARDS,4001,24/10/2014,506687,2120.00 ,Revenue,PROGRESSION DESIGN & PRINT,3295817
Fareham Borough Council,http://statistics.data.gov.uk/id/local-authority/24UE,ENVIRONMENT AND REGULATORY SER,BV03,CEMETERIES CREM & MORTUARY,BV03A,DEPT STREETSCENE,PREMISES RELATED EXPENDITURE,2,Utilities,37,ELECTRICITY,2120,03/10/2014,506688,26.07 ,Revenue,BRITISH GAS BUSINESS,3078711
Fareham Borough Council,http://statistics.data.gov.uk/id/local-authority/24UE,FINANCING & INVESTMENT I&E,BVB02,INVESTMENT PROPERTIES,BVB170,DEPT of FINANCE and RESOURCES,PREMISES RELATED EXPENDITURE,2,Utilities,37,ELECTRICITY,2120,03/10/2014,506688,149.29 ,Revenue,BRITISH GAS BUSINESS,3078711
Fareham Borough Council,http://statistics.data.gov.uk/id/local-authority/24UE,CULTURAL AND RELATED SERVICES,BV09,RECREATION AND SPORT,BV09B,DEPT of COMMUNITY and STREETSCENE,PREMISES RELATED EXPENDITURE,2,Utilities,37,ELECTRICITY,2120,03/10/2014,506688,187.68 ,Revenue,BRITISH GAS BUSINESS,3078711
Fareham Borough Council,http://statistics.data.gov.uk/id/local-authority/24UE,CULTURAL AND RELATED SERVICES,BV09,RECREATION AND SPORT,BV09B,DEPT of COMMUNITY and STREETSCENE,PREMISES RELATED EXPENDITURE,2,Utilities,37,ELECTRICITY,2120,03/10/2014,506688,600.45 ,Revenue,BRITISH GAS BUSINESS,3078711
Fareham Borough Council,http://statistics.data.gov.uk/id/local-authority/24UE,HIGHWAYS ROADS AND TRANSPORT,BV12,PARKING SERVICES,BV12D,DEPT STREETSCENE,PREMISES RELATED EXPENDITURE,2,Utilities,37,ELECTRICITY,2120,03/10/2014,506688,3204.97 ,Revenue,BRITISH GAS BUSINESS,3078711
Fareham Borough Council,http://statistics.data.gov.uk/id/local-authority/24UE,ENVIRONMENT AND REGULATORY SER,BV03,ENVIRONMENTAL HEALTH,BV03C,DEPT STREETSCENE,PREMISES RELATED EXPENDITURE,2,Utilities,37,ELECTRICITY,2120,03/10/2014,506688,256.45 ,Revenue,BRITISH GAS BUSINESS,3078711
Fareham Borough Council,http://statistics.data.gov.uk/id/local-authority/24UE,HOUSING REVENUE ACCOUNT,BV06,COMMUNAL HEATING SERVICES,5025,DEPT of COMMUNITY and STREETSCENE,PREMISES RELATED EXPENDITURE,2,Utilities,37,ELECTRICITY,2120,03/10/2014,506688,180.47 ,Revenue,BRITISH GAS BUSINESS,3078711
Fareham Borough Council,http://statistics.data.gov.uk/id/local-authority/24UE,HOUSING REVENUE ACCOUNT,BV06,COMMUNAL HEATING SERVICES,5025,DEPT of COMMUNITY and STREETSCENE,PREMISES RELATED EXPENDITURE,2,Utilities,37,ELECTRICITY,2120,03/10/2014,506688,2577.05 ,Revenue,BRITISH GAS BUSINESS,3078711
Fareham Borough Council,http://statistics.data.gov.uk/id/local-authority/24UE,HOUSING REVENUE ACCOUNT,BV06,COMMUNAL LIGHTING,5026,DEPT of COMMUNITY and STREETSCENE,PREMISES RELATED EXPENDITURE,2,Utilities,37,ELECTRICITY,2120,03/10/2014,506688,441.05 ,Revenue,BRITISH GAS BUSINESS,3078711
Fareham Borough Council,http://statistics.data.gov.uk/id/local-authority/24UE,HOUSING REVENUE ACCOUNT,BV06,COMMUNAL LIGHTING,5026,DEPT of COMMUNITY and STREETSCENE,PREMISES RELATED EXPENDITURE,2,Utilities,37,ELECTRICITY,2120,03/10/2014,506688,505.75 ,Revenue,BRITISH GAS BUSINESS,3078711
Fareham Borough Council,http://statistics.data.gov.uk/id/local-authority/24UE,HOUSING REVENUE ACCOUNT,BV06,OTHER COMMUNAL SERVICES,5034,DEPT of COMMUNITY and STREETSCENE,PREMISES RELATED EXPENDITURE,2,Utilities,37,AERIALS & TV OUTLETS,2540,03/10/2014,506688,30.46 ,Revenue,BRITISH GAS BUSINESS,3078711
Fareham Borough Council,http://statistics.data.gov.uk/id/local-authority/24UE,OTHER REVENUE ACCOUNTS,RV,NON WORK GROUP HOLDING ACCOUNT,RV18,DEPT of FINANCE and RESOURCES,PREMISES RELATED EXPENDITURE,2,Utilities,37,ELECTRICITY,2120,03/10/2014,506688,854.49 ,Revenue,BRITISH GAS BUSINESS,3078711
Fareham Borough Council,http://statistics.data.gov.uk/id/local-authority/24UE,CULTURAL AND RELATED SERVICES,BV09,CULTURE AND HERITAGE,BV09A,DEPT of FINANCE and RESOURCES,PREMISES RELATED EXPENDITURE,2,Consultancy,15,R & M OF BUILDINGS,2000,10/10/2014,506909,375.00 ,Revenue,redacted personal data,
Fareham Borough Council,http://statistics.data.gov.uk/id/local-authority/24UE,FINANCING & INVESTMENT I&E,BVB02,INVESTMENT PROPERTIES,BVB170,DEPT of FINANCE and RESOURCES,PREMISES RELATED EXPENDITURE,2,Consultancy,15,R & M OF BUILDINGS,2000,10/10/2014,506909,300.00 ,Revenue,redacted personal data,
Fareham Borough Council,http://statistics.data.gov.uk/id/local-authority/24UE,FINANCING & INVESTMENT I&E,BVB02,INVESTMENT PROPERTIES,BVB170,DEPT of FINANCE and RESOURCES,PREMISES RELATED EXPENDITURE,2,Consultancy,15,R & M OF BUILDINGS,2000,10/10/2014,506910,700.00 ,Revenue,redacted personal data,
Fareham Borough Council,http://statistics.data.gov.uk/id/local-authority/24UE,CULTURAL AND RELATED SERVICES,BV09,RECREATION AND SPORT,BV09B,DEPT of COMMUNITY and STREETSCENE,PREMISES RELATED EXPENDITURE,2,Horticultural,24,R&M OF GROUNDS,2060,17/10/2014,506911,1100.00 ,Revenue,redacted personal data,
Fareham Borough Council,http://statistics.data.gov.uk/id/local-authority/24UE,ENVIRONMENT AND REGULATORY SER,BV03,CEMETERIES CREM & MORTUARY,BV03A,DEPT STREETSCENE,PREMISES RELATED EXPENDITURE,2,"Works - Construction, Repair & Maintenance",39,R & M OF BUILDINGS,2000,10/10/2014,506912,3129.14 ,Revenue,COMSERV (UK) LTD,05193429
Fareham Borough Council,http://statistics.data.gov.uk/id/local-authority/24UE,CULTURAL AND RELATED SERVICES,BV09,CULTURE AND HERITAGE,BV09A,DEPT of FINANCE and RESOURCES,PREMISES RELATED EXPENDITURE,2,"Works - Construction, Repair & Maintenance",39,R & M OF BUILDINGS,2000,10/10/2014,506912,80.00 ,Revenue,COMSERV (UK) LTD,05193429
Fareham Borough Council,http://statistics.data.gov.uk/id/local-authority/24UE,FINANCING & INVESTMENT I&E,BVB02,INVESTMENT PROPERTIES,BVB170,DEPT of FINANCE and RESOURCES,PREMISES RELATED EXPENDITURE,2,"Works - Construction, Repair & Maintenance",39,R & M OF BUILDINGS,2000,10/10/2014,506912,22.60 ,Revenue,COMSERV (UK) LTD,05193429
Fareham Borough Council,http://statistics.data.gov.uk/id/local-authority/24UE,FINANCING & INVESTMENT I&E,BVB02,INVESTMENT PROPERTIES,BVB170,DEPT of FINANCE and RESOURCES,PREMISES RELATED EXPENDITURE,2,"Works - Construction, Repair & Maintenance",39,R&M OF GROUNDS,2060,10/10/2014,506912,29.68 ,Revenue,COMSERV (UK) LTD,05193429
Fareham Borough Council,http://statistics.data.gov.uk/id/local-authority/24UE,FINANCING & INVESTMENT I&E,BVB02,INVESTMENT PROPERTIES,BVB170,DEPT of FINANCE and RESOURCES,PREMISES RELATED EXPENDITURE,2,"Works - Construction, Repair & Maintenance",39,R & M OF BUILDINGS,2000,10/10/2014,506912,30.12 ,Revenue,COMSERV (UK) LTD,05193429
Fareham Borough Council,http://statistics.data.gov.uk/id/local-authority/24UE,FINANCING & INVESTMENT I&E,BVB02,INVESTMENT PROPERTIES,BVB170,DEPT of FINANCE and RESOURCES,PREMISES RELATED EXPENDITURE,2,"Works - Construction, Repair & Maintenance",39,R&M OF GROUNDS,2060,10/10/2014,506912,30.13 ,Revenue,COMSERV (UK) LTD,05193429
Fareham Borough Council,http://statistics.data.gov.uk/id/local-authority/24UE,FINANCING & INVESTMENT I&E,BVB02,INVESTMENT PROPERTIES,BVB170,DEPT of FINANCE and RESOURCES,PREMISES RELATED EXPENDITURE,2,"Works - Construction, Repair & Maintenance",39,R & M OF BUILDINGS,2000,10/10/2014,506912,37.17 ,Revenue,COMSERV (UK) LTD,05193429
Fareham Borough Council,http://statistics.data.gov.uk/id/local-authority/24UE,FINANCING & INVESTMENT I&E,BVB02,INVESTMENT PROPERTIES,BVB170,DEPT of FINANCE and RESOURCES,PREMISES RELATED EXPENDITURE,2,"Works - Construction, Repair & Maintenance",39,R&M OF GROUNDS,2060,10/10/2014,506912,37.66 ,Revenue,COMSERV (UK) LTD,05193429
Fareham Borough Council,http://statistics.data.gov.uk/id/local-authority/24UE,FINANCING & INVESTMENT I&E,BVB02,INVESTMENT PROPERTIES,BVB170,DEPT of FINANCE and RESOURCES,PREMISES RELATED EXPENDITURE,2,"Works - Construction, Repair & Maintenance",39,R&M OF GROUNDS,2060,10/10/2014,506912,60.26 ,Revenue,COMSERV (UK) LTD,05193429
Fareham Borough Council,http://statistics.data.gov.uk/id/local-authority/24UE,FINANCING & INVESTMENT I&E,BVB02,INVESTMENT PROPERTIES,BVB170,DEPT of FINANCE and RESOURCES,PREMISES RELATED EXPENDITURE,2,"Works - Construction, Repair & Maintenance",39,R & M OF BUILDINGS,2000,10/10/2014,506912,102.34 ,Revenue,COMSERV (UK) LTD,05193429
Fareham Borough Council,http://statistics.data.gov.uk/id/local-authority/24UE,FINANCING & INVESTMENT I&E,BVB02,INVESTMENT PROPERTIES,BVB170,DEPT of FINANCE and RESOURCES,PREMISES RELATED EXPENDITURE,2,"Works - Construction, Repair & Maintenance",39,R & M OF BUILDINGS,2000,10/10/2014,506912,187.66 ,Revenue,COMSERV (UK) LTD,05193429
Fareham Borough Council,http://statistics.data.gov.uk/id/local-authority/24UE,CORPORATE & DEMOCRATIC CORE,BV07A,CORPORATE MANAGEMENT,BV07AB,DEPT of FINANCE and RESOURCES,SUPPLIES & SERVICES,4,"Works - Construction, Repair & Maintenance",39,PROVISION OF NOTICE BOARDS,4001,10/10/2014,506912,45.00 ,Revenue,COMSERV (UK) LTD,05193429
Fareham Borough Council,http://statistics.data.gov.uk/id/local-authority/24UE,CULTURAL AND RELATED SERVICES,BV09,CULTURE AND HERITAGE,BV09A,DEPT of COMMUNITY and STREETSCENE,PREMISES RELATED EXPENDITURE,2,"Works - Construction, Repair & Maintenance",39,R & M OF BUILDINGS,2000,10/10/2014,506912,68.01 ,Revenue,COMSERV (UK) LTD,05193429
Fareham Borough Council,http://statistics.data.gov.uk/id/local-authority/24UE,CULTURAL AND RELATED SERVICES,BV09,RECREATION AND SPORT,BV09B,DEPT of COMMUNITY and STREETSCENE,PREMISES RELATED EXPENDITURE,2,"Works - Construction, Repair & Maintenance",39,R & M OF BUILDINGS,2000,10/10/2014,506912,30.01 ,Revenue,COMSERV (UK) LTD,05193429
Fareham Borough Council,http://statistics.data.gov.uk/id/local-authority/24UE,CULTURAL AND RELATED SERVICES,BV09,RECREATION AND SPORT,BV09B,DEPT of COMMUNITY and STREETSCENE,PREMISES RELATED EXPENDITURE,2,"Works - Construction, Repair & Maintenance",39,R & M OF BUILDINGS,2000,10/10/2014,506912,39.00 ,Revenue,COMSERV (UK) LTD,05193429
Fareham Borough Council,http://statistics.data.gov.uk/id/local-authority/24UE,HIGHWAYS ROADS AND TRANSPORT,BV12,PARKING SERVICES,BV12D,DEPT STREETSCENE,PREMISES RELATED EXPENDITURE,2,"Works - Construction, Repair & Maintenance",39,R & M OF BUILDINGS,2000,10/10/2014,506912,386.11 ,Revenue,COMSERV (UK) LTD,05193429
Fareham Borough Council,http://statistics.data.gov.uk/id/local-authority/24UE,ENVIRONMENT AND REGULATORY SER,BV03,ENVIRONMENTAL HEALTH,BV03C,DEPT STREETSCENE,PREMISES RELATED EXPENDITURE,2,"Works - Construction, Repair & Maintenance",39,R & M OF BUILDINGS,2000,10/10/2014,506912,118.86 ,Revenue,COMSERV (UK) LTD,05193429
Fareham Borough Council,http://statistics.data.gov.uk/id/local-authority/24UE,OTHER REVENUE ACCOUNTS,RV,NON WORK GROUP HOLDING ACCOUNT,RV18,DEPT of FINANCE and RESOURCES,PREMISES RELATED EXPENDITURE,2,"Works - Construction, Repair & Maintenance",39,R & M OF FIXED PLANT,2040,10/10/2014,506912,32.87 ,Revenue,COMSERV (UK) LTD,05193429
Fareham Borough Council,http://statistics.data.gov.uk/id/local-authority/24UE,OTHER REVENUE ACCOUNTS,RV,NON WORK GROUP HOLDING ACCOUNT,RV18,DEPT of FINANCE and RESOURCES,PREMISES RELATED EXPENDITURE,2,"Works - Construction, Repair & Maintenance",39,R & M OF BUILDINGS,2000,10/10/2014,506912,51.82 ,Revenue,COMSERV (UK) LTD,05193429
Fareham Borough Council,http://statistics.data.gov.uk/id/local-authority/24UE,OTHER REVENUE ACCOUNTS,RV,NON WORK GROUP HOLDING ACCOUNT,RV18,DEPT of FINANCE and RESOURCES,PREMISES RELATED EXPENDITURE,2,"Works - Construction, Repair & Maintenance",39,R & M OF BUILDINGS,2000,10/10/2014,506912,84.91 ,Revenue,COMSERV (UK) LTD,05193429
Fareham Borough Council,http://statistics.data.gov.uk/id/local-authority/24UE,OTHER REVENUE ACCOUNTS,RV,NON WORK GROUP HOLDING ACCOUNT,RV18,DEPT of FINANCE and RESOURCES,PREMISES RELATED EXPENDITURE,2,"Works - Construction, Repair & Maintenance",39,R & M OF BUILDINGS,2000,10/10/2014,506912,403.39 ,Revenue,COMSERV (UK) LTD,05193429
Fareham Borough Council,http://statistics.data.gov.uk/id/local-authority/24UE,OTHER REVENUE ACCOUNTS,RV,NON WORK GROUP HOLDING ACCOUNT,RV18,DEPT of FINANCE and RESOURCES,PREMISES RELATED EXPENDITURE,2,"Works - Construction, Repair & Maintenance",39,R & M OF BUILDINGS,2000,10/10/2014,506912,196.42 ,Revenue,COMSERV (UK) LTD,05193429
Fareham Borough Council,http://statistics.data.gov.uk/id/local-authority/24UE,ENVIRONMENT AND REGULATORY SER,BV03,CEMETERIES CREM & MORTUARY,BV03A,DEPT STREETSCENE,PREMISES RELATED EXPENDITURE,2,"Works - Construction, Repair & Maintenance",39,R & M OF BUILDINGS,2000,17/10/2014,506913,46.31 ,Revenue,COMSERV (UK) LTD,05193429
Fareham Borough Council,http://statistics.data.gov.uk/id/local-authority/24UE,FINANCING & INVESTMENT I&E,BVB02,INVESTMENT PROPERTIES,BVB170,DEPT of FINANCE and RESOURCES,PREMISES RELATED EXPENDITURE,2,"Works - Construction, Repair & Maintenance",39,R&M OF GROUNDS,2060,17/10/2014,506913,28.86 ,Revenue,COMSERV (UK) LTD,05193429
Fareham Borough Council,http://statistics.data.gov.uk/id/local-authority/24UE,CULTURAL AND RELATED SERVICES,BV09,RECREATION AND SPORT,BV09B,DEPT STREETSCENE,PREMISES RELATED EXPENDITURE,2,"Works - Construction, Repair & Maintenance",39,R & M OF BUILDINGS,2000,17/10/2014,506913,27.44 ,Revenue,COMSERV (UK) LTD,05193429
Fareham Borough Council,http://statistics.data.gov.uk/id/local-authority/24UE,CULTURAL AND RELATED SERVICES,BV09,RECREATION AND SPORT,BV09B,DEPT of COMMUNITY and STREETSCENE,PREMISES RELATED EXPENDITURE,2,"Works - Construction, Repair & Maintenance",39,R & M OF BUILDINGS,2000,17/10/2014,506913,16.48 ,Revenue,COMSERV (UK) LTD,05193429
Fareham Borough Council,http://statistics.data.gov.uk/id/local-authority/24UE,CULTURAL AND RELATED SERVICES,BV09,RECREATION AND SPORT,BV09B,DEPT of COMMUNITY and STREETSCENE,SUPPLIES & SERVICES,4,"Works - Construction, Repair & Maintenance",39,FURNITURE & EQUIPT. MAINT.,4030,17/10/2014,506913,23.17 ,Revenue,COMSERV (UK) LTD,05193429
Fareham Borough Council,http://statistics.data.gov.uk/id/local-authority/24UE,CULTURAL AND RELATED SERVICES,BV09,RECREATION AND SPORT,BV09B,DEPT of COMMUNITY and STREETSCENE,PREMISES RELATED EXPENDITURE,2,"Works - Construction, Repair & Maintenance",39,R & M OF BUILDINGS,2000,17/10/2014,506913,30.70 ,Revenue,COMSERV (UK) LTD,05193429
Fareham Borough Council,http://statistics.data.gov.uk/id/local-authority/24UE,CULTURAL AND RELATED SERVICES,BV09,RECREATION AND SPORT,BV09B,DEPT of COMMUNITY and STREETSCENE,PREMISES RELATED EXPENDITURE,2,"Works - Construction, Repair & Maintenance",39,R & M OF BUILDINGS,2000,17/10/2014,506913,60.06 ,Revenue,COMSERV (UK) LTD,05193429
Fareham Borough Council,http://statistics.data.gov.uk/id/local-authority/24UE,CULTURAL AND RELATED SERVICES,BV09,RECREATION AND SPORT,BV09B,DEPT of COMMUNITY and STREETSCENE,SUPPLIES & SERVICES,4,"Works - Construction, Repair & Maintenance",39,FURNITURE & EQUIPT. MAINT.,4030,17/10/2014,506913,75.00 ,Revenue,COMSERV (UK) LTD,05193429
Fareham Borough Council,http://statistics.data.gov.uk/id/local-authority/24UE,CULTURAL AND RELATED SERVICES,BV09,CULTURE AND HERITAGE,BV09A,DEPT of COMMUNITY and STREETSCENE,PREMISES RELATED EXPENDITURE,2,"Works - Construction, Repair & Maintenance",39,R&M OF GROUNDS,2060,17/10/2014,506913,124.80 ,Revenue,COMSERV (UK) LTD,05193429
Fareham Borough Council,http://statistics.data.gov.uk/id/local-authority/24UE,CULTURAL AND RELATED SERVICES,BV09,CULTURE AND HERITAGE,BV09A,DEPT of COMMUNITY and STREETSCENE,PREMISES RELATED EXPENDITURE,2,"Works - Construction, Repair & Maintenance",39,R & M OF BUILDINGS,2000,17/10/2014,506913,13.72 ,Revenue,COMSERV (UK) LTD,05193429
Fareham Borough Council,http://statistics.data.gov.uk/id/local-authority/24UE,CULTURAL AND RELATED SERVICES,BV09,RECREATION AND SPORT,BV09B,DEPT of COMMUNITY and STREETSCENE,PREMISES RELATED EXPENDITURE,2,"Works - Construction, Repair & Maintenance",39,R & M OF BUILDINGS,2000,17/10/2014,506913,157.39 ,Revenue,COMSERV (UK) LTD,05193429
Fareham Borough Council,http://statistics.data.gov.uk/id/local-authority/24UE,CULTURAL AND RELATED SERVICES,BV09,RECREATION AND SPORT,BV09B,DEPT of COMMUNITY and STREETSCENE,PREMISES RELATED EXPENDITURE,2,"Works - Construction, Repair & Maintenance",39,R & M OF BUILDINGS,2000,17/10/2014,506913,164.35 ,Revenue,COMSERV (UK) LTD,05193429
Fareham Borough Council,http://statistics.data.gov.uk/id/local-authority/24UE,CULTURAL AND RELATED SERVICES,BV09,RECREATION AND SPORT,BV09B,DEPT of COMMUNITY and STREETSCENE,PREMISES RELATED EXPENDITURE,2,"Works - Construction, Repair & Maintenance",39,R & M OF BUILDINGS,2000,17/10/2014,506913,217.98 ,Revenue,COMSERV (UK) LTD,05193429
Fareham Borough Council,http://statistics.data.gov.uk/id/local-authority/24UE,CULTURAL AND RELATED SERVICES,BV09,RECREATION AND SPORT,BV09B,DEPT of COMMUNITY and STREETSCENE,PREMISES RELATED EXPENDITURE,2,"Works - Construction, Repair & Maintenance",39,R & M OF BUILDINGS,2000,17/10/2014,506913,249.60 ,Revenue,COMSERV (UK) LTD,05193429
Fareham Borough Council,http://statistics.data.gov.uk/id/local-authority/24UE,CULTURAL AND RELATED SERVICES,BV09,RECREATION AND SPORT,BV09B,DEPT of COMMUNITY and STREETSCENE,PREMISES RELATED EXPENDITURE,2,"Works - Construction, Repair & Maintenance",39,R & M OF BUILDINGS,2000,17/10/2014,506913,19.35 ,Revenue,COMSERV (UK) LTD,05193429
Fareham Borough Council,http://statistics.data.gov.uk/id/local-authority/24UE,CULTURAL AND RELATED SERVICES,BV09,RECREATION AND SPORT,BV09B,DEPT of COMMUNITY and STREETSCENE,PREMISES RELATED EXPENDITURE,2,"Works - Construction, Repair & Maintenance",39,R & M OF BUILDINGS,2000,17/10/2014,506913,20.58 ,Revenue,COMSERV (UK) LTD,05193429
Fareham Borough Council,http://statistics.data.gov.uk/id/local-authority/24UE,CULTURAL AND RELATED SERVICES,BV09,RECREATION AND SPORT,BV09B,DEPT of COMMUNITY and STREETSCENE,PREMISES RELATED EXPENDITURE,2,"Works - Construction, Repair & Maintenance",39,R & M OF BUILDINGS,2000,17/10/2014,506913,25.04 ,Revenue,COMSERV (UK) LTD,05193429
Fareham Borough Council,http://statistics.data.gov.uk/id/local-authority/24UE,HIGHWAYS ROADS AND TRANSPORT,BV12,PARKING SERVICES,BV12D,DEPT STREETSCENE,PREMISES RELATED EXPENDITURE,2,"Works - Construction, Repair & Maintenance",39,R & M OF BUILDINGS,2000,17/10/2014,506913,56.72 ,Revenue,COMSERV (UK) LTD,05193429
Fareham Borough Council,http://statistics.data.gov.uk/id/local-authority/24UE,HIGHWAYS ROADS AND TRANSPORT,BV12,PARKING SERVICES,BV12D,DEPT STREETSCENE,SUPPLIES & SERVICES,4,"Works - Construction, Repair & Maintenance",39,SPECIAL EXPENDITURE,4999,17/10/2014,506913,30.87 ,Revenue,COMSERV (UK) LTD,05193429
Fareham Borough Council,http://statistics.data.gov.uk/id/local-authority/24UE,ENVIRONMENT AND REGULATORY SER,BV03,ENVIRONMENTAL HEALTH,BV03C,DEPT STREETSCENE,PREMISES RELATED EXPENDITURE,2,"Works - Construction, Repair & Maintenance",39,R & M OF BUILDINGS,2000,17/10/2014,506913,93.60 ,Revenue,COMSERV (UK) LTD,05193429
Fareham Borough Council,http://statistics.data.gov.uk/id/local-authority/24UE,ENVIRONMENT AND REGULATORY SER,BV03,ENVIRONMENTAL HEALTH,BV03C,DEPT STREETSCENE,PREMISES RELATED EXPENDITURE,2,"Works - Construction, Repair & Maintenance",39,R & M OF BUILDINGS,2000,17/10/2014,506913,30.87 ,Revenue,COMSERV (UK) LTD,05193429
Fareham Borough Council,http://statistics.data.gov.uk/id/local-authority/24UE,ENVIRONMENT AND REGULATORY SER,BV03,ENVIRONMENTAL HEALTH,BV03C,DEPT STREETSCENE,PREMISES RELATED EXPENDITURE,2,"Works - Construction, Repair & Maintenance",39,R & M OF BUILDINGS,2000,17/10/2014,506913,30.87 ,Revenue,COMSERV (UK) LTD,05193429
Fareham Borough Council,http://statistics.data.gov.uk/id/local-authority/24UE,ENVIRONMENT AND REGULATORY SER,BV03,ENVIRONMENTAL HEALTH,BV03C,DEPT STREETSCENE,PREMISES RELATED EXPENDITURE,2,"Works - Construction, Repair & Maintenance",39,R & M OF BUILDINGS,2000,17/10/2014,506913,79.41 ,Revenue,COMSERV (UK) LTD,05193429
Fareham Borough Council,http://statistics.data.gov.uk/id/local-authority/24UE,OTHER REVENUE ACCOUNTS,RV,NON WORK GROUP HOLDING ACCOUNT,RV18,DEPT of FINANCE and RESOURCES,PREMISES RELATED EXPENDITURE,2,"Works - Construction, Repair & Maintenance",39,R & M OF BUILDINGS,2000,17/10/2014,506913,37.44 ,Revenue,COMSERV (UK) LTD,05193429
Fareham Borough Council,http://statistics.data.gov.uk/id/local-authority/24UE,OTHER REVENUE ACCOUNTS,RV,NON WORK GROUP HOLDING ACCOUNT,RV18,DEPT of FINANCE and RESOURCES,PREMISES RELATED EXPENDITURE,2,"Works - Construction, Repair & Maintenance",39,R & M OF BUILDINGS,2000,17/10/2014,506913,60.06 ,Revenue,COMSERV (UK) LTD,05193429
Fareham Borough Council,http://statistics.data.gov.uk/id/local-authority/24UE,OTHER REVENUE ACCOUNTS,RV,NON WORK GROUP HOLDING ACCOUNT,RV18,DEPT of FINANCE and RESOURCES,PREMISES RELATED EXPENDITURE,2,Building Construction Materials,10,R & M OF BUILDINGS,2000,10/10/2014,506921,1995.00 ,Revenue,BI-FOLD ROLFE LTD,02516031
Fareham Borough Council,http://statistics.data.gov.uk/id/local-authority/24UE,OTHER REVENUE ACCOUNTS,RV,NON WORK GROUP HOLDING ACCOUNT,RV18,DEPT of FINANCE and RESOURCES,PREMISES RELATED EXPENDITURE,2,Facilities & Management Services,19,R & M OF FIXED PLANT,2040,10/10/2014,506923,552.99 ,Revenue,CHUBB FIRE LIMITED,01062876
Fareham Borough Council,http://statistics.data.gov.uk/id/local-authority/24UE,CULTURAL AND RELATED SERVICES,BV09,RECREATION AND SPORT,BV09B,DEPT of COMMUNITY and STREETSCENE,PREMISES RELATED EXPENDITURE,2,"Works - Construction, Repair & Maintenance",39,R & M OF BUILDINGS,2000,10/10/2014,506926,575.00 ,Revenue,TOPMARX LTD,03207600
Fareham Borough Council,http://statistics.data.gov.uk/id/local-authority/24UE,ENVIRONMENT AND REGULATORY SER,BV03,WASTE COLLECTION,BV03G,DEPT STREETSCENE,TRANSPORT RELATED EXPENDITURE,3,Vehicle Management,38,SERVICING,3027,17/10/2014,506930,178.18 ,Revenue,DENNIS EAGLE LIMITED,03794455
Fareham Borough Council,http://statistics.data.gov.uk/id/local-authority/24UE,ENVIRONMENT AND REGULATORY SER,BV03,WASTE COLLECTION,BV03G,DEPT STREETSCENE,TRANSPORT RELATED EXPENDITURE,3,Vehicle Management,38,SERVICING,3027,17/10/2014,506930,27.47 ,Revenue,DENNIS EAGLE LIMITED,03794455
Fareham Borough Council,http://statistics.data.gov.uk/id/local-authority/24UE,ENVIRONMENT AND REGULATORY SER,BV03,WASTE COLLECTION,BV03G,DEPT STREETSCENE,TRANSPORT RELATED EXPENDITURE,3,Vehicle Management,38,SERVICING,3027,17/10/2014,506930,178.18 ,Revenue,DENNIS EAGLE LIMITED,03794455
Fareham Borough Council,http://statistics.data.gov.uk/id/local-authority/24UE,ENVIRONMENT AND REGULATORY SER,BV03,WASTE COLLECTION,BV03G,DEPT STREETSCENE,TRANSPORT RELATED EXPENDITURE,3,Vehicle Management,38,SERVICING,3027,17/10/2014,506930,178.18 ,Revenue,DENNIS EAGLE LIMITED,03794455
Fareham Borough Council,http://statistics.data.gov.uk/id/local-authority/24UE,ENVIRONMENT AND REGULATORY SER,BV03,WASTE COLLECTION,BV03G,DEPT STREETSCENE,TRANSPORT RELATED EXPENDITURE,3,Vehicle Management,38,SERVICING,3027,17/10/2014,506930,27.47 ,Revenue,DENNIS EAGLE LIMITED,03794455
Fareham Borough Council,http://statistics.data.gov.uk/id/local-authority/24UE,ENVIRONMENT AND REGULATORY SER,BV03,WASTE COLLECTION,BV03G,DEPT STREETSCENE,TRANSPORT RELATED EXPENDITURE,3,Vehicle Management,38,SERVICING,3027,17/10/2014,506930,27.47 ,Revenue,DENNIS EAGLE LIMITED,03794455
Fareham Borough Council,http://statistics.data.gov.uk/id/local-authority/24UE,ENVIRONMENT AND REGULATORY SER,BV03,WASTE COLLECTION,BV03G,DEPT STREETSCENE,TRANSPORT RELATED EXPENDITURE,3,Vehicle Management,38,SERVICING,3027,17/10/2014,506930,178.18 ,Revenue,DENNIS EAGLE LIMITED,03794455
Fareham Borough Council,http://statistics.data.gov.uk/id/local-authority/24UE,ENVIRONMENT AND REGULATORY SER,BV03,WASTE COLLECTION,BV03G,DEPT STREETSCENE,TRANSPORT RELATED EXPENDITURE,3,Vehicle Management,38,ROUTINE REPAIRS VEHICLES/PLANT,3010,17/10/2014,506930,62.20 ,Revenue,DENNIS EAGLE LIMITED,03794455
Fareham Borough Council,http://statistics.data.gov.uk/id/local-authority/24UE,ENVIRONMENT AND REGULATORY SER,BV03,WASTE COLLECTION,BV03G,DEPT STREETSCENE,TRANSPORT RELATED EXPENDITURE,3,Vehicle Management,38,ROUTINE REPAIRS VEHICLES/PLANT,3010,17/10/2014,506930,102.92 ,Revenue,DENNIS EAGLE LIMITED,03794455
Fareham Borough Council,http://statistics.data.gov.uk/id/local-authority/24UE,ENVIRONMENT AND REGULATORY SER,BV03,WASTE COLLECTION,BV03G,DEPT STREETSCENE,TRANSPORT RELATED EXPENDITURE,3,Vehicle Management,38,ROUTINE REPAIRS VEHICLES/PLANT,3010,17/10/2014,506930,102.92 ,Revenue,DENNIS EAGLE LIMITED,03794455
Fareham Borough Council,http://statistics.data.gov.uk/id/local-authority/24UE,ENVIRONMENT AND REGULATORY SER,BV03,WASTE COLLECTION,BV03G,DEPT STREETSCENE,TRANSPORT RELATED EXPENDITURE,3,Vehicle Management,38,SERVICING,3027,17/10/2014,506930,27.47 ,Revenue,DENNIS EAGLE LIMITED,03794455
Fareham Borough Council,http://statistics.data.gov.uk/id/local-authority/24UE,OTHER REVENUE ACCOUNTS,RV,NON WORK GROUP HOLDING ACCOUNT,RV18,DEPT of FINANCE and RESOURCES,SUPPLIES & SERVICES,4,Information Communication Technology,27,SOFTWARE LICENCES,4530,31/10/2014,506935,10413.00 ,Revenue,THE TECHNOLOGY FORGE,02293004
Fareham Borough Council,http://statistics.data.gov.uk/id/local-authority/24UE,ENVIRONMENT AND REGULATORY SER,BV03,STREET CLEANSING,BV03F,DEPT STREETSCENE,TRANSPORT RELATED EXPENDITURE,3,Vehicle Management,38,SERVICING,3027,17/10/2014,506949,515.00 ,Revenue,TENNANT GREEN MACHINE,SC042491
Fareham Borough Council,http://statistics.data.gov.uk/id/local-authority/24UE,CORPORATE & DEMOCRATIC CORE,BV07A,CORPORATE MANAGEMENT,BV07AB,DEPT of FINANCE and RESOURCES,SUPPLIES & SERVICES,4,Facilities & Management Services,19,EXTERNAL PRINTING,4310,17/10/2014,506950,619.00 ,Revenue,ARTYZAN PRESS,
Fareham Borough Council,http://statistics.data.gov.uk/id/local-authority/24UE,ENVIRONMENT AND REGULATORY SER,BV03,STREET CLEANSING,BV03F,DEPT STREETSCENE,EMPLOYEES RELATED EXPENDITURE,1,Human Resources,26,AGENCY WORKERS,1050,24/10/2014,506953,1232.34 ,Revenue,BUZZ PEOPLE RECRUITMENT LTD,07908887
Fareham Borough Council,http://statistics.data.gov.uk/id/local-authority/24UE,OTHER REVENUE ACCOUNTS,RV,CONTRACT SERVICES D.S.O.,RV14,DEPT STREETSCENE,EMPLOYEES RELATED EXPENDITURE,1,Human Resources,26,AGENCY WORKERS,1050,24/10/2014,506953,3487.26 ,Revenue,BUZZ PEOPLE RECRUITMENT LTD,07908887
Fareham Borough Council,http://statistics.data.gov.uk/id/local-authority/24UE,OTHER REVENUE ACCOUNTS,RV,CONTRACT SERVICES D.S.O.,RV14,DEPT STREETSCENE,EMPLOYEES RELATED EXPENDITURE,1,Human Resources,26,AGENCY WORKERS,1050,17/10/2014,506956,2126.76 ,Revenue,BUZZ PEOPLE RECRUITMENT LTD,07908887
Fareham Borough Council,http://statistics.data.gov.uk/id/local-authority/24UE,OTHER REVENUE ACCOUNTS,RV,CONTRACT SERVICES D.S.O.,RV14,DEPT STREETSCENE,EMPLOYEES RELATED EXPENDITURE,1,Human Resources,26,AGENCY WORKERS,1050,17/10/2014,506958,1752.04 ,Revenue,BUZZ PEOPLE RECRUITMENT LTD,07908887
Fareham Borough Council,http://statistics.data.gov.uk/id/local-authority/24UE,HOUSING REVENUE ACCOUNT,BV06,GENERAL ADMINISTRATION EXPENSE,5021,DEPT of COMMUNITY and STREETSCENE,EMPLOYEES RELATED EXPENDITURE,1,Human Resources,26,AGENCY WORKERS,1050,17/10/2014,506959,436.25 ,Revenue,BUZZ PEOPLE RECRUITMENT LTD,07908887
Fareham Borough Council,http://statistics.data.gov.uk/id/local-authority/24UE,HOUSING REVENUE ACCOUNT,BV06,GENERAL ADMINISTRATION EXPENSE,5021,DEPT of COMMUNITY and STREETSCENE,EMPLOYEES RELATED EXPENDITURE,1,Human Resources,26,AGENCY WORKERS,1050,17/10/2014,506959,436.25 ,Revenue,BUZZ PEOPLE RECRUITMENT LTD,07908887
Fareham Borough Council,http://statistics.data.gov.uk/id/local-authority/24UE,HOUSING REVENUE ACCOUNT,BV06,GENERAL ADMINISTRATION EXPENSE,5021,DEPT of COMMUNITY and STREETSCENE,EMPLOYEES RELATED EXPENDITURE,1,Human Resources,26,AGENCY WORKERS,1050,17/10/2014,506959,607.50 ,Revenue,BUZZ PEOPLE RECRUITMENT LTD,07908887
Fareham Borough Council,http://statistics.data.gov.uk/id/local-authority/24UE,OTHER REVENUE ACCOUNTS,RV,NON WORK GROUP HOLDING ACCOUNT,RV18,DEPT of FINANCE and RESOURCES,SUPPLIES & SERVICES,4,Information Communication Technology,27,SOFTWARE LICENCES,4530,17/10/2014,506961,73192.74 ,Revenue,BT ENGAGE IT LTD,22777581
Fareham Borough Council,http://statistics.data.gov.uk/id/local-authority/24UE,OTHER REVENUE ACCOUNTS,RV,NON WORK GROUP HOLDING ACCOUNT,RV18,DEPT of FINANCE and RESOURCES,SUPPLIES & SERVICES,4,Information Communication Technology,27,SOFTWARE LICENCES,4530,17/10/2014,506962,16443.07 ,Revenue,BT ENGAGE IT LTD,22777581
Fareham Borough Council,http://statistics.data.gov.uk/id/local-authority/24UE,CULTURAL AND RELATED SERVICES,BV09,RECREATION AND SPORT,BV09B,DEPT STREETSCENE,PREMISES RELATED EXPENDITURE,2,Building Construction Materials,10,R & M OF FENCING,2061,17/10/2014,506972,518.00 ,Revenue,J D C OUTDOOR SERVICES,05941402
Fareham Borough Council,http://statistics.data.gov.uk/id/local-authority/24UE,CAPITAL PROGRAMME - OTHER SERVICES,CP,APPROVED PROGRAMME,CP24,CAPITAL - APPROVED PROGRAMME,PREMISES RELATED EXPENDITURE,2,Building Construction Materials,10,R&M OF GROUNDS,2060,17/10/2014,506973,4702.00 ,Capital,J D C OUTDOOR SERVICES,05941402
Fareham Borough Council,http://statistics.data.gov.uk/id/local-authority/24UE,OTHER REVENUE ACCOUNTS,RV,CONTRACT SERVICES D.S.O.,RV14,DEPT of STRATEGIC PLANNING and ENVIRONMENT,SUPPLIES & SERVICES,4,Consultancy,15,STRUCTURAL ENGINEERS FEES,4405,17/10/2014,506976,1726.41 ,Revenue,OPUS INTERNATIONAL CONSULTANTS (UK) LTD,2847568
Fareham Borough Council,http://statistics.data.gov.uk/id/local-authority/24UE,PLANNING SERVICES,BV13,DEVELOPMENT CONTROL,BV13B,DEPT of STRATEGIC PLANNING and ENVIRONMENT,SUPPLIES & SERVICES,4,Consultancy,15,CONSULTANTS FEES,4401,17/10/2014,506977,1216.00 ,Revenue,redacted personal data,
Fareham Borough Council,http://statistics.data.gov.uk/id/local-authority/24UE,PLANNING SERVICES,BV13,PLANNING POLICY,BV13C,DEPT of STRATEGIC PLANNING and ENVIRONMENT,SUPPLIES & SERVICES,4,Consultancy,15,CONSULTANTS FEES,4401,17/10/2014,506978,1350.00 ,Revenue,JUSTIN GARDNER,
Fareham Borough Council,http://statistics.data.gov.uk/id/local-authority/24UE,CAPITAL PROGRAMME - OTHER SERVICES,CP,SCHEMES FUNDED FROM BALANCES,CP20,CAPITAL - SCHEMES FUNDED FROM BALANCES,SUPPLIES & SERVICES,4,Consultancy,15,CONSULTANTS FEES,4401,17/10/2014,506980,2340.00 ,Capital,COLIN MITCHELL CONSULTING,
Fareham Borough Council,http://statistics.data.gov.uk/id/local-authority/24UE,CULTURAL AND RELATED SERVICES,BV09,CULTURE AND HERITAGE,BV09A,DEPT of COMMUNITY and STREETSCENE,SUPPLIES & SERVICES,4,Art & Leisure Services,29,PROMOTER,4916,10/10/2014,506982,7750.00 ,Revenue,DEREK BLOCK CONCERT PROMOTIONS,4377932
Fareham Borough Council,http://statistics.data.gov.uk/id/local-authority/24UE,CULTURAL AND RELATED SERVICES,BV09,CULTURE AND HERITAGE,BV09A,DEPT of COMMUNITY and STREETSCENE,SUPPLIES & SERVICES,4,Facilities & Management Services,19,EXTERNAL PRINTING,4310,10/10/2014,506983,7725.00 ,Revenue,THE GRAPHIC DESIGN HOUSE,02681030
Fareham Borough Council,http://statistics.data.gov.uk/id/local-authority/24UE,CAPITAL PROGRAMME - HOUSING SERVICES,CP,RENOVATION OF L.A. DWELLINGS,CP10,CAPITAL - IMPROVEMENTS WORK/MODERNIS'N,PREMISES RELATED EXPENDITURE,2,Building Construction Materials,10,R & M OF BUILDINGS,2000,10/10/2014,506989,2542.86 ,Capital,INSTAGROUP (CREST SURVEYING LTD),01500228
Fareham Borough Council,http://statistics.data.gov.uk/id/local-authority/24UE,HOUSING REVENUE ACCOUNT,BV06,OTHER COMMUNAL SERVICES,5034,DEPT of COMMUNITY and STREETSCENE,PREMISES RELATED EXPENDITURE,2,Utilities,37,AERIALS & TV OUTLETS,2540,10/10/2014,506999,830.81 ,Revenue,SOUTHERN ELECTRIC PLC,02366879
Fareham Borough Council,http://statistics.data.gov.uk/id/local-authority/24UE,CAPITAL PROGRAMME - HOUSING SERVICES,CP,RENOVATION OF L.A. DWELLINGS,CP10,CAPITAL - IMPROVEMENTS WORK/MODERNIS'N,PREMISES RELATED EXPENDITURE,2,"Works - Construction, Repair & Maintenance",39,R & M OF BUILDINGS,2000,17/10/2014,507011,910.00 ,Capital,C PROUDLOCK LTD,03081239
Fareham Borough Council,http://statistics.data.gov.uk/id/local-authority/24UE,CORPORATE & DEMOCRATIC CORE,BV07A,CORPORATE MANAGEMENT,BV07AB,DEPT of FINANCE and RESOURCES,SUPPLIES & SERVICES,4,Financial Services,20,CONSULTANTS FEES,4401,10/10/2014,507021,623.29 ,Revenue,TRADITION (UK) LTD,00937647
Fareham Borough Council,http://statistics.data.gov.uk/id/local-authority/24UE,HOUSING REVENUE ACCOUNT,BV06,GENERAL ADMINISTRATION EXPENSE,5021,DEPT of COMMUNITY and STREETSCENE,SUPPLIES & SERVICES,4,Financial Services,20,PAYMENT CARD CHARGES,4411,17/10/2014,507022,638.43 ,Revenue,ALLPAY LIMITED,02933191
Fareham Borough Council,http://statistics.data.gov.uk/id/local-authority/24UE,HOUSING REVENUE ACCOUNT,BV06,GENERAL ADMINISTRATION EXPENSE,5021,DEPT of COMMUNITY and STREETSCENE,SUPPLIES & SERVICES,4,Financial Services,20,PAYMENT CARD CHARGES,4411,17/10/2014,507022,112.53 ,Revenue,ALLPAY LIMITED,02933191
Fareham Borough Council,http://statistics.data.gov.uk/id/local-authority/24UE,HOUSING REVENUE ACCOUNT,BV06,OTHER COMMUNAL SERVICES,5034,DEPT of COMMUNITY and STREETSCENE,PREMISES RELATED EXPENDITURE,2,Utilities,37,SEWERAGE & ENV. CHARGES (SWS),2410,10/10/2014,507031,1356.14 ,Revenue,SOUTHERN WATER SERVICES PLC,02366670
Fareham Borough Council,http://statistics.data.gov.uk/id/local-authority/24UE,HIGHWAYS ROADS AND TRANSPORT,BV12,PARKING SERVICES,BV12D,DEPT STREETSCENE,PREMISES RELATED EXPENDITURE,2,Facilities & Management Services,19,R & M OF LIFTS,2050,10/10/2014,507109,331.68 ,Revenue,TEMPLE LIFTS LTD,2388497
Fareham Borough Council,http://statistics.data.gov.uk/id/local-authority/24UE,HOUSING REVENUE ACCOUNT,BV06,CYCLICAL REPAIRS/MAINTENANCE,5903,DEPT STREETSCENE,PREMISES RELATED EXPENDITURE,2,Facilities & Management Services,19,SERVICING,2083,10/10/2014,507109,367.50 ,Revenue,TEMPLE LIFTS LTD,2388497
Fareham Borough Council,http://statistics.data.gov.uk/id/local-authority/24UE,OTHER REVENUE ACCOUNTS,RV,CONTRACT SERVICES D.S.O.,RV14,DEPT of COMMUNITY and STREETSCENE,PREMISES RELATED EXPENDITURE,2,Facilities & Management Services,19,R & M OF BUILDINGS,2000,10/10/2014,507109,47.50 ,Revenue,TEMPLE LIFTS LTD,2388497
Fareham Borough Council,http://statistics.data.gov.uk/id/local-authority/24UE,OTHER REVENUE ACCOUNTS,RV,NON WORK GROUP HOLDING ACCOUNT,RV18,DEPT of FINANCE and RESOURCES,PREMISES RELATED EXPENDITURE,2,Facilities & Management Services,19,R & M OF LIFTS,2050,10/10/2014,507109,258.75 ,Revenue,TEMPLE LIFTS LTD,2388497
Fareham Borough Council,http://statistics.data.gov.uk/id/local-authority/24UE,CULTURAL AND RELATED SERVICES,BV09,RECREATION AND SPORT,BV09B,DEPT of COMMUNITY and STREETSCENE,PREMISES RELATED EXPENDITURE,2,Environmental Services,18,R & M OF BUILDINGS,2000,10/10/2014,507110,287.38 ,Revenue,CLEARWATER TECHNOLOGY LTD,03659610
Fareham Borough Council,http://statistics.data.gov.uk/id/local-authority/24UE,CULTURAL AND RELATED SERVICES,BV09,RECREATION AND SPORT,BV09B,DEPT of COMMUNITY and STREETSCENE,PREMISES RELATED EXPENDITURE,2,Environmental Services,18,R & M OF BUILDINGS,2000,10/10/2014,507110,38.17 ,Revenue,CLEARWATER TECHNOLOGY LTD,03659610
Fareham Borough Council,http://statistics.data.gov.uk/id/local-authority/24UE,OTHER REVENUE ACCOUNTS,RV,NON WORK GROUP HOLDING ACCOUNT,RV18,DEPT of FINANCE and RESOURCES,PREMISES RELATED EXPENDITURE,2,Environmental Services,18,R & M OF FIXED PLANT,2040,10/10/2014,507110,774.84 ,Revenue,CLEARWATER TECHNOLOGY LTD,03659610
Fareham Borough Council,http://statistics.data.gov.uk/id/local-authority/24UE,OTHER REVENUE ACCOUNTS,RV,NON WORK GROUP HOLDING ACCOUNT,RV18,DEPT of FINANCE and RESOURCES,PREMISES RELATED EXPENDITURE,2,Environmental Services,18,R & M OF FIXED PLANT,2040,10/10/2014,507110,37.14 ,Revenue,CLEARWATER TECHNOLOGY LTD,03659610
Fareham Borough Council,http://statistics.data.gov.uk/id/local-authority/24UE,CAPITAL PROGRAMME - HOUSING SERVICES,CP,NEW HOUSE BUILDING,CP10,CAPITAL - NEW HOUSE BUILDING,SUPPLIES & SERVICES,4,Consultancy,15,CONSULTANTS FEES,4401,17/10/2014,507169,6119.10 ,Capital,CBG CONSULTANTS LTD,5384147
Fareham Borough Council,http://statistics.data.gov.uk/id/local-authority/24UE,CAPITAL PROGRAMME - HOUSING SERVICES,CP,NEW HOUSE BUILDING,CP10,CAPITAL - NEW HOUSE BUILDING,SUPPLIES & SERVICES,4,"Works - Construction, Repair & Maintenance",39,CONSULTANTS FEES,4401,10/10/2014,507170,700.00 ,Capital,LINDA OAK LANDSCAPE DESIGN LTD,4605677
Fareham Borough Council,http://statistics.data.gov.uk/id/local-authority/24UE,CENTRAL SERVICES,BV07,CENTRAL SERVICES TO THE PUBLIC,BV07B,DEPT of COMMUNITY and STREETSCENE,SUPPLIES & SERVICES,4,Local/Central Government,98,LEGAL FEES,4400,10/10/2014,507171,2611.00 ,Revenue,HAMPSHIRE COUNTY COUNCIL,
Fareham Borough Council,http://statistics.data.gov.uk/id/local-authority/24UE,ENVIRONMENT AND REGULATORY SER,BV03,STREET CLEANSING,BV03F,DEPT STREETSCENE,TRANSPORT RELATED EXPENDITURE,3,Vehicle Management,38,ROUTINE REPAIRS VEHICLES/PLANT,3010,24/10/2014,507173,240.00 ,Revenue,M&M FERN RADIATORS,
Fareham Borough Council,http://statistics.data.gov.uk/id/local-authority/24UE,ENVIRONMENT AND REGULATORY SER,BV03,WASTE COLLECTION,BV03G,DEPT STREETSCENE,TRANSPORT RELATED EXPENDITURE,3,Vehicle Management,38,ROUTINE REPAIRS VEHICLES/PLANT,3010,24/10/2014,507173,440.00 ,Revenue,M&M FERN RADIATORS,
Fareham Borough Council,http://statistics.data.gov.uk/id/local-authority/24UE,GENERAL FUND HOUSING,BV05,HOUSING BENEFIT ADMINISTRATION,BV05H,DEPT of COMMUNITY and STREETSCENE,EMPLOYEES RELATED EXPENDITURE,1,Facilities & Management Services,19,STAFF ADVERTISING,1902,24/10/2014,507176,0.48 ,Revenue,LAWTON COMMUNICATIONS GROUP LIMITED,05610929
Fareham Borough Council,http://statistics.data.gov.uk/id/local-authority/24UE,GENERAL FUND HOUSING,BV05,HOUSING BENEFIT ADMINISTRATION,BV05H,DEPT of COMMUNITY and STREETSCENE,EMPLOYEES RELATED EXPENDITURE,1,Facilities & Management Services,19,STAFF ADVERTISING,1902,24/10/2014,507176,85.00 ,Revenue,LAWTON COMMUNICATIONS GROUP LIMITED,05610929
Fareham Borough Council,http://statistics.data.gov.uk/id/local-authority/24UE,GENERAL FUND HOUSING,BV05,HOUSING BENEFIT ADMINISTRATION,BV05H,DEPT of COMMUNITY and STREETSCENE,EMPLOYEES RELATED EXPENDITURE,1,Facilities & Management Services,19,STAFF ADVERTISING,1902,24/10/2014,507176,65.00 ,Revenue,LAWTON COMMUNICATIONS GROUP LIMITED,05610929
Fareham Borough Council,http://statistics.data.gov.uk/id/local-authority/24UE,GENERAL FUND HOUSING,BV05,HOUSING BENEFIT ADMINISTRATION,BV05H,DEPT of COMMUNITY and STREETSCENE,EMPLOYEES RELATED EXPENDITURE,1,Facilities & Management Services,19,STAFF ADVERTISING,1902,24/10/2014,507176,334.00 ,Revenue,LAWTON COMMUNICATIONS GROUP LIMITED,05610929
Fareham Borough Council,http://statistics.data.gov.uk/id/local-authority/24UE,GENERAL FUND HOUSING,BV05,HOUSING BENEFIT ADMINISTRATION,BV05H,DEPT of COMMUNITY and STREETSCENE,EMPLOYEES RELATED EXPENDITURE,1,Facilities & Management Services,19,STAFF ADVERTISING,1902,24/10/2014,507176,149.00 ,Revenue,LAWTON COMMUNICATIONS GROUP LIMITED,05610929
Fareham Borough Council,http://statistics.data.gov.uk/id/local-authority/24UE,BALANCE SHEET,BS,BAL. SHEET - D.S.O.,BS1,BAL. SHEET - D.S.O.,TOTAL ASSETS LESS LIABILITIES,BS100,Vehicle Management,38,MATERIALS SUSPENSE ACCOUNT (VE,A016,24/10/2014,507177,19339.30 ,Balance Sheet,WESSEX PETROLEUM LTD,01024472
Fareham Borough Council,http://statistics.data.gov.uk/id/local-authority/24UE,PLANNING SERVICES,BV13,ECONOMIC DEVELOPMENT,BV13E,DEPT of STRATEGIC PLANNING and ENVIRONMENT,SUPPLIES & SERVICES,4,Horticultural,24,FURNITURE & EQUIPT. PURCHASES,4000,17/10/2014,507179,600.00 ,Revenue,SCANDOR LANDSCAPE CONTRACTORS LTD,02111393
Fareham Borough Council,http://statistics.data.gov.uk/id/local-authority/24UE,CORPORATE & DEMOCRATIC CORE,BV07A,CORPORATE MANAGEMENT,BV07AB,DEPT of FINANCE and RESOURCES,SUPPLIES & SERVICES,4,Facilities & Management Services,19,PUBLICITY AND PROMOTION,4912,17/10/2014,507183,840.00 ,Revenue,PARK CORNER DESIGN LIMITED,4417584
Fareham Borough Council,http://statistics.data.gov.uk/id/local-authority/24UE,CAPITAL PROGRAMME - HOUSING SERVICES,CP,NEW HOUSE BUILDING,CP10,CAPITAL - NEW HOUSE BUILDING,SUPPLIES & SERVICES,4,"Works - Construction, Repair & Maintenance",39,CONSULTANTS FEES,4401,10/10/2014,507185,2800.00 ,Capital,BALFOUR GILBERT DESIGN,
Fareham Borough Council,http://statistics.data.gov.uk/id/local-authority/24UE,CULTURAL AND RELATED SERVICES,BV09,CULTURE AND HERITAGE,BV09A,DEPT of COMMUNITY and STREETSCENE,PREMISES RELATED EXPENDITURE,2,Utilities,37,SEWERAGE & ENV. CHARGES (SWS),2410,10/10/2014,507198,1570.84 ,Revenue,SOUTHERN WATER SERVICES PLC,02366670
Fareham Borough Council,http://statistics.data.gov.uk/id/local-authority/24UE,CULTURAL AND RELATED SERVICES,BV09,CULTURE AND HERITAGE,BV09A,DEPT of COMMUNITY and STREETSCENE,SUPPLIES & SERVICES,4,Art & Leisure Services,29,PROMOTER,4916,17/10/2014,507200,8500.00 ,Revenue,DEREK BLOCK CONCERT PROMOTIONS,4377932
Fareham Borough Council,http://statistics.data.gov.uk/id/local-authority/24UE,CENTRAL SERVICES,BV07,CENTRAL SERVICES TO THE PUBLIC,BV07B,DEPT of COMMUNITY and STREETSCENE,SUPPLIES & SERVICES,4,Financial Services,20,BANK CHARGES,4954,17/10/2014,507203,59.61 ,Revenue,ALLPAY LIMITED,02933191
Fareham Borough Council,http://statistics.data.gov.uk/id/local-authority/24UE,CENTRAL SERVICES,BV07,CENTRAL SERVICES TO THE PUBLIC,BV07B,DEPT of COMMUNITY and STREETSCENE,SUPPLIES & SERVICES,4,Financial Services,20,SPECIAL EXPENDITURE,4999,17/10/2014,507203,16.37 ,Revenue,ALLPAY LIMITED,02933191
Fareham Borough Council,http://statistics.data.gov.uk/id/local-authority/24UE,CENTRAL SERVICES,BV07,CENTRAL SERVICES TO THE PUBLIC,BV07B,DEPT of COMMUNITY and STREETSCENE,SUPPLIES & SERVICES,4,Financial Services,20,BANK CHARGES,4954,17/10/2014,507203,2.30 ,Revenue,ALLPAY LIMITED,02933191
Fareham Borough Council,http://statistics.data.gov.uk/id/local-authority/24UE,CENTRAL SERVICES,BV07,CENTRAL SERVICES TO THE PUBLIC,BV07B,DEPT of COMMUNITY and STREETSCENE,SUPPLIES & SERVICES,4,Financial Services,20,SPECIAL EXPENDITURE,4999,17/10/2014,507203,0.29 ,Revenue,ALLPAY LIMITED,02933191
Fareham Borough Council,http://statistics.data.gov.uk/id/local-authority/24UE,CENTRAL SERVICES,BV07,CENTRAL SERVICES TO THE PUBLIC,BV07B,DEPT of COMMUNITY and STREETSCENE,SUPPLIES & SERVICES,4,Financial Services,20,BANK CHARGES,4954,17/10/2014,507203,1132.58 ,Revenue,ALLPAY LIMITED,02933191
Fareham Borough Council,http://statistics.data.gov.uk/id/local-authority/24UE,CENTRAL SERVICES,BV07,CENTRAL SERVICES TO THE PUBLIC,BV07B,DEPT of COMMUNITY and STREETSCENE,SUPPLIES & SERVICES,4,Financial Services,20,SPECIAL EXPENDITURE,4999,17/10/2014,507203,311.00 ,Revenue,ALLPAY LIMITED,02933191
Fareham Borough Council,http://statistics.data.gov.uk/id/local-authority/24UE,CENTRAL SERVICES,BV07,CENTRAL SERVICES TO THE PUBLIC,BV07B,DEPT of COMMUNITY and STREETSCENE,SUPPLIES & SERVICES,4,Financial Services,20,BANK CHARGES,4954,17/10/2014,507203,43.70 ,Revenue,ALLPAY LIMITED,02933191
Fareham Borough Council,http://statistics.data.gov.uk/id/local-authority/24UE,CENTRAL SERVICES,BV07,CENTRAL SERVICES TO THE PUBLIC,BV07B,DEPT of COMMUNITY and STREETSCENE,SUPPLIES & SERVICES,4,Financial Services,20,SPECIAL EXPENDITURE,4999,17/10/2014,507203,5.53 ,Revenue,ALLPAY LIMITED,02933191
Fareham Borough Council,http://statistics.data.gov.uk/id/local-authority/24UE,ENVIRONMENT AND REGULATORY SER,BV03,ENVIRONMENTAL HEALTH,BV03C,DEPT of COMMUNITY and STREETSCENE,SUPPLIES & SERVICES,4,Human Resources,26,LEGAL FEES,4400,24/10/2014,507204,660.00 ,Revenue,DISCLOSURE AND BARRING SERVICE,
Fareham Borough Council,http://statistics.data.gov.uk/id/local-authority/24UE,PLANNING SERVICES,BV13,COMMUNITY DEVELOPMENT,BV13H,DEPT of COMMUNITY and STREETSCENE,SUPPLIES & SERVICES,4,Human Resources,26,LEGAL FEES,4400,24/10/2014,507204,44.00 ,Revenue,DISCLOSURE AND BARRING SERVICE,
Fareham Borough Council,http://statistics.data.gov.uk/id/local-authority/24UE,HIGHWAYS ROADS AND TRANSPORT,BV12,PARKING SERVICES,BV12D,DEPT STREETSCENE,SUPPLIES & SERVICES,4,Human Resources,26,LEGAL FEES,4400,24/10/2014,507204,26.00 ,Revenue,DISCLOSURE AND BARRING SERVICE,
Fareham Borough Council,http://statistics.data.gov.uk/id/local-authority/24UE,PLANNING SERVICES,BV13,PLANNING POLICY,BV13C,DEPT of STRATEGIC PLANNING and ENVIRONMENT,SUPPLIES & SERVICES,4,Legal Services,28,LEGAL FEES,4400,17/10/2014,507246,2000.00 ,Revenue,THIRTY NINE ESSEX STREET LLP,OC360005
Fareham Borough Council,http://statistics.data.gov.uk/id/local-authority/24UE,CULTURAL AND RELATED SERVICES,BV09,RECREATION AND SPORT,BV09B,DEPT STREETSCENE,PREMISES RELATED EXPENDITURE,2,Horticultural,24,R&M OF TREE PRESERVATION,2063,10/10/2014,507253,615.00 ,Revenue,TITCHFIELD TREE SERVICES,
Fareham Borough Council,http://statistics.data.gov.uk/id/local-authority/24UE,GENERAL FUND HOUSING,BV05,HOUSING ADVICE,BV05C,DEPT of COMMUNITY and STREETSCENE,EMPLOYEES RELATED EXPENDITURE,1,Human Resources,26,AGENCY WORKERS,1050,24/10/2014,507255,1447.48 ,Revenue,VENN GROUP LTD,04015584
Fareham Borough Council,http://statistics.data.gov.uk/id/local-authority/24UE,PLANNING SERVICES,BV13,DEVELOPMENT CONTROL,BV13B,DEPT of STRATEGIC PLANNING and ENVIRONMENT,EMPLOYEES RELATED EXPENDITURE,1,Human Resources,26,AGENCY WORKERS,1050,24/10/2014,507256,1602.53 ,Revenue,VENN GROUP LTD,04015584
Fareham Borough Council,http://statistics.data.gov.uk/id/local-authority/24UE,CULTURAL AND RELATED SERVICES,BV09,CULTURE AND HERITAGE,BV09A,DEPT of COMMUNITY and STREETSCENE,SUPPLIES & SERVICES,4,Art & Leisure Services,29,PROMOTER,4916,17/10/2014,507259,2362.84 ,Revenue,DEREK BLOCK CONCERT PROMOTIONS,4377932
Fareham Borough Council,http://statistics.data.gov.uk/id/local-authority/24UE,OTHER REVENUE ACCOUNTS,RV,NON WORK GROUP HOLDING ACCOUNT,RV18,DEPT of FINANCE and RESOURCES,SUPPLIES & SERVICES,4,Information Communication Technology,27,FURNITURE & EQUIPT. MAINT.,4030,10/10/2014,507265,2223.79 ,Revenue,ANNODATA LTD,2246366
Fareham Borough Council,http://statistics.data.gov.uk/id/local-authority/24UE,OTHER REVENUE ACCOUNTS,RV,NON WORK GROUP HOLDING ACCOUNT,RV18,DEPT of FINANCE and RESOURCES,SUPPLIES & SERVICES,4,Information Communication Technology,27,FURNITURE & EQUIPT.-RENTS/LSES,4040,17/10/2014,507266,851.19 ,Revenue,ANNODATA LTD,2246366
Fareham Borough Council,http://statistics.data.gov.uk/id/local-authority/24UE,CORPORATE & DEMOCRATIC CORE,BV07A,DEMOCRATIC REP.& MANAGEMENT,BV07AA,DEPT of FINANCE and RESOURCES,SUPPLIES & SERVICES,4,Horticultural,24,MATERIALS (TREE PLANTING),4008,17/10/2014,507267,1710.00 ,Revenue,SCANDOR LANDSCAPE CONTRACTORS LTD,02111393
Fareham Borough Council,http://statistics.data.gov.uk/id/local-authority/24UE,CAPITAL PROGRAMME - OTHER SERVICES,CP,SCHEMES FUNDED FROM BALANCES,CP20,CAPITAL - SCHEMES FUNDED FROM BALANCES,SUPPLIES & SERVICES,4,Legal Services,28,CONSULTANTS FEES,4401,17/10/2014,507268,1580.50 ,Capital,VEALE WASBROUGH VIZARDS,OC384033
Fareham Borough Council,http://statistics.data.gov.uk/id/local-authority/24UE,GENERAL FUND HOUSING,BV05,HOUSING BENEFIT ADMINISTRATION,BV05H,DEPT of COMMUNITY and STREETSCENE,SUPPLIES & SERVICES,4,Information Communication Technology,27,ICT DIRECT SYSTEM COSTS,45CT,17/10/2014,507269,518.31 ,Revenue,NORTHGATE INFORMATION SOLUTIONS UK LTD,02762332
Fareham Borough Council,http://statistics.data.gov.uk/id/local-authority/24UE,CENTRAL SERVICES,BV07,CENTRAL SERVICES TO THE PUBLIC,BV07B,DEPT of COMMUNITY and STREETSCENE,SUPPLIES & SERVICES,4,Information Communication Technology,27,ICT DIRECT SYSTEM COSTS,45CT,17/10/2014,507269,59.43 ,Revenue,NORTHGATE INFORMATION SOLUTIONS UK LTD,02762332
Fareham Borough Council,http://statistics.data.gov.uk/id/local-authority/24UE,CENTRAL SERVICES,BV07,CENTRAL SERVICES TO THE PUBLIC,BV07B,DEPT of COMMUNITY and STREETSCENE,SUPPLIES & SERVICES,4,Information Communication Technology,27,ICT DIRECT SYSTEM COSTS,45CT,17/10/2014,507269,258.46 ,Revenue,NORTHGATE INFORMATION SOLUTIONS UK LTD,02762332
Fareham Borough Council,http://statistics.data.gov.uk/id/local-authority/24UE,CENTRAL SERVICES,BV07,CENTRAL SERVICES TO THE PUBLIC,BV07B,DEPT of COMMUNITY and STREETSCENE,SUPPLIES & SERVICES,4,Information Communication Technology,27,ICT DIRECT SYSTEM COSTS,45CT,17/10/2014,507269,545.95 ,Revenue,NORTHGATE INFORMATION SOLUTIONS UK LTD,02762332
Fareham Borough Council,http://statistics.data.gov.uk/id/local-authority/24UE,CULTURAL AND RELATED SERVICES,BV09,RECREATION AND SPORT,BV09B,DEPT STREETSCENE,PREMISES RELATED EXPENDITURE,2,Building Construction Materials,10,R&M OF GROUNDS,2060,17/10/2014,507273,4668.00 ,Revenue,J D C OUTDOOR SERVICES,05941402
Fareham Borough Council,http://statistics.data.gov.uk/id/local-authority/24UE,CULTURAL AND RELATED SERVICES,BV09,RECREATION AND SPORT,BV09B,DEPT STREETSCENE,PREMISES RELATED EXPENDITURE,2,Building Construction Materials,10,R&M OF GROUNDS,2060,17/10/2014,507273,775.00 ,Revenue,J D C OUTDOOR SERVICES,05941402
Fareham Borough Council,http://statistics.data.gov.uk/id/local-authority/24UE,CULTURAL AND RELATED SERVICES,BV09,RECREATION AND SPORT,BV09B,DEPT STREETSCENE,PREMISES RELATED EXPENDITURE,2,Building Construction Materials,10,R&M OF GROUNDS,2060,17/10/2014,507273,1190.00 ,Revenue,J D C OUTDOOR SERVICES,05941402
Fareham Borough Council,http://statistics.data.gov.uk/id/local-authority/24UE,CULTURAL AND RELATED SERVICES,BV09,RECREATION AND SPORT,BV09B,DEPT STREETSCENE,PREMISES RELATED EXPENDITURE,2,Catering,11,FAREHAM IN BLOOM,2068,10/10/2014,507274,2225.00 ,Revenue,COUNTY CATERERS LTD,02457255
Fareham Borough Council,http://statistics.data.gov.uk/id/local-authority/24UE,ENVIRONMENT AND REGULATORY SER,BV03,WASTE COLLECTION,BV03G,DEPT STREETSCENE,EMPLOYEES RELATED EXPENDITURE,1,Human Resources,26,AGENCY WORKERS,1050,10/10/2014,507281,555.70 ,Revenue,DRIVERS DIRECT RECRUITMENT LTD,04297475
Fareham Borough Council,http://statistics.data.gov.uk/id/local-authority/24UE,ENVIRONMENT AND REGULATORY SER,BV03,WASTE COLLECTION,BV03G,DEPT STREETSCENE,EMPLOYEES RELATED EXPENDITURE,1,Human Resources,26,AGENCY WORKERS,1050,10/10/2014,507282,555.67 ,Revenue,DRIVERS DIRECT RECRUITMENT LTD,04297475
Fareham Borough Council,http://statistics.data.gov.uk/id/local-authority/24UE,CULTURAL AND RELATED SERVICES,BV09,RECREATION AND SPORT,BV09B,DEPT of COMMUNITY and STREETSCENE,PREMISES RELATED EXPENDITURE,2,Utilities,37,ELECTRICITY,2120,10/10/2014,507296,503.44 ,Revenue,NPOWER,
Fareham Borough Council,http://statistics.data.gov.uk/id/local-authority/24UE,CULTURAL AND RELATED SERVICES,BV09,CULTURE AND HERITAGE,BV09A,DEPT of COMMUNITY and STREETSCENE,PREMISES RELATED EXPENDITURE,2,Utilities,37,GAS,2130,10/10/2014,507300,569.75 ,Revenue,CORONA ENERGY RETAIL 1 LIMITED,02798334
Fareham Borough Council,http://statistics.data.gov.uk/id/local-authority/24UE,HOUSING REVENUE ACCOUNT,BV06,COMMUNAL HEATING SERVICES,5025,DEPT of COMMUNITY and STREETSCENE,PREMISES RELATED EXPENDITURE,2,Utilities,37,GAS,2130,10/10/2014,507303,1070.14 ,Revenue,CORONA ENERGY RETAIL 1 LIMITED,02798334
Fareham Borough Council,http://statistics.data.gov.uk/id/local-authority/24UE,OTHER REVENUE ACCOUNTS,RV,NON WORK GROUP HOLDING ACCOUNT,RV18,DEPT of FINANCE and RESOURCES,PREMISES RELATED EXPENDITURE,2,Utilities,37,GAS,2130,10/10/2014,507304,539.23 ,Revenue,CORONA ENERGY RETAIL 1 LIMITED,02798334
Fareham Borough Council,http://statistics.data.gov.uk/id/local-authority/24UE,CAPITAL PROGRAMME - HOUSING SERVICES,CP,HOUSE RENOVATION GRANTS,CP11,CAPITAL - HOUSE RENOVATION GRANTS,SUPPLIES & SERVICES,4,Unclassified,,GRANTS AND SUBSCRIPTIONS,4700,10/10/2014,507320,1950.00 ,Capital,MAGEE HEATING,
Fareham Borough Council,http://statistics.data.gov.uk/id/local-authority/24UE,CAPITAL PROGRAMME - OTHER SERVICES,CP,APPROVED PROGRAMME,CP24,CAPITAL - APPROVED PROGRAMME,SUPPLIES & SERVICES,4,Local/Central Government,98,GRANTS AND SUBSCRIPTIONS,4700,10/10/2014,507321,9800.00 ,Capital,HAMPSHIRE COUNTY COUNCIL,
Fareham Borough Council,http://statistics.data.gov.uk/id/local-authority/24UE,CULTURAL AND RELATED SERVICES,BV09,TOURISM,BV09C,DEPT of COMMUNITY and STREETSCENE,THIRD PARTY PAYMENTS,5,Human Resources,26,CONT TOWARDS T.I.C. COSTS,5400,10/10/2014,507322,15300.00 ,Revenue,TOURISM SOUTH EAST,
Fareham Borough Council,http://statistics.data.gov.uk/id/local-authority/24UE,CENTRAL SERVICES,BV07,CENTRAL SERVICES TO THE PUBLIC,BV07B,DEPT of FINANCE and RESOURCES,SUPPLIES & SERVICES,4,Social Community Care Supplies & Services,32,CONTRIBUTION TO RUNNING EXPENS,4703,10/10/2014,507333,7750.00 ,Revenue,COMMUNITY ACTION FAREHAM,03181037
Fareham Borough Council,http://statistics.data.gov.uk/id/local-authority/24UE,GENERAL FUND HOUSING,BV05,HOMELESSNESS,BV05F,DEPT of COMMUNITY and STREETSCENE,SUPPLIES & SERVICES,4,Social Community Care Supplies & Services,32,GRANTS AND SUBSCRIPTIONS,4700,10/10/2014,507334,5000.00 ,Revenue,CITIZEN ADVICE BUREAU,7653014
Fareham Borough Council,http://statistics.data.gov.uk/id/local-authority/24UE,CENTRAL SERVICES,BV07,CENTRAL SERVICES TO THE PUBLIC,BV07B,DEPT of FINANCE and RESOURCES,SUPPLIES & SERVICES,4,Social Community Care Supplies & Services,32,CONTRIBUTION TO RUNNING EXPENS,4703,10/10/2014,507334,25189.25 ,Revenue,CITIZEN ADVICE BUREAU,7653014
Fareham Borough Council,http://statistics.data.gov.uk/id/local-authority/24UE,CENTRAL SERVICES,BV07,CENTRAL SERVICES TO THE PUBLIC,BV07B,DEPT of COMMUNITY and STREETSCENE,TRANSFER PAYMENTS,6,Social Community Care Supplies & Services,32,HARDSHIP RELIEF,6024,10/10/2014,507334,7500.00 ,Revenue,CITIZEN ADVICE BUREAU,7653014
Fareham Borough Council,http://statistics.data.gov.uk/id/local-authority/24UE,HIGHWAYS ROADS AND TRANSPORT,BV12,PARKING SERVICES,BV12D,DEPT STREETSCENE,PREMISES RELATED EXPENDITURE,2,Facilities & Management Services,19,R & M OF LIFTS,2050,10/10/2014,507337,436.68 ,Revenue,TEMPLE LIFTS LTD,2388497
Fareham Borough Council,http://statistics.data.gov.uk/id/local-authority/24UE,HOUSING REVENUE ACCOUNT,BV06,CYCLICAL REPAIRS/MAINTENANCE,5903,DEPT STREETSCENE,PREMISES RELATED EXPENDITURE,2,Facilities & Management Services,19,SERVICING,2083,10/10/2014,507337,367.50 ,Revenue,TEMPLE LIFTS LTD,2388497
Fareham Borough Council,http://statistics.data.gov.uk/id/local-authority/24UE,OTHER REVENUE ACCOUNTS,RV,NON WORK GROUP HOLDING ACCOUNT,RV18,DEPT of FINANCE and RESOURCES,PREMISES RELATED EXPENDITURE,2,Facilities & Management Services,19,R & M OF LIFTS,2050,10/10/2014,507337,258.75 ,Revenue,TEMPLE LIFTS LTD,2388497
Fareham Borough Council,http://statistics.data.gov.uk/id/local-authority/24UE,HIGHWAYS ROADS AND TRANSPORT,BV12,PARKING SERVICES,BV12D,DEPT STREETSCENE,PREMISES RELATED EXPENDITURE,2,Facilities & Management Services,19,R & M OF LIFTS,2050,10/10/2014,507338,-436.68 ,Revenue,TEMPLE LIFTS LTD,2388497
Fareham Borough Council,http://statistics.data.gov.uk/id/local-authority/24UE,HOUSING REVENUE ACCOUNT,BV06,CYCLICAL REPAIRS/MAINTENANCE,5903,DEPT STREETSCENE,PREMISES RELATED EXPENDITURE,2,Facilities & Management Services,19,SERVICING,2083,10/10/2014,507338,-367.50 ,Revenue,TEMPLE LIFTS LTD,2388497
Fareham Borough Council,http://statistics.data.gov.uk/id/local-authority/24UE,OTHER REVENUE ACCOUNTS,RV,NON WORK GROUP HOLDING ACCOUNT,RV18,DEPT of FINANCE and RESOURCES,PREMISES RELATED EXPENDITURE,2,Facilities & Management Services,19,R & M OF LIFTS,2050,10/10/2014,507338,-258.75 ,Revenue,TEMPLE LIFTS LTD,2388497
Fareham Borough Council,http://statistics.data.gov.uk/id/local-authority/24UE,CAPITAL PROGRAMME - HOUSING SERVICES,CP,HOUSE RENOVATION GRANTS,CP11,CAPITAL - HOUSE RENOVATION GRANTS,SUPPLIES & SERVICES,4,Unclassified,,GRANTS AND SUBSCRIPTIONS,4700,17/10/2014,507554,3760.00 ,Capital,H. MONFARED (BUILDERS) LTD,
Fareham Borough Council,http://statistics.data.gov.uk/id/local-authority/24UE,FINANCING & INVESTMENT I&E,BVB02,INVESTMENT PROPERTIES,BVB170,DEPT of FINANCE and RESOURCES,SUPPLIES & SERVICES,4,Financial Services,20,INSURANCES - EXCESS(ARPL),4902,24/10/2014,507557,400.00 ,Revenue,ZURICH MUNICIPAL,NF000080
Fareham Borough Council,http://statistics.data.gov.uk/id/local-authority/24UE,CULTURAL AND RELATED SERVICES,BV09,RECREATION AND SPORT,BV09B,DEPT STREETSCENE,SUPPLIES & SERVICES,4,Financial Services,20,INSURANCES - EXCESS(ARPL),4902,24/10/2014,507557,650.00 ,Revenue,ZURICH MUNICIPAL,NF000080
Fareham Borough Council,http://statistics.data.gov.uk/id/local-authority/24UE,HOUSING REVENUE ACCOUNT,BV06,RESPONSIVE & VOID MAINTENANCE,5901,DEPT STREETSCENE,SUPPLIES & SERVICES,4,Financial Services,20,INSURANCES - EXCESS(ARPL),4902,24/10/2014,507557,2394.14 ,Revenue,ZURICH MUNICIPAL,NF000080
Fareham Borough Council,http://statistics.data.gov.uk/id/local-authority/24UE,HOUSING REVENUE ACCOUNT,BV06,RESPONSIVE & VOID MAINTENANCE,5901,DEPT STREETSCENE,PREMISES RELATED EXPENDITURE,2,Unclassified,,GENERAL REPAIRS,2018,17/10/2014,507558,1950.00 ,Revenue,redacted personal data,
Fareham Borough Council,http://statistics.data.gov.uk/id/local-authority/24UE,CORPORATE & DEMOCRATIC CORE,BV07A,CORPORATE MANAGEMENT,BV07AB,DEPT of FINANCE and RESOURCES,SUPPLIES & SERVICES,4,Information Communication Technology,27,EMERGENCY STANDBY SERVICE,4421,17/10/2014,507566,1517.62 ,Revenue,FIRST CALL BUSINESS COMMINCATIONS,05758729
Fareham Borough Council,http://statistics.data.gov.uk/id/local-authority/24UE,CULTURAL AND RELATED SERVICES,BV09,CULTURE AND HERITAGE,BV09A,DEPT of COMMUNITY and STREETSCENE,SUPPLIES & SERVICES,4,Local/Central Government,98,OTHER LICENCES,4625,17/10/2014,507577,2050.00 ,Revenue,HAMPSHIRE COUNTY COUNCIL,
Fareham Borough Council,http://statistics.data.gov.uk/id/local-authority/24UE,GENERAL FUND HOUSING,BV05,HOMELESSNESS,BV05F,DEPT of COMMUNITY and STREETSCENE,PREMISES RELATED EXPENDITURE,2,Unclassified,,R & M OF LEASED PROPERTIES,2001,17/10/2014,507579,1690.00 ,Revenue,redacted personal data,
Fareham Borough Council,http://statistics.data.gov.uk/id/local-authority/24UE,PLANNING SERVICES,BV13,DEVELOPMENT CONTROL,BV13B,DEPT of STRATEGIC PLANNING and ENVIRONMENT,SUPPLIES & SERVICES,4,Unclassified,,LEGAL FEES,4400,17/10/2014,507584,2800.00 ,Revenue,MR RICHARD GROUND,
Fareham Borough Council,http://statistics.data.gov.uk/id/local-authority/24UE,FINANCING & INVESTMENT I&E,BVB02,INVESTMENT PROPERTIES,BVB170,DEPT of FINANCE and RESOURCES,SUPPLIES & SERVICES,4,Legal Services,28,CONSULTANTS FEES,4401,17/10/2014,507586,1152.30 ,Revenue,DAVITT JONES BOULD LTD,6155025
Fareham Borough Council,http://statistics.data.gov.uk/id/local-authority/24UE,FINANCING & INVESTMENT I&E,BVB02,INVESTMENT PROPERTIES,BVB170,DEPT of FINANCE and RESOURCES,SUPPLIES & SERVICES,4,Legal Services,28,CONSULTANTS FEES,4401,17/10/2014,507588,782.10 ,Revenue,DAVITT JONES BOULD LTD,6155025
Fareham Borough Council,http://statistics.data.gov.uk/id/local-authority/24UE,FINANCING & INVESTMENT I&E,BVB02,INVESTMENT PROPERTIES,BVB170,DEPT of FINANCE and RESOURCES,SUPPLIES & SERVICES,4,Consultancy,15,CONSULTANTS FEES,4401,17/10/2014,507589,5600.00 ,Revenue,HELLIER LANGSTON LTD,5013122
Fareham Borough Council,http://statistics.data.gov.uk/id/local-authority/24UE,HOUSING REVENUE ACCOUNT,BV06,GENERAL ADMINISTRATION EXPENSE,5021,DEPT of COMMUNITY and STREETSCENE,SUPPLIES & SERVICES,4,Consultancy,15,CONSULTANTS FEES,4401,17/10/2014,507589,1400.00 ,Revenue,HELLIER LANGSTON LTD,5013122
Fareham Borough Council,http://statistics.data.gov.uk/id/local-authority/24UE,OTHER REVENUE ACCOUNTS,RV,NON WORK GROUP HOLDING ACCOUNT,RV18,DEPT of FINANCE and RESOURCES,PREMISES RELATED EXPENDITURE,2,Utilities,37,SEWERAGE & ENV. CHARGES (SWS),2410,17/10/2014,507591,896.05 ,Revenue,SOUTHERN WATER SERVICES PLC,02366670
Fareham Borough Council,http://statistics.data.gov.uk/id/local-authority/24UE,CAPITAL PROGRAMME - HOUSING SERVICES,CP,RENOVATION OF L.A. DWELLINGS,CP10,CAPITAL - CAPITALISED REPAIRS/RENEWALS,PREMISES RELATED EXPENDITURE,2,"Works - Construction, Repair & Maintenance",39,R & M OF BUILDINGS,2000,17/10/2014,507592,30290.85 ,Capital,SALNOR ROOFING SERVICES LIMITED,4391436
Fareham Borough Council,http://statistics.data.gov.uk/id/local-authority/24UE,ENVIRONMENT AND REGULATORY SER,BV03,CEMETERIES CREM & MORTUARY,BV03A,DEPT STREETSCENE,PREMISES RELATED EXPENDITURE,2,Building Construction Materials,10,R & M OF BUILDINGS,2000,24/10/2014,507593,25.57 ,Revenue,TSG BUILDING SERVICES,03908728
Fareham Borough Council,http://statistics.data.gov.uk/id/local-authority/24UE,CULTURAL AND RELATED SERVICES,BV09,RECREATION AND SPORT,BV09B,DEPT of COMMUNITY and STREETSCENE,PREMISES RELATED EXPENDITURE,2,Building Construction Materials,10,R & M OF BUILDINGS,2000,24/10/2014,507593,95.21 ,Revenue,TSG BUILDING SERVICES,03908728
Fareham Borough Council,http://statistics.data.gov.uk/id/local-authority/24UE,CULTURAL AND RELATED SERVICES,BV09,RECREATION AND SPORT,BV09B,DEPT of COMMUNITY and STREETSCENE,PREMISES RELATED EXPENDITURE,2,Building Construction Materials,10,R & M OF BUILDINGS,2000,24/10/2014,507593,95.21 ,Revenue,TSG BUILDING SERVICES,03908728
Fareham Borough Council,http://statistics.data.gov.uk/id/local-authority/24UE,HOUSING REVENUE ACCOUNT,BV06,CYCLICAL REPAIRS/MAINTENANCE,5903,DEPT STREETSCENE,PREMISES RELATED EXPENDITURE,2,Building Construction Materials,10,GAS SERVICING & ASSOC REPAIRS,2029,24/10/2014,507593,22286.94 ,Revenue,TSG BUILDING SERVICES,03908728
Fareham Borough Council,http://statistics.data.gov.uk/id/local-authority/24UE,OTHER REVENUE ACCOUNTS,RV,CONTRACT SERVICES D.S.O.,RV14,DEPT of COMMUNITY and STREETSCENE,PREMISES RELATED EXPENDITURE,2,Building Construction Materials,10,R & M OF BUILDINGS,2000,24/10/2014,507593,92.57 ,Revenue,TSG BUILDING SERVICES,03908728
Fareham Borough Council,http://statistics.data.gov.uk/id/local-authority/24UE,OTHER REVENUE ACCOUNTS,RV,NON WORK GROUP HOLDING ACCOUNT,RV18,DEPT of FINANCE and RESOURCES,PREMISES RELATED EXPENDITURE,2,Building Construction Materials,10,R & M OF FIXED PLANT,2040,24/10/2014,507593,70.53 ,Revenue,TSG BUILDING SERVICES,03908728
Fareham Borough Council,http://statistics.data.gov.uk/id/local-authority/24UE,OTHER REVENUE ACCOUNTS,RV,NON WORK GROUP HOLDING ACCOUNT,RV18,DEPT of FINANCE and RESOURCES,PREMISES RELATED EXPENDITURE,2,Building Construction Materials,10,R & M OF FIXED PLANT,2040,24/10/2014,507593,91.69 ,Revenue,TSG BUILDING SERVICES,03908728
Fareham Borough Council,http://statistics.data.gov.uk/id/local-authority/24UE,HOUSING REVENUE ACCOUNT,BV06,MAINT OF LAWNS VERGES ETC,5030,DEPT of COMMUNITY and STREETSCENE,PREMISES RELATED EXPENDITURE,2,Highway Equipment & Materials?,23,ENVIRONMENTAL IMPROVEMENTS,2030,17/10/2014,507594,883.04 ,Revenue,ALLSPEED SIGNS & GRAPHICS LTD,02998509
Fareham Borough Council,http://statistics.data.gov.uk/id/local-authority/24UE,CAPITAL PROGRAMME - HOUSING SERVICES,CP,RENOVATION OF L.A. DWELLINGS,CP10,CAPITAL - ENERGY CONSERVATION,PREMISES RELATED EXPENDITURE,2,"Works - Construction, Repair & Maintenance",39,R & M OF BUILDINGS,2000,17/10/2014,507599,4038.50 ,Capital,LIBERTY GAS GROUP LTD,04242416
Fareham Borough Council,http://statistics.data.gov.uk/id/local-authority/24UE,CAPITAL PROGRAMME - HOUSING SERVICES,CP,RENOVATION OF L.A. DWELLINGS,CP10,CAPITAL - ENERGY CONSERVATION,PREMISES RELATED EXPENDITURE,2,"Works - Construction, Repair & Maintenance",39,R & M OF BUILDINGS,2000,17/10/2014,507600,1381.77 ,Capital,LIBERTY GAS GROUP LTD,04242416
Fareham Borough Council,http://statistics.data.gov.uk/id/local-authority/24UE,CAPITAL PROGRAMME - HOUSING SERVICES,CP,RENOVATION OF L.A. DWELLINGS,CP10,CAPITAL - ENERGY CONSERVATION,PREMISES RELATED EXPENDITURE,2,"Works - Construction, Repair & Maintenance",39,R & M OF BUILDINGS,2000,17/10/2014,507601,1497.89 ,Capital,LIBERTY GAS GROUP LTD,04242416
Fareham Borough Council,http://statistics.data.gov.uk/id/local-authority/24UE,CORPORATE & DEMOCRATIC CORE,BV07A,CORPORATE MANAGEMENT,BV07AB,DEPT of FINANCE and RESOURCES,SUPPLIES & SERVICES,4,Consultancy,15,CONSULTANTS FEES,4401,17/10/2014,507606,15360.00 ,Revenue,VANGUARD CONSULTING LTD,2207133
Fareham Borough Council,http://statistics.data.gov.uk/id/local-authority/24UE,HOUSING REVENUE ACCOUNT,BV06,RESPONSIVE & VOID MAINTENANCE,5901,DEPT STREETSCENE,PREMISES RELATED EXPENDITURE,2,Building Construction Materials,10,GENERAL REPAIRS,2018,17/10/2014,507613,1430.00 ,Revenue,IDEAL WINDOW SOLUTIONS LIMITED,3623785
Fareham Borough Council,http://statistics.data.gov.uk/id/local-authority/24UE,HOUSING REVENUE ACCOUNT,BV06,RESPONSIVE & VOID MAINTENANCE,5901,DEPT STREETSCENE,PREMISES RELATED EXPENDITURE,2,Building Construction Materials,10,GENERAL REPAIRS,2018,17/10/2014,507614,690.00 ,Revenue,IDEAL WINDOW SOLUTIONS LIMITED,3623785
Fareham Borough Council,http://statistics.data.gov.uk/id/local-authority/24UE,CULTURAL AND RELATED SERVICES,BV09,CULTURE AND HERITAGE,BV09A,DEPT of COMMUNITY and STREETSCENE,PREMISES RELATED EXPENDITURE,2,Utilities,37,ELECTRICITY,2120,17/10/2014,507628,2101.61 ,Revenue,EDF ENERGY,02366852
Fareham Borough Council,http://statistics.data.gov.uk/id/local-authority/24UE,OTHER REVENUE ACCOUNTS,RV,NON WORK GROUP HOLDING ACCOUNT,RV18,DEPT of FINANCE and RESOURCES,PREMISES RELATED EXPENDITURE,2,Utilities,37,ELECTRICITY,2120,17/10/2014,507628,9336.28 ,Revenue,EDF ENERGY,02366852
Fareham Borough Council,http://statistics.data.gov.uk/id/local-authority/24UE,BALANCE SHEET,BS,BAL. SHEET - COLLECTION FUND,BS1,BAL. SHEET - COLLECTION FUND,PERSONAL ACCOUNTS,BS210,Local/Central Government,,HAMPSHIRE FIRE/RESCUE PRECEPT,P161,17/10/2014,507629,241022.00 ,Balance Sheet,HAMPSHIRE FIRE & RESCUE AUTHORITY,
Fareham Borough Council,http://statistics.data.gov.uk/id/local-authority/24UE,BALANCE SHEET,BS,BAL. SHEET - COLLECTION FUND,BS1,BAL. SHEET - COLLECTION FUND,PERSONAL ACCOUNTS,BS210,Local/Central Government,,HAMPSHIRE POLICE PRECEPT,P159,17/10/2014,507630,526725.00 ,Balance Sheet,POLICE & CRIME COMMISSIONER HAMPSHIRE,
Fareham Borough Council,http://statistics.data.gov.uk/id/local-authority/24UE,BALANCE SHEET,BS,BAL. SHEET - COLLECTION FUND,BS1,BAL. SHEET - COLLECTION FUND,PERSONAL ACCOUNTS,BS210,Local/Central Government,98,HAMPSHIRE C.C. PRECEPT ACCOUNT,P157,17/10/2014,507631,3826817.00 ,Balance Sheet,HAMPSHIRE COUNTY COUNCIL,
Fareham Borough Council,http://statistics.data.gov.uk/id/local-authority/24UE,OTHER OPERATING EXPENDITURE,BVB01,HOUSING CAPITAL RECEIPTS POOL,BVB050,DEPT of FINANCE and RESOURCES,TRANSFER PAYMENTS,6,Local/Central Government,98,POOLED CAPITAL RECPT TO GOVT,6902,17/10/2014,507634,43484.98 ,Revenue,DCLG (Dept. for Communities & Local Govt.),
Fareham Borough Council,http://statistics.data.gov.uk/id/local-authority/24UE,CULTURAL AND RELATED SERVICES,BV09,CULTURE AND HERITAGE,BV09A,DEPT of COMMUNITY and STREETSCENE,SUPPLIES & SERVICES,4,Financial Services,20,CREDIT CARD CHARGES,4957,17/10/2014,507643,762.10 ,Revenue,NAT WEST,00929027
Fareham Borough Council,http://statistics.data.gov.uk/id/local-authority/24UE,CULTURAL AND RELATED SERVICES,BV09,CULTURE AND HERITAGE,BV09A,DEPT of COMMUNITY and STREETSCENE,SUPPLIES & SERVICES,4,Financial Services,20,CREDIT CARD CHARGES,4957,17/10/2014,507643,39.00 ,Revenue,NAT WEST,00929027
Fareham Borough Council,http://statistics.data.gov.uk/id/local-authority/24UE,GENERAL FUND HOUSING,BV05,HOUSING BENEFIT ADMINISTRATION,BV05H,DEPT of COMMUNITY and STREETSCENE,SUPPLIES & SERVICES,4,Financial Services,20,BANK CHARGES,4954,17/10/2014,507646,91.71 ,Revenue,NAT WEST,00929027
Fareham Borough Council,http://statistics.data.gov.uk/id/local-authority/24UE,CORPORATE & DEMOCRATIC CORE,BV07A,CORPORATE MANAGEMENT,BV07AB,DEPT of FINANCE and RESOURCES,SUPPLIES & SERVICES,4,Financial Services,20,BANK CHARGES,4954,17/10/2014,507646,1137.53 ,Revenue,NAT WEST,00929027
Fareham Borough Council,http://statistics.data.gov.uk/id/local-authority/24UE,CENTRAL SERVICES,BV07,CENTRAL SERVICES TO THE PUBLIC,BV07B,DEPT of COMMUNITY and STREETSCENE,SUPPLIES & SERVICES,4,Financial Services,20,BANK CHARGES,4954,17/10/2014,507646,120.80 ,Revenue,NAT WEST,00929027
Fareham Borough Council,http://statistics.data.gov.uk/id/local-authority/24UE,CENTRAL SERVICES,BV07,CENTRAL SERVICES TO THE PUBLIC,BV07B,DEPT of COMMUNITY and STREETSCENE,SUPPLIES & SERVICES,4,Financial Services,20,BANK CHARGES,4954,17/10/2014,507646,2295.16 ,Revenue,NAT WEST,00929027
Fareham Borough Council,http://statistics.data.gov.uk/id/local-authority/24UE,CULTURAL AND RELATED SERVICES,BV09,CULTURE AND HERITAGE,BV09A,DEPT of COMMUNITY and STREETSCENE,SUPPLIES & SERVICES,4,Financial Services,20,BANK CHARGES,4954,17/10/2014,507646,35.04 ,Revenue,NAT WEST,00929027
Fareham Borough Council,http://statistics.data.gov.uk/id/local-authority/24UE,HIGHWAYS ROADS AND TRANSPORT,BV12,PARKING SERVICES,BV12D,DEPT of STRATEGIC PLANNING and ENVIRONMENT,SUPPLIES & SERVICES,4,Financial Services,20,BANK CHARGES,4954,17/10/2014,507646,615.96 ,Revenue,NAT WEST,00929027
Fareham Borough Council,http://statistics.data.gov.uk/id/local-authority/24UE,OTHER REVENUE ACCOUNTS,RV,NON WORK GROUP HOLDING ACCOUNT,RV18,DEPT of FINANCE and RESOURCES,SUPPLIES & SERVICES,4,Financial Services,20,BANK CHARGES,4954,17/10/2014,507646,47.05 ,Revenue,NAT WEST,00929027
Fareham Borough Council,http://statistics.data.gov.uk/id/local-authority/24UE,GENERAL FUND HOUSING,BV05,PRIVATE SECTOR HOUSING RENEWAL,BV05E,DEPT of COMMUNITY and STREETSCENE,SUPPLIES & SERVICES,4,Social Community Care Supplies & Services,32,GRANTS AND SUBSCRIPTIONS,4700,24/10/2014,507648,3858.50 ,Revenue,ASTER LIVING,29574R
Fareham Borough Council,http://statistics.data.gov.uk/id/local-authority/24UE,CAPITAL PROGRAMME - OTHER SERVICES,CP,APPROVED PROGRAMME,CP24,CAPITAL - APPROVED PROGRAMME,SUPPLIES & SERVICES,4,Consultancy,15,CONSULTANTS FEES,4401,17/10/2014,507653,4000.00 ,Capital,BAQUS GROUP PLC,6013357
Fareham Borough Council,http://statistics.data.gov.uk/id/local-authority/24UE,OTHER REVENUE ACCOUNTS,RV,CONTRACT SERVICES D.S.O.,RV14,DEPT of STRATEGIC PLANNING and ENVIRONMENT,SUPPLIES & SERVICES,4,Local/Central Government,98,SUB-CONTRACTORS CHARGES,4432,17/10/2014,507655,963.00 ,Revenue,CHICHESTER DISTRICT COUNCIL,
Fareham Borough Council,http://statistics.data.gov.uk/id/local-authority/24UE,OTHER REVENUE ACCOUNTS,RV,NON WORK GROUP HOLDING ACCOUNT,RV18,DEPT of FINANCE and RESOURCES,EMPLOYEES RELATED EXPENDITURE,1,Information Communication Technology,27,TRAINING COURSES EMPLOYEES,1909,17/10/2014,507656,1680.00 ,Revenue,QA LTD,02413137
Fareham Borough Council,http://statistics.data.gov.uk/id/local-authority/24UE,CULTURAL AND RELATED SERVICES,BV09,RECREATION AND SPORT,BV09B,DEPT STREETSCENE,SUPPLIES & SERVICES,4,Horticultural,24,SPECIAL EXPENDITURE,4999,17/10/2014,507657,666.00 ,Revenue,WHARTONS NURSERIES LTD,00441069
Fareham Borough Council,http://statistics.data.gov.uk/id/local-authority/24UE,HIGHWAYS ROADS AND TRANSPORT,BV12,PARKING SERVICES,BV12D,DEPT STREETSCENE,SUPPLIES & SERVICES,4,Financial Services,20,SECURITY SERVICES,4409,17/10/2014,507662,4408.72 ,Revenue,KEYLINE CHARTERED SECURITY LTD,3754578
Fareham Borough Council,http://statistics.data.gov.uk/id/local-authority/24UE,CULTURAL AND RELATED SERVICES,BV09,RECREATION AND SPORT,BV09B,DEPT STREETSCENE,SUPPLIES & SERVICES,4,"Works - Construction, Repair & Maintenance",39,FURNITURE & EQUIPT. PURCHASES,4000,17/10/2014,507663,5300.00 ,Revenue,EARTH ANCHORS LTD,00842961
Fareham Borough Council,http://statistics.data.gov.uk/id/local-authority/24UE,CULTURAL AND RELATED SERVICES,BV09,RECREATION AND SPORT,BV09B,DEPT STREETSCENE,SUPPLIES & SERVICES,4,"Works - Construction, Repair & Maintenance",39,FURNITURE & EQUIPT. PURCHASES,4000,17/10/2014,507663,98.00 ,Revenue,EARTH ANCHORS LTD,00842961
Fareham Borough Council,http://statistics.data.gov.uk/id/local-authority/24UE,ENVIRONMENT AND REGULATORY SER,BV03,WASTE COLLECTION,BV03G,DEPT STREETSCENE,SUPPLIES & SERVICES,4,Environmental Services,18,FURNITURE & EQUIPT. PURCHASES,4000,31/10/2014,507674,1420.50 ,Revenue,ENVIRONMENTAL SOLUTIONS EUROPE (ESE),02327763
Fareham Borough Council,http://statistics.data.gov.uk/id/local-authority/24UE,CULTURAL AND RELATED SERVICES,BV09,CULTURE AND HERITAGE,BV09A,DEPT of COMMUNITY and STREETSCENE,SUPPLIES & SERVICES,4,Art & Leisure Services,29,FURNITURE & EQUIPT. PURCHASES,4000,17/10/2014,507679,3967.65 ,Revenue,TRAFALGAR LIGHTING LTD,1889497
Fareham Borough Council,http://statistics.data.gov.uk/id/local-authority/24UE,CULTURAL AND RELATED SERVICES,BV09,CULTURE AND HERITAGE,BV09A,DEPT of COMMUNITY and STREETSCENE,SUPPLIES & SERVICES,4,Art & Leisure Services,29,PROMOTER,4916,17/10/2014,507681,1303.13 ,Revenue,JOHNNY MANS PRODUCTIONS,
Fareham Borough Council,http://statistics.data.gov.uk/id/local-authority/24UE,CULTURAL AND RELATED SERVICES,BV09,CULTURE AND HERITAGE,BV09A,DEPT of COMMUNITY and STREETSCENE,SUPPLIES & SERVICES,4,Catering,11,BAR PROVISIONS,4106,24/10/2014,507682,1308.85 ,Revenue,MOLSON COORS BREWING COMPANY (UK) LTD,26018
Fareham Borough Council,http://statistics.data.gov.uk/id/local-authority/24UE,OTHER REVENUE ACCOUNTS,RV,NON WORK GROUP HOLDING ACCOUNT,RV18,DEPT of FINANCE and RESOURCES,EMPLOYEES RELATED EXPENDITURE,1,Human Resources,26,TRAINING COURSES EMPLOYEES,1909,17/10/2014,507685,857.40 ,Revenue,JANET BELL T/A HR MATTERS,
Fareham Borough Council,http://statistics.data.gov.uk/id/local-authority/24UE,CORPORATE & DEMOCRATIC CORE,BV07A,CORPORATE MANAGEMENT,BV07AB,DEPT of FINANCE and RESOURCES,EMPLOYEES RELATED EXPENDITURE,1,Human Resources,26,AGENCY - EXTERNALLY FUNDED,1054,17/10/2014,507696,3175.33 ,Revenue,LONDON APPRENTICESHIP COMPANY,6853060
Fareham Borough Council,http://statistics.data.gov.uk/id/local-authority/24UE,OTHER REVENUE ACCOUNTS,RV,NON WORK GROUP HOLDING ACCOUNT,RV18,DEPT of FINANCE and RESOURCES,EMPLOYEES RELATED EXPENDITURE,1,Healthcare,31,MEDICAL EXPENSES,1907,17/10/2014,507697,934.16 ,Revenue,THE HIGHLANDS PRACTICE,
Fareham Borough Council,http://statistics.data.gov.uk/id/local-authority/24UE,PLANNING SERVICES,BV13,DEVELOPMENT CONTROL,BV13B,DEPT of STRATEGIC PLANNING and ENVIRONMENT,SUPPLIES & SERVICES,4,Consultancy,15,CONSULTANTS FEES,4401,17/10/2014,507701,2437.50 ,Revenue,JENKINSDUVAL LTD,5471927
Fareham Borough Council,http://statistics.data.gov.uk/id/local-authority/24UE,PLANNING SERVICES,BV13,PLANNING POLICY,BV13C,DEPT of STRATEGIC PLANNING and ENVIRONMENT,SUPPLIES & SERVICES,4,Consultancy,15,CONSULTANTS FEES,4401,17/10/2014,507701,2437.50 ,Revenue,JENKINSDUVAL LTD,5471927
Fareham Borough Council,http://statistics.data.gov.uk/id/local-authority/24UE,GENERAL FUND HOUSING,BV05,HOUSING BENEFIT ADMINISTRATION,BV05H,DEPT of COMMUNITY and STREETSCENE,EMPLOYEES RELATED EXPENDITURE,1,Human Resources,26,AGENCY WORKERS,1050,17/10/2014,507702,8876.71 ,Revenue,HBHC SYNERGY LTD,07637706
Fareham Borough Council,http://statistics.data.gov.uk/id/local-authority/24UE,CENTRAL SERVICES,BV07,CENTRAL SERVICES TO THE PUBLIC,BV07B,DEPT of COMMUNITY and STREETSCENE,EMPLOYEES RELATED EXPENDITURE,1,Human Resources,26,AGENCY WORKERS,1050,17/10/2014,507702,211.50 ,Revenue,HBHC SYNERGY LTD,07637706
Fareham Borough Council,http://statistics.data.gov.uk/id/local-authority/24UE,CENTRAL SERVICES,BV07,CENTRAL SERVICES TO THE PUBLIC,BV07B,DEPT of COMMUNITY and STREETSCENE,EMPLOYEES RELATED EXPENDITURE,1,Human Resources,26,AGENCY WORKERS,1050,17/10/2014,507702,4438.35 ,Revenue,HBHC SYNERGY LTD,07637706
Fareham Borough Council,http://statistics.data.gov.uk/id/local-authority/24UE,CENTRAL SERVICES,BV07,CENTRAL SERVICES TO THE PUBLIC,BV07B,DEPT of COMMUNITY and STREETSCENE,EMPLOYEES RELATED EXPENDITURE,1,Human Resources,26,AGENCY WORKERS,1050,17/10/2014,507702,4018.50 ,Revenue,HBHC SYNERGY LTD,07637706
Fareham Borough Council,http://statistics.data.gov.uk/id/local-authority/24UE,OTHER REVENUE ACCOUNTS,RV,CONTRACT SERVICES D.S.O.,RV14,DEPT of STRATEGIC PLANNING and ENVIRONMENT,SUPPLIES & SERVICES,4,Local/Central Government,98,SUB-CONTRACTORS CHARGES,4432,17/10/2014,507707,840.00 ,Revenue,WINCHESTER CITY COUNCIL,
Fareham Borough Council,http://statistics.data.gov.uk/id/local-authority/24UE,OTHER REVENUE ACCOUNTS,RV,CONTRACT SERVICES D.S.O.,RV14,DEPT of STRATEGIC PLANNING and ENVIRONMENT,SUPPLIES & SERVICES,4,Local/Central Government,98,SUB-CONTRACTORS CHARGES,4432,17/10/2014,507708,1378.50 ,Revenue,WINCHESTER CITY COUNCIL,
Fareham Borough Council,http://statistics.data.gov.uk/id/local-authority/24UE,OTHER REVENUE ACCOUNTS,RV,CONTRACT SERVICES D.S.O.,RV14,DEPT of STRATEGIC PLANNING and ENVIRONMENT,SUPPLIES & SERVICES,4,Local/Central Government,98,SUB-CONTRACTORS CHARGES,4432,17/10/2014,507710,528.66 ,Revenue,WINCHESTER CITY COUNCIL,
Fareham Borough Council,http://statistics.data.gov.uk/id/local-authority/24UE,OTHER REVENUE ACCOUNTS,RV,NON WORK GROUP HOLDING ACCOUNT,RV18,DEPT of FINANCE and RESOURCES,THIRD PARTY PAYMENTS,5,Financial Services,20,AUDIT CONTRACT,5601,17/10/2014,507711,-37856.42 ,Revenue,DELOITTE,04585162
Fareham Borough Council,http://statistics.data.gov.uk/id/local-authority/24UE,OTHER REVENUE ACCOUNTS,RV,NON WORK GROUP HOLDING ACCOUNT,RV18,DEPT of FINANCE and RESOURCES,THIRD PARTY PAYMENTS,5,Financial Services,20,AUDIT CONTRACT,5601,17/10/2014,507712,37856.42 ,Revenue,MAZARS LLP,OC308299
Fareham Borough Council,http://statistics.data.gov.uk/id/local-authority/24UE,OTHER REVENUE ACCOUNTS,RV,CONTRACT SERVICES D.S.O.,RV14,DEPT of STRATEGIC PLANNING and ENVIRONMENT,SUPPLIES & SERVICES,4,Local/Central Government,98,GRANTS AND SUBSCRIPTIONS,4700,17/10/2014,507736,1256.46 ,Revenue,GOSPORT BOROUGH COUNCIL,
Fareham Borough Council,http://statistics.data.gov.uk/id/local-authority/24UE,OTHER REVENUE ACCOUNTS,RV,CONTRACT SERVICES D.S.O.,RV14,DEPT of STRATEGIC PLANNING and ENVIRONMENT,THIRD PARTY PAYMENTS,5,Local/Central Government,98,GBC - B C PARTNERSHIP,5150,17/10/2014,507736,4377.00 ,Revenue,GOSPORT BOROUGH COUNCIL,
Fareham Borough Council,http://statistics.data.gov.uk/id/local-authority/24UE,OTHER REVENUE ACCOUNTS,RV,CONTRACT SERVICES D.S.O.,RV14,DEPT of STRATEGIC PLANNING and ENVIRONMENT,EMPLOYEES RELATED EXPENDITURE,1,Local/Central Government,98,GBC - EMPLOYEE COSTS,1048,17/10/2014,507736,17697.69 ,Revenue,GOSPORT BOROUGH COUNCIL,
Fareham Borough Council,http://statistics.data.gov.uk/id/local-authority/24UE,OTHER REVENUE ACCOUNTS,RV,CONTRACT SERVICES D.S.O.,RV14,DEPT of STRATEGIC PLANNING and ENVIRONMENT,TRANSPORT RELATED EXPENDITURE,3,Local/Central Government,98,GBC - CAR ALLOWANCES,3432,17/10/2014,507736,771.23 ,Revenue,GOSPORT BOROUGH COUNCIL,
Fareham Borough Council,http://statistics.data.gov.uk/id/local-authority/24UE,OTHER REVENUE ACCOUNTS,RV,CONTRACT SERVICES D.S.O.,RV14,DEPT of STRATEGIC PLANNING and ENVIRONMENT,SUPPLIES & SERVICES,4,Local/Central Government,98,MOBILE TELEPHONES,4514,17/10/2014,507736,1.54 ,Revenue,GOSPORT BOROUGH COUNCIL,
Fareham Borough Council,http://statistics.data.gov.uk/id/local-authority/24UE,OTHER REVENUE ACCOUNTS,RV,CONTRACT SERVICES D.S.O.,RV14,DEPT of STRATEGIC PLANNING and ENVIRONMENT,SUPPLIES & SERVICES,4,Local/Central Government,98,SUBSISTENCE EXP - EMPLOYEES,4600,17/10/2014,507736,52.45 ,Revenue,GOSPORT BOROUGH COUNCIL,
Fareham Borough Council,http://statistics.data.gov.uk/id/local-authority/24UE,OTHER REVENUE ACCOUNTS,RV,CONTRACT SERVICES D.S.O.,RV14,DEPT of STRATEGIC PLANNING and ENVIRONMENT,SUPPLIES & SERVICES,4,Local/Central Government,98,MISC INSURANCES - PREMIUM,4901,17/10/2014,507736,54.68 ,Revenue,GOSPORT BOROUGH COUNCIL,
Fareham Borough Council,http://statistics.data.gov.uk/id/local-authority/24UE,PLANNING SERVICES,BV13,COMMUNITY DEVELOPMENT,BV13H,DEPT of COMMUNITY and STREETSCENE,SUPPLIES & SERVICES,4,Healthcare,31,YOUTH PROJECTS,4977,31/10/2014,507827,1275.00 ,Revenue,THE MOVING ON PROJECT,07764753
Fareham Borough Council,http://statistics.data.gov.uk/id/local-authority/24UE,PLANNING SERVICES,BV13,COMMUNITY DEVELOPMENT,BV13H,DEPT of COMMUNITY and STREETSCENE,SUPPLIES & SERVICES,4,Healthcare,31,YOUTH PROJECTS,4977,31/10/2014,507828,1275.00 ,Revenue,THE MOVING ON PROJECT,07764753
Fareham Borough Council,http://statistics.data.gov.uk/id/local-authority/24UE,CAPITAL PROGRAMME - OTHER SERVICES,CP,SCHEMES FUNDED FROM BALANCES,CP20,CAPITAL - SCHEMES FUNDED FROM BALANCES,PREMISES RELATED EXPENDITURE,2,"Works - Construction, Repair & Maintenance",39,R & M OF BUILDINGS,2000,17/10/2014,507836,603825.00 ,Capital,J B LEADBITTER & CO LTD,1018727
Fareham Borough Council,http://statistics.data.gov.uk/id/local-authority/24UE,CENTRAL SERVICES,BV07,CENTRAL SERVICES TO THE PUBLIC,BV07B,DEPT of FINANCE and RESOURCES,SUPPLIES & SERVICES,4,Legal Services,28,EXTERNAL PRINTING,4310,17/10/2014,507838,1236.06 ,Revenue,ELECTORAL REFORM SERVICES,02263092
Fareham Borough Council,http://statistics.data.gov.uk/id/local-authority/24UE,CENTRAL SERVICES,BV07,CENTRAL SERVICES TO THE PUBLIC,BV07B,DEPT of FINANCE and RESOURCES,SUPPLIES & SERVICES,4,Legal Services,28,EXTERNAL PRINTING,4310,17/10/2014,507839,3903.40 ,Revenue,ELECTORAL REFORM SERVICES,02263092
Fareham Borough Council,http://statistics.data.gov.uk/id/local-authority/24UE,CENTRAL SERVICES,BV07,CENTRAL SERVICES TO THE PUBLIC,BV07B,DEPT of FINANCE and RESOURCES,SUPPLIES & SERVICES,4,Legal Services,28,EXTERNAL PRINTING,4310,24/10/2014,507840,664.50 ,Revenue,ELECTORAL REFORM SERVICES,02263092
Fareham Borough Council,http://statistics.data.gov.uk/id/local-authority/24UE,CULTURAL AND RELATED SERVICES,BV09,CULTURE AND HERITAGE,BV09A,DEPT of COMMUNITY and STREETSCENE,SUPPLIES & SERVICES,4,Art & Leisure Services,29,PROMOTER,4916,17/10/2014,507848,7637.33 ,Revenue,redacted personal data,
Fareham Borough Council,http://statistics.data.gov.uk/id/local-authority/24UE,CULTURAL AND RELATED SERVICES,BV09,RECREATION AND SPORT,BV09B,DEPT of COMMUNITY and STREETSCENE,TRANSPORT RELATED EXPENDITURE,3,Vehicle Management,38,TYRES,3022,24/10/2014,507852,20.31 ,Revenue,ATS EUROMASTER LIMITED,04303731
Fareham Borough Council,http://statistics.data.gov.uk/id/local-authority/24UE,CULTURAL AND RELATED SERVICES,BV09,RECREATION AND SPORT,BV09B,DEPT of COMMUNITY and STREETSCENE,TRANSPORT RELATED EXPENDITURE,3,Vehicle Management,38,TYRES,3022,24/10/2014,507852,21.00 ,Revenue,ATS EUROMASTER LIMITED,04303731
Fareham Borough Council,http://statistics.data.gov.uk/id/local-authority/24UE,CULTURAL AND RELATED SERVICES,BV09,RECREATION AND SPORT,BV09B,DEPT of COMMUNITY and STREETSCENE,TRANSPORT RELATED EXPENDITURE,3,Vehicle Management,38,TYRES,3022,24/10/2014,507852,57.31 ,Revenue,ATS EUROMASTER LIMITED,04303731
Fareham Borough Council,http://statistics.data.gov.uk/id/local-authority/24UE,ENVIRONMENT AND REGULATORY SER,BV03,STREET CLEANSING,BV03F,DEPT STREETSCENE,TRANSPORT RELATED EXPENDITURE,3,Vehicle Management,38,TYRES,3022,24/10/2014,507852,16.18 ,Revenue,ATS EUROMASTER LIMITED,04303731
Fareham Borough Council,http://statistics.data.gov.uk/id/local-authority/24UE,ENVIRONMENT AND REGULATORY SER,BV03,STREET CLEANSING,BV03F,DEPT STREETSCENE,TRANSPORT RELATED EXPENDITURE,3,Vehicle Management,38,TYRES,3022,24/10/2014,507852,9.09 ,Revenue,ATS EUROMASTER LIMITED,04303731
Fareham Borough Council,http://statistics.data.gov.uk/id/local-authority/24UE,ENVIRONMENT AND REGULATORY SER,BV03,STREET CLEANSING,BV03F,DEPT STREETSCENE,TRANSPORT RELATED EXPENDITURE,3,Vehicle Management,38,TYRES,3022,24/10/2014,507852,236.06 ,Revenue,ATS EUROMASTER LIMITED,04303731
Fareham Borough Council,http://statistics.data.gov.uk/id/local-authority/24UE,ENVIRONMENT AND REGULATORY SER,BV03,STREET CLEANSING,BV03F,DEPT STREETSCENE,TRANSPORT RELATED EXPENDITURE,3,Vehicle Management,38,TYRES,3022,24/10/2014,507852,6.20 ,Revenue,ATS EUROMASTER LIMITED,04303731
Fareham Borough Council,http://statistics.data.gov.uk/id/local-authority/24UE,ENVIRONMENT AND REGULATORY SER,BV03,STREET CLEANSING,BV03F,DEPT STREETSCENE,TRANSPORT RELATED EXPENDITURE,3,Vehicle Management,38,TYRES,3022,24/10/2014,507852,0.62 ,Revenue,ATS EUROMASTER LIMITED,04303731
Fareham Borough Council,http://statistics.data.gov.uk/id/local-authority/24UE,ENVIRONMENT AND REGULATORY SER,BV03,STREET CLEANSING,BV03F,DEPT STREETSCENE,TRANSPORT RELATED EXPENDITURE,3,Vehicle Management,38,TYRES,3022,24/10/2014,507852,308.08 ,Revenue,ATS EUROMASTER LIMITED,04303731
Fareham Borough Council,http://statistics.data.gov.uk/id/local-authority/24UE,ENVIRONMENT AND REGULATORY SER,BV03,STREET CLEANSING,BV03F,DEPT STREETSCENE,TRANSPORT RELATED EXPENDITURE,3,Vehicle Management,38,TYRES,3022,24/10/2014,507852,6.20 ,Revenue,ATS EUROMASTER LIMITED,04303731
Fareham Borough Council,http://statistics.data.gov.uk/id/local-authority/24UE,ENVIRONMENT AND REGULATORY SER,BV03,STREET CLEANSING,BV03F,DEPT STREETSCENE,TRANSPORT RELATED EXPENDITURE,3,Vehicle Management,38,TYRES,3022,24/10/2014,507852,0.62 ,Revenue,ATS EUROMASTER LIMITED,04303731
Fareham Borough Council,http://statistics.data.gov.uk/id/local-authority/24UE,ENVIRONMENT AND REGULATORY SER,BV03,STREET CLEANSING,BV03F,DEPT STREETSCENE,TRANSPORT RELATED EXPENDITURE,3,Vehicle Management,38,TYRES,3022,24/10/2014,507852,69.16 ,Revenue,ATS EUROMASTER LIMITED,04303731
Fareham Borough Council,http://statistics.data.gov.uk/id/local-authority/24UE,ENVIRONMENT AND REGULATORY SER,BV03,STREET CLEANSING,BV03F,DEPT STREETSCENE,TRANSPORT RELATED EXPENDITURE,3,Vehicle Management,38,TYRES,3022,24/10/2014,507852,1.16 ,Revenue,ATS EUROMASTER LIMITED,04303731
Fareham Borough Council,http://statistics.data.gov.uk/id/local-authority/24UE,ENVIRONMENT AND REGULATORY SER,BV03,STREET CLEANSING,BV03F,DEPT STREETSCENE,TRANSPORT RELATED EXPENDITURE,3,Vehicle Management,38,TYRES,3022,24/10/2014,507852,4.35 ,Revenue,ATS EUROMASTER LIMITED,04303731
Fareham Borough Council,http://statistics.data.gov.uk/id/local-authority/24UE,ENVIRONMENT AND REGULATORY SER,BV03,STREET CLEANSING,BV03F,DEPT STREETSCENE,TRANSPORT RELATED EXPENDITURE,3,Vehicle Management,38,TYRES,3022,24/10/2014,507852,1.86 ,Revenue,ATS EUROMASTER LIMITED,04303731
Fareham Borough Council,http://statistics.data.gov.uk/id/local-authority/24UE,ENVIRONMENT AND REGULATORY SER,BV03,STREET CLEANSING,BV03F,DEPT STREETSCENE,TRANSPORT RELATED EXPENDITURE,3,Vehicle Management,38,TYRES,3022,24/10/2014,507852,289.21 ,Revenue,ATS EUROMASTER LIMITED,04303731
Fareham Borough Council,http://statistics.data.gov.uk/id/local-authority/24UE,ENVIRONMENT AND REGULATORY SER,BV03,STREET CLEANSING,BV03F,DEPT STREETSCENE,TRANSPORT RELATED EXPENDITURE,3,Vehicle Management,38,TYRES,3022,24/10/2014,507852,7.68 ,Revenue,ATS EUROMASTER LIMITED,04303731
Fareham Borough Council,http://statistics.data.gov.uk/id/local-authority/24UE,ENVIRONMENT AND REGULATORY SER,BV03,STREET CLEANSING,BV03F,DEPT STREETSCENE,TRANSPORT RELATED EXPENDITURE,3,Vehicle Management,38,TYRES,3022,24/10/2014,507852,8.06 ,Revenue,ATS EUROMASTER LIMITED,04303731
Fareham Borough Council,http://statistics.data.gov.uk/id/local-authority/24UE,ENVIRONMENT AND REGULATORY SER,BV03,STREET CLEANSING,BV03F,DEPT STREETSCENE,TRANSPORT RELATED EXPENDITURE,3,Vehicle Management,38,TYRES,3022,24/10/2014,507852,1.86 ,Revenue,ATS EUROMASTER LIMITED,04303731
Fareham Borough Council,http://statistics.data.gov.uk/id/local-authority/24UE,ENVIRONMENT AND REGULATORY SER,BV03,STREET CLEANSING,BV03F,DEPT STREETSCENE,TRANSPORT RELATED EXPENDITURE,3,Vehicle Management,38,TYRES,3022,24/10/2014,507852,4.35 ,Revenue,ATS EUROMASTER LIMITED,04303731
Fareham Borough Council,http://statistics.data.gov.uk/id/local-authority/24UE,HIGHWAYS ROADS AND TRANSPORT,BV12,PARKING SERVICES,BV12D,DEPT STREETSCENE,TRANSPORT RELATED EXPENDITURE,3,Vehicle Management,38,TYRES,3022,24/10/2014,507852,52.57 ,Revenue,ATS EUROMASTER LIMITED,04303731
Fareham Borough Council,http://statistics.data.gov.uk/id/local-authority/24UE,HIGHWAYS ROADS AND TRANSPORT,BV12,PARKING SERVICES,BV12D,DEPT STREETSCENE,TRANSPORT RELATED EXPENDITURE,3,Vehicle Management,38,TYRES,3022,24/10/2014,507852,4.35 ,Revenue,ATS EUROMASTER LIMITED,04303731
Fareham Borough Council,http://statistics.data.gov.uk/id/local-authority/24UE,HIGHWAYS ROADS AND TRANSPORT,BV12,PARKING SERVICES,BV12D,DEPT STREETSCENE,TRANSPORT RELATED EXPENDITURE,3,Vehicle Management,38,TYRES,3022,24/10/2014,507852,1.16 ,Revenue,ATS EUROMASTER LIMITED,04303731
Fareham Borough Council,http://statistics.data.gov.uk/id/local-authority/24UE,HIGHWAYS ROADS AND TRANSPORT,BV12,PARKING SERVICES,BV12D,DEPT STREETSCENE,TRANSPORT RELATED EXPENDITURE,3,Vehicle Management,38,TYRES,3022,24/10/2014,507852,1.86 ,Revenue,ATS EUROMASTER LIMITED,04303731
Fareham Borough Council,http://statistics.data.gov.uk/id/local-authority/24UE,ENVIRONMENT AND REGULATORY SER,BV03,WASTE COLLECTION,BV03G,DEPT STREETSCENE,TRANSPORT RELATED EXPENDITURE,3,Vehicle Management,38,TYRES,3022,24/10/2014,507852,200.18 ,Revenue,ATS EUROMASTER LIMITED,04303731
Fareham Borough Council,http://statistics.data.gov.uk/id/local-authority/24UE,ENVIRONMENT AND REGULATORY SER,BV03,WASTE COLLECTION,BV03G,DEPT STREETSCENE,TRANSPORT RELATED EXPENDITURE,3,Vehicle Management,38,TYRES,3022,24/10/2014,507852,6.20 ,Revenue,ATS EUROMASTER LIMITED,04303731
Fareham Borough Council,http://statistics.data.gov.uk/id/local-authority/24UE,ENVIRONMENT AND REGULATORY SER,BV03,WASTE COLLECTION,BV03G,DEPT STREETSCENE,TRANSPORT RELATED EXPENDITURE,3,Vehicle Management,38,TYRES,3022,24/10/2014,507852,0.62 ,Revenue,ATS EUROMASTER LIMITED,04303731
Fareham Borough Council,http://statistics.data.gov.uk/id/local-authority/24UE,ENVIRONMENT AND REGULATORY SER,BV03,WASTE COLLECTION,BV03G,DEPT STREETSCENE,TRANSPORT RELATED EXPENDITURE,3,Vehicle Management,38,TYRES,3022,24/10/2014,507852,31.00 ,Revenue,ATS EUROMASTER LIMITED,04303731
Fareham Borough Council,http://statistics.data.gov.uk/id/local-authority/24UE,ENVIRONMENT AND REGULATORY SER,BV03,WASTE COLLECTION,BV03G,DEPT STREETSCENE,TRANSPORT RELATED EXPENDITURE,3,Vehicle Management,38,TYRES,3022,24/10/2014,507852,330.24 ,Revenue,ATS EUROMASTER LIMITED,04303731
Fareham Borough Council,http://statistics.data.gov.uk/id/local-authority/24UE,ENVIRONMENT AND REGULATORY SER,BV03,WASTE COLLECTION,BV03G,DEPT STREETSCENE,TRANSPORT RELATED EXPENDITURE,3,Vehicle Management,38,TYRES,3022,24/10/2014,507852,222.21 ,Revenue,ATS EUROMASTER LIMITED,04303731
Fareham Borough Council,http://statistics.data.gov.uk/id/local-authority/24UE,ENVIRONMENT AND REGULATORY SER,BV03,WASTE COLLECTION,BV03G,DEPT STREETSCENE,TRANSPORT RELATED EXPENDITURE,3,Vehicle Management,38,TYRES,3022,24/10/2014,507852,31.00 ,Revenue,ATS EUROMASTER LIMITED,04303731
Fareham Borough Council,http://statistics.data.gov.uk/id/local-authority/24UE,ENVIRONMENT AND REGULATORY SER,BV03,WASTE COLLECTION,BV03G,DEPT STREETSCENE,TRANSPORT RELATED EXPENDITURE,3,Vehicle Management,38,TYRES,3022,24/10/2014,507852,21.08 ,Revenue,ATS EUROMASTER LIMITED,04303731
Fareham Borough Council,http://statistics.data.gov.uk/id/local-authority/24UE,ENVIRONMENT AND REGULATORY SER,BV03,WASTE COLLECTION,BV03G,DEPT STREETSCENE,TRANSPORT RELATED EXPENDITURE,3,Vehicle Management,38,TYRES,3022,24/10/2014,507852,32.86 ,Revenue,ATS EUROMASTER LIMITED,04303731
